Workbook

Sheet Structure&Logic
A1: North Carolina Triple Bottom Line Green Infrastructure Calculator
A2: Model Overview
A3: This tool provides an user-interactive interface to illustrate potential environmental, social, and economic factors associated with future green infrastructure sites across North Carolina. This is achieved through a macro-enabled Excel workbook that incorporates the triple bottom line benefits based on a literary values obtained from green infrastructure models and peer-reveiwed articles. The benefits are juxtaposed against estimated costs that are either user-defined or model-defined. Where possible, reported values have been tailored for sites across NC.
C4: Schematic of the TBL summarization
A19: Model Legend
B20: User Selection - Drop Down Box
B21: User Input Field
B22: Model Estimated Input
A25: List of Worksheets
B26: Name | C26: Description
B27: Dashboard | C27: Primary user-interface for entering scenario runs and visualizing resutls
B28: Results | C28: VBA-coded results section, avoid changing this worksheet
B29: Environmental | C29: Details the input parameters, metrics, calculations and outputs for environmental metrics
B30: Social | C30: Details the input parameters, metrics, calculations and outputs for social metrics
B31: Economic | C31: Details the input parameters, metrics, calculations and outputs for economic metrics
B32: Parameters | C32: Details the required data for metrics such as census tract, willingness to pay, construction and maintenance costs, etc
B33: Ecosystem | C33: Details the literary based input data to assess the ecosystem services offered by the selected GI
B34: GI Environmental | C34: Details other environmental literary data from other TBL tools adapted for NC
B35: CT ID_ACS_2020 | C35: Details the population percentages needed for social metrics.
A38: Data Sources
A56: Model developed by the Rice-Boayue Lab Group:
A57: www.riceboayuelab.com

Sheet Dashboard
A1: North Carolina Triple Bottom Line Green Infrastructure Calculator: Visualizing the societal, environmental, and economic factors of green infrastructure
A2: Calculator Input | E2: Calculator Output
A3: User-Defined Parameters | E3: Economic Co-Benefits
A4: Location Details
B5: State | C5: North Carolina
B6: County | C6: Northampton
B7: Nearest City for Rainfall Estimate | C7: Charlotte | D7: *See Footnote 1
B8: Census Tract Code | C8: 37119005527 | D8: ZIP Code to Census Tract Table
A9: Green Infrastructure Details | D9: *See Footnote 2
B10: Type | C10: Retention Pond
B11: Footprint (ft2) | C11: 1000
B12: User-defined Cost (?) | C12: No | D12: ($/Square Feet)
A14: ** If yes, insert cost below. If you selected no the cost will be estimated. | D14: ($/Square Feet)
B15: Construction Unit Cost ($/ft2) | D15: =IF($C$12="No",Parameters!L8,$C$15) -> 36.93
B16: Annual Maintenance Cost ($/ft2) | D16: =IF($C$12="No",Parameters!O8, $C$16) -> 1.84 | E16: Environmental Co-Benefits
A17: Biochar Details
B18: Will the site be amended with biochar? | C18: No
B19: User-defined Cost (?) | C19: No
B20: ** If yes, insert cost below. If you selected no the cost will be estimated.
B21: Biochar cost ($/yd) | D21: =IF($C$19="No", 375,C21) -> 375
B22: Biochar volume (yd) | C22: =(C11*1*0.085)/27 -> 3.148148148 | D22: *See Footnote 3
B23: Estimated Phosphorus Removal | C23: =IF($C$18="Yes",'GI Environmental data'!$AD$43, "-") -> - | D23: *Values based on aged material column study results from this study
B24: Estimated Nitrate Removal | C24: =IF($C$18="Yes",'GI Environmental data'!$AF$43, "-") -> -
B25: Estimated Nitrite Removal | C25: =IF($C$18="Yes",'GI Environmental data'!$AG$43, "-") -> -
B26: Estimated Ammonia Removal (%) | C26: =IF($C$18="Yes",'GI Environmental data'!$AE$43, "-") -> -
A28: Site Vegetation
B29: Flowering vegetation(% of total site) | C29: 0
B30: Native vegetation (% of total site) | C30: 0 | D30: List of Native Species
B31: Number of different plant species | C31: 0 | D31: *See Footnote 4
E37: Social Co-Benefits

Sheet Results
B4: Parameter
B5: Carbon Sequestered (lbs/yr)
A6: Environmental
B7: PM10 removal (lbs/yr)
B8: Ozone removal (lbs/yr)
B9: PM2.5 removal
B11: Dissolved Phosphorus Uptake/Deposition (lbs/yr)
B12: Dissolved Nitrogen Uptake/Deposition (lb/yr)
B13: NOx Uptake/Deposition (lbs/yr)
B14: Reduced Stormwater Mitigation (gal/yr)
A16: Social | B16: Willingness to pay (population)
B17: Aesthetic Potential
B18: Asthma Incidence Reduction Potential (%)
B19: Education Improvement Potential (%)
B20: Economically Disadvantaged (%)
B21: Non-white Population (%)
B22: Potential to Improve Lack of Green Space
A24: Economic | B24: Construction Costs ($)
B25: Annual Maintenance Costs ($/yr)
B26: Biochar Materials Cost ($)
B27: Maximum Property Value Increase (Per Household)
A28: Ecosystem
B29: Pollinator Support
B30: Native Habitat Support
B31: Biodiversity Support

Sheet Parameters
A1: County | B1: Property value ($) | C1: Green Space (%) | D1: Asthma (%) | E1: Total population | F1: Ozone design value (ppm) | G1: Census Tract Code | I1: Property Increase rate (%) | J1: Property Increase rate (%) | K1: WTP | L1: Construction Estimate | M1: Construction Units | N1: Construction costs | O1: Maintenenace Estimate | P1: Maintenenace Units | Q1: Maintenenace Costs | R1: Total Costs | S1: Unit Cost/Gal CSO Reduced ($/gal)
A2: Alamance | B2: 273592 | C2: 0.7848633273 | D2: 0.075 | E2: 166144 | H2: GI Type | I2: Min (%) | J2: Max(%) | K2: PVC | L2: CE ($/SF) | M2: CU | N2: CC (Total $) | O2: ME | P2: MU | Q2: MC | R2: TC | V2: Avoid Costs /Gal CSO Reduced ($/gal) (The city of lancaster - Green Infrastructrue Plan,2011)
A3: Alexander | B3: 241330 | C3: 0.8843481022 | D3: 0.078 | E3: 37271 | F3: 0.059 | H3: Detention Basin | J3: 0.0023 | K3: 0.52 | L3: 36.93 | M3: ='NEW Economic'!$B$8 -> 1 | N3: =L3*M3*Dashboard!$C$11 -> 36930 | O3: 1.84 | P3: ='NEW Economic'!$B$9 -> 1 | Q3: =O3*P3*Dashboard!$C$11 -> 1840 | R3: =SUM(N3,Q3) -> 38770 | S3: 0.28
A4: Alleghany | B4: 253818 | C4: 0.8404636654 | D4: 0.131 | E4: 11085 | H4: Roadside Swale | I4: 0.0038 | J4: 0.0069 | K4: 0.52 | L4: 36.93 | M4: ='NEW Economic'!$B$8 -> 1 | N4: =L4*M4*Dashboard!$C$11 -> 36930 | O4: 1.84 | P4: ='NEW Economic'!$B$9 -> 1 | Q4: =O4*P4*Dashboard!$C$11 -> 1840 | R4: =SUM(N4,Q4) -> 38770 | S4: 0.28
A5: Anson | C5: 0.9216292983 | D5: 0.07 | E5: 24430 | H5: Retention Pond | J5: 0.0023 | K5: 0.52 | L5: 36.93 | M5: ='NEW Economic'!$B$8 -> 1 | N5: =L5*M5*Dashboard!$C$11 -> 36930 | O5: 1.84 | P5: ='NEW Economic'!$B$9 -> 1 | Q5: =O5*P5*Dashboard!$C$11 -> 1840 | R5: =SUM(N5,Q5) -> 38770 | S5: 0.52
A6: Ashe | B6: 296974 | C6: 0.9305444562 | D6: 0.131 | E6: 27009 | H6: Roadside vegetation (Grass) | I6: 0.0038 | J6: 0.0069 | K6: 0.57 | L6: 0.7 | M6: ='NEW Economic'!$B$8 -> 1 | N6: =L6*M6*Dashboard!$C$11 -> 700 | O6: 0.12 | P6: ='NEW Economic'!$B$9 -> 1 | Q6: =O6*P6*Dashboard!$C$11 -> 120 | R6: =SUM(N6,Q6) -> 820 | S6: 0.35
A7: Avery | B7: 253075 | C7: 0.9679619192 | D7: 0.089 | E7: 17510 | F7: 0.06
A8: Beaufort | B8: 221095 | C8: 0.8079307224 | D8: 0.085 | E8: 47160 | H8: References for input page | I8: Yes | L8: =VLOOKUP(Dashboard!$C$10,$H$3:$O$6,5,FALSE) -> 36.93 | O8: =VLOOKUP(Dashboard!$C$10,$H$3:$O$6,8,FALSE) -> 1.84
A9: Bertie | B9: 123044 | C9: 0.8991212355 | D9: 0.085 | E9: 19081 | I9: No
A10: Bladen | B10: 141746 | C10: 0.9287249003 | D10: 0.076 | E10: 33209
A11: Brunswick | B11: 417943 | C11: 0.6857068768 | D11: 0.076 | E11: 137303
A12: Buncombe | B12: 445378 | C12: 0.912043648 | D12: 0.089 | E12: 259576 | F12: 0.059 | M12: Scenario 1 | O12: Result
A13: Burke | B13: 228024 | C13: 0.7702250641 | D13: 0.089 | E13: 90148 | H13: ECOSYSTEM | I13: Flowering Vegetation | J13: Native Vegetation | K13: Plant Species | M13: =Results!C29 -> 0 | N13: Pollinator Support | O13: =VLOOKUP(M13,$H$14:$L$17,5,FALSE) ->  | P13: =1-O13 ->  | Q13: 1
A14: Cabarrus | B14: 385914 | C14: 0.7008471196 | D14: 0.078 | E14: 211605 | H14: Unlikely | I14: 0 | J14: 0 | K14: 0 | L14: 0 | M14: =Results!C30 -> 0 | N14: Native Habitat Support | O14: =VLOOKUP(M14,$H$14:$L$17,5,FALSE) ->  | P14: =1-O14 ->  | Q14: 1 | AI14: v
A15: Caldwell | B15: 207956 | C15: 0.8406500243 | D15: 0.089 | E15: 82056 | F15: 0.059 | H15: Possible | I15: 1 to 25 | J15: 1 to 25 | K15: 1 to 3 | L15: 0.25 | M15: =Results!C31 -> 0 | N15: Bio Diversity Support | O15: =VLOOKUP(M15,$H$14:$L$17,5,FALSE) ->  | P15: =1-O15 ->  | Q15: 1
A16: Camden | B16: 380673 | C16: 0.9485897602 | D16: 0.085 | E16: 10654 | H16: Likely | I16: 25 to 50 | J16: 25 to 50 | K16: 4 to 7 | L16: 0.5
A17: Carteret | B17: 432268 | C17: 0.3195649431 | D17: 0.085 | E17: 69301 | F17: 0.058 | H17: Very Likely | I17: Greater than 50 | J17: Greater than 50 | K17: 7 to 10 | L17: 1 | M17: Scenario2 | O17: Result
A18: Caswell | B18: 172864 | C18: 0.9304914127 | D18: 0.075 | E18: 22619 | F18: 0.058 | H18: GI TYPE | I18: CE | J18: ME | M18: =Results!D29 -> 0 | N18: Pollinator Support | O18: =VLOOKUP(M18,$H$14:$L$17,5,FALSE) ->  | P18: =1-O18 ->  | Q18: 1
A19: Catawba | B19: 270107 | C19: 0.7109811157 | D19: 0.078 | E19: 158507 | H19: Rain Barrel | I19: 2 | J19: 0.55 | M19: =Results!D30 -> 0 | N19: Native Habitat Support | O19: =VLOOKUP(M19,$H$14:$L$17,5,FALSE) ->  | P19: =1-O19 ->  | Q19: 1
A20: Chatham | B20: 550260 | C20: 0.8704302725 | D20: 0.075 | E20: 72853 | H20: Cistern | I20: 1.37 | J20: 0.14 | M20: =Results!D31 -> 0 | N20: Bio Diversity Support | O20: =VLOOKUP(M20,$H$14:$L$17,5,FALSE) ->  | P20: =1-O20 ->  | Q20: 1
A21: Cherokee | B21: 251672 | C21: 0.9474149638 | D21: 0.089 | E21: 28413 | H21: Perimeter Drain | I21: 45 | J21: 0
A22: Chowan | B22: 218335 | C22: 0.673484301 | D22: 0.085 | E22: 13995 | H22: Rain Garden | I22: 6.07 | J22: 0.41 | M22: Scenario2 | O22: Result
A23: Clay | B23: 304644 | C23: 0.9872340233 | D23: 0.089 | E23: 11150 | H23: Drywell | I23: 250 | J23: 20 | M23: =Results!E29 -> 0 | N23: Pollinator Support | O23: =VLOOKUP(M23,$H$14:$L$17,5,FALSE) ->  | P23: =1-O23 ->  | Q23: 1
A24: Cleveland | B24: 220774 | C24: 0.8100181724 | D24: 0.078 | E24: 97765 | H24: Amended Soil | I24: 0.29 | J24: 0 | M24: =Results!E30 -> 0 | N24: Native Habitat Support | O24: =VLOOKUP(M24,$H$14:$L$17,5,FALSE) ->  | P24: =1-O24 ->  | Q24: 1
A25: Columbus | B25: 151919 | C25: 0.9545078726 | D25: 0.076 | E25: 55659 | H25: Bio-swales | I25: 17.58 | J25: 0.26 | M25: =Results!E31 -> 0 | N25: Bio Diversity Support | O25: =VLOOKUP(M25,$H$14:$L$17,5,FALSE) ->  | P25: =1-O25 ->  | Q25: 1
A26: Craven | B26: 240828 | C26: 0.8700162407 | D26: 0.085 | E26: 102290 | H26: Urban Farming | I26: 0.29 | J26: 0
A27: Cumberland | B27: 199366 | C27: 0.7530251281 | D27: 0.07 | E27: 334562 | F27: 0.06 | H27: Vegetation Filter Strip | I27: 0.59 | J27: 0.04 | N27: Scenario 1 | O27: Scenario 2 | P27: Scenario 3
A28: Currituck | B28: 544151 | C28: 0.3909085593 | D28: 0.085 | E28: 27210 | H28: Native Vegetation | I28: 0.19 | J28: 0.05
A29: Dare | B29: 607773 | C29: 0.2405237901 | D29: 0.085 | E29: 36698 | H29: Parking Lot Swales | I29: 36.93 | J29: 1.83 | N29: Value | O29: Value | P29: Value
A30: Davidson | B30: 239397 | C30: 0.7837998911 | D30: 0.131 | E30: 166837 | H30: Roadside Swales | I30: 36.93 | J30: 1.84 | N30: 1 | O30: 2 | P30: 3
A31: Davie | B31: 280001 | C31: 0.8866860351 | D31: 0.131 | E31: 42543 | H31: Permeable Paving: | N31: 1 | O31: 2 | P31: 3
A32: Duplin | B32: 149174 | C32: 0.8976673958 | D32: 0.076 | E32: 58965 | H32: Permeable Patio | I32: 8.68 | J32: 0.02 | N32: 1 | O32: 2 | P32: 3
A33: Durham | B33: 415068 | C33: 0.5871275854 | D33: 0.075 | E33: 317665 | F33: 0.059 | H33: Permeable Parking | I33: 8.68 | J33: 0.03 | N33: 1 | O33: 2 | P33: 3
A34: Edgecombe | B34: 115657 | C34: 0.9263726408 | D34: 0.082 | E34: 52069 | F34: 0.058 | H34: Permeable Sidewalk | I34: 8.68 | J34: 0.04
A35: Forsyth | B35: 261378 | C35: 0.5748051177 | D35: 0.131 | E35: 378499 | F35: 0.064 | H35: Permeable Driveway | I35: 8.68 | J35: 0.05
A36: Franklin | B36: 343067 | C36: 0.8902879145 | D36: 0.082 | E36: 68027
A37: Gaston | B37: 301882 | C37: 0.6554374713 | D37: 0.078 | E37: 222119 | H37: Finance Data
A38: Gates | B38: 209733 | C38: 0.9077757261 | D38: 0.085 | E38: 11519 | H38: Financial cost estimates are based on a net present value calculation which assumes a 3.1% discount rate over a 30 year life-cycle for all green and conventional investments.
A39: Graham | B39: 227108 | C39: 0.8729604022 | D39: 0.089 | E39: 8501 | F39: 0.062 | H39: Discount Rate: 3.1 %
A40: Granville | B40: 292627 | C40: 0.9020927249 | D40: 0.082 | E40: 59823 | F40: 0.06 | H40: Life Cycle: 30 years
A41: Greene | B41: 156671 | C41: 0.927379765 | D41: 0.085 | E41: 20987
A42: Guilford | B42: 260014 | C42: 0.6126354404 | D42: 0.075 | E42: 532956 | F42: 0.062 | H42: EPA Cost Savings Calculator for Pollution Prevention Projects | I42: For more details, click here
A43: Halifax | B43: 107482 | C43: 0.9205505513 | D43: 0.082 | E43: 50678
A44: Harnett | B44: 270346 | C44: 0.8614884994 | D44: 0.07 | E44: 134328
A45: Haywood | B45: 332303 | C45: 0.7921283072 | D45: 0.089 | E45: 61862 | F45: 0.062
A46: Henderson | B46: 414054 | C46: 0.7065766644 | D46: 0.089 | E46: 116298 | J46: Scenario1 | N46: Scenario2 | R46: Scenario3
A47: Hertford | B47: 178840 | C47: 0.9122339327 | D47: 0.085 | E47: 23752 | H47: Willingness to pay | J47: =Results!C16 -> 0 | K47: =J47/'NEW Social'!$B$23 -> 0 | L47: =1-K47 -> 1 | M47: 1 | N47: =Results!D16 -> 0 | O47: =N47/'NEW Social'!$B$23 -> 0 | P47: =1-O47 -> 1 | Q47: 1 | R47: =Results!E16 -> 0 | S47: =R47/'NEW Social'!$B$23 -> 0 | T47: =1-S47 -> 1 | U47: 1
A48: Hoke | B48: 227191 | C48: 0.8555331851 | D48: 0.07 | E48: 54590 | H48: Aesthetic Potential | J48: =Results!C17 -> 0 | K48: =VLOOKUP(J48,$H$52:$I$53,2,FALSE) ->  | M48: 1 | N48: =Results!D17 -> 0 | O48: =VLOOKUP(N48,$H$52:$I$53,2,FALSE) ->  | P48: =1-O48 ->  | Q48: 1 | R48: =Results!E17 -> 0 | S48: =VLOOKUP(R48,$H$52:$I$53,2,FALSE) ->  | T48: =1-S48 ->  | U48: 1
A49: Hyde | B49: 210311 | C49: 0.3467455158 | D49: 0.085 | E49: 5089 | H49: Asthma Incidence Reduction Potential | J49: =Results!C18 -> 0 | K49: =J49 -> 0 | L49: 1 | M49: 1 | N49: =Results!D18 -> 0 | O49: =N49 -> 0 | P49: =1-O49 -> 1 | Q49: 1 | R49: =Results!E18 -> 0 | S49: =R49 -> 0 | T49: =1-S49 -> 1 | U49: 1
A50: Iredell | B50: 374511 | C50: 0.7734915737 | D50: 0.078 | E50: 178853 | H50: Potential to improve lack of green space | J50: =Results!C22 -> 0 | K50: =VLOOKUP(J50,$H$52:$I$53,2,FALSE) ->  | M50: 1 | N50: =Results!D22 -> 0 | O50: =VLOOKUP(N50,$H$52:$I$53,2,FALSE) ->  | P50: =1-O50 ->  | Q50: 1 | R50: =Results!E22 -> 0 | S50: =VLOOKUP(R50,$H$52:$I$53,2,FALSE) ->  | T50: =1-S50 ->  | U50: 1
A51: Jackson | B51: 394820 | C51: 0.9018320266 | D51: 0.089 | E51: 43435 | H51: Lookup for rating above metrics
A52: Johnston | B52: 344397 | C52: 0.8520007197 | D52: 0.082 | E52: 203308 | F52: 0.059 | H52: Yes | I52: 1
A53: Jones | B53: 136180 | C53: 0.9029483614 | D53: 0.085 | E53: 9453 | H53: No | I53: 0
A54: Lee | B54: 240748 | C54: 0.8302391914 | D54: 0.07 | E54: 61083
A55: Lenoir | B55: 142547 | C55: 0.8646369017 | D55: 0.085 | E55: 56350 | F55: 0.06
A56: Lincoln | B56: 382256 | C56: 0.7874723317 | D56: 0.078 | E56: 84580 | F56: 0.06
A57: Macon | B57: 324262 | C57: 0.8179349904 | D57: 0.089 | E57: 35172 | F57: 0.057
A58: Madison | B58: 330183 | C58: 0.912119844 | D58: 0.089 | E58: 21608
A59: Martin | B59: 120677 | C59: 0.9350273718 | D59: 0.085 | E59: 22644 | F59: 0.057
A60: McDowell | B60: 204951 | C60: 0.8930044088 | D60: 0.089 | E60: 45402
A61: Mecklenburg | B61: 415606 | C61: 0.2987040051 | D61: 0.078 | E61: 1095170 | F61: 0.067
A62: Mitchell | B62: 227382 | C62: 0.8652871526 | D62: 0.089 | E62: 14959
A63: Montgomery | B63: 189456 | C63: 0.905970482 | D63: 0.07 | E63: 27223 | F63: 0.056
A64: Moore | B64: 401241 | C64: 0.8682434256 | D64: 0.07 | E64: 99263
A65: Nash | B65: 216111 | C65: 0.8674113296 | D65: 0.082 | E65: 94287
A66: New Hanover | B66: 402310 | C66: 0.2890761335 | D66: 0.076 | E66: 231448 | F66: 0.058
A67: Northampton | B67: 115953 | C67: 0.943326531 | D67: 0.085 | E67: 19672
A68: Onslow | B68: 247644 | C68: 0.7335272164 | D68: 0.076 | E68: 198377
A69: Orange | B69: 490148 | C69: 0.8273129189 | D69: 0.075 | E69: 146354
A70: Pamlico | B70: 264627 | C70: 0.5425906704 | D70: 0.085 | E70: 12673
A71: Pasquotank | B71: 227957 | C71: 0.6337263876 | D71: 0.085 | E71: 39775
A72: Pender | B72: 415154 | C72: 0.9151586086 | D72: 0.076 | E72: 61891
A73: Perquimans | B73: 256327 | C73: 0.6876934522 | D73: 0.085 | E73: 13513
A74: Person | B74: 213182 | C74: 0.87514702 | D74: 0.075 | E74: 39561 | F74: 0.059
A75: Pitt | B75: 222644 | C75: 0.8634588885 | D75: 0.085 | E75: 179961 | F75: 0.06
A76: Polk | B76: 347248 | C76: 0.8989938345 | D76: 0.089 | E76: 20682
A77: Randolph | B77: 217811 | C77: 0.857093777 | D77: 0.075 | E77: 143460
A78: Richmond | B78: 111387 | C78: 0.8666581291 | D78: 0.07 | E78: 44759
A79: Robeson | B79: 119469 | C79: 0.8949519036 | D79: 0.076 | E79: 131656
A80: Rockingham | B80: 167388 | C80: 0.8606950284 | D80: 0.075 | E80: 91051 | F80: 0.06
A81: Rowan | B81: 245444 | C81: 0.7978963821 | D81: 0.078 | E81: 140978 | F81: 0.061
A82: Rutherford | B82: 217795 | C82: 0.937070743 | D82: 0.089 | E82: 66741
A83: Sampson | B83: 148574 | C83: 0.9259870691 | D83: 0.076 | E83: 63284
A84: Scotland | B84: 118436 | C84: 0.8722485728 | D84: 0.07 | E84: 34921
A85: Stanley | C85: 0.8500632459 | D85: 0.078 | E85: 62050
A86: Stokes | B86: 196860 | C86: 0.8957403743 | D86: 0.131 | E86: 45688
A87: Surry | B87: 195242 | C87: 0.8744411818 | D87: 0.131 | E87: 71904
A88: Swain | B88: 278824 | C88: 0.9562423342 | D88: 0.089 | E88: 14241 | F88: 0.058
A89: Transylvania | B89: 398014 | C89: 0.9022675929 | D89: 0.089 | E89: 34039
A90: Tyrrell | B90: 132552 | C90: 0.7645429181 | D90: 0.085 | E90: 3978
A91: Union | B91: 447727 | C91: 0.817680102 | D91: 0.078 | E91: 235767 | F91: 0.063
A92: Vance | B92: 140120 | C92: 0.8036904485 | D92: 0.082 | E92: 44614
A93: Wake | B93: 489386 | C93: 0.5515980987 | D93: 0.082 | E93: 1091662 | F93: 0.06
A94: Warren | B94: 185167 | C94: 0.9088432688 | D94: 0.082 | E94: 19746
A95: Washington | B95: 101429 | C95: 0.7506131074 | D95: 0.085 | E95: 11788
A96: Watauga | B96: 472085 | C96: 0.8329357324 | D96: 0.131 | E96: 55669
A97: Wayne | B97: 216082 | C97: 0.8460500853 | D97: 0.085 | E97: 123785
A98: Wilkes | B98: 216082 | C98: 0.9213209933 | D98: 0.131 | E98: 68341
A99: Wilson | B99: 190531 | C99: 0.8427677822 | D99: 0.082 | E99: 81579
A100: Yadkin | B100: 221423 | C100: 0.8774212574 | D100: 0.131 | E100: 37589 | F100: 0.062
A101: Yancey | C101: 0.9134458286 | D101: 0.089 | E101: 17870
A103: North Carolina | B103: 329551 | C103: =MEDIAN(C2:C101) -> 0.8649620272 | D103: =MEDIAN(D2:D101) -> 0.085 | E103: 10386227

Sheet NEW Environmental
A1: Input Parameters
A2: Literary-Based Parameter | B2: Value | C2: Unit | D2: Notes
A3: Carbon Sequestration | D3: Carbon and air quality rates were obtained from i-Tree data for urban areas (See GI Environmental tab for details)
A4: Tree sequestration rate | B4: ='GI Environmental data'!$C$12 -> 2.6035e-05 | C4: lbs C/SF/yr
A5: Grass sequestration rate | B5: ='GI Environmental data'!$C$13 -> 9.225e-11 | C5: lbs C/SF/yr
A6: Shrub sequestration rate | B6: ='GI Environmental data'!$C$14 -> 0.00328 | C6: lbs C/SF/yr
A8: Improved Air Quality
A9: PM10 uptake | B9: =IF(Dashboard!$C$29>0,'GI Environmental data'!$G$12,0) -> 0 | C9: lbs PM10/SF/yr
A10: Ozone uptake | B10: =IF(Dashboard!$C$29>0,'GI Environmental data'!$E$14+'GI Environmental data'!$E$13,'GI Environmental data'!$E$12) -> 0.00110782 | C10: lbs O3/SF/yr
A11: PM2.5 uptake | B11: =IF(Dashboard!$C$29>0,'GI Environmental data'!$I$14+'GI Environmental data'!$I$13,'GI Environmental data'!$I$12) -> 5.658e-05 | C11: lbs PM2.5/SF/yr
A13: Improved Water Quality
A14: Phosphorus uptake/deposition | B14: =VLOOKUP(Dashboard!$C$10,'GI Environmental data'!$A$4:$AA$7,5, FALSE)*B27 -> 1.051520904e-06 | C14: lbs P/gal | D14: Kjedahl N accounted for dissolved nitrogen in soil and water concentrations from influent and effluent values within BMPs
A15: Nitrogen uptake/deposition | B15: =VLOOKUP(Dashboard!$C$10,'GI Environmental data'!$A$4:$AA$7,13, FALSE)*B27 -> 3.58852372e-06 | C15: lbs N/gal
A16: Ammonia uptake/deposition | B16: =IF(Dashboard!$C$18="Yes",VLOOKUP(Dashboard!$C$10,'GI Environmental data'!$A$4:$AG$7,33,FALSE)*B27,VLOOKUP(Dashboard!$C$10,'GI Environmental data'!$A$4:$AA$7,25,FALSE)*B27) -> 2.67052928e-06 | C16: lbs NH3/gal
A17: Dissolved phosphorus uptake/deposition | B17: =IF(Dashboard!$C$18="Yes",VLOOKUP(Dashboard!$C$10,'GI Environmental data'!$A$4:$AG$7,29,FALSE)*$B$27,VLOOKUP(Dashboard!$C$10,'GI Environmental data'!$A$4:$AA$7,9,FALSE)*$B$27) -> 5.407821792e-07 | C17: lbs P/gal
A18: Dissolved nitrogen uptake/deposition | B18: =VLOOKUP(Dashboard!$C$10,'GI Environmental data'!$A$4:$AA$7,17,FALSE)*$B$27 -> 2.67052928e-06 | C18: lbs N/gal
A19: NOx uptake/deposition | B19: =IF(Dashboard!$C$18="Yes",VLOOKUP(Dashboard!$C$10,'GI Environmental data'!$A$4:$AG$7,31,FALSE)*B27,VLOOKUP(Dashboard!$C$10,'GI Environmental data'!$A$4:$AA$7,21,FALSE)*B27) -> 1.977860748e-06 | C19: lbs NOx/gal
A22: Reduced Stormwater Mitigation
A23: Annual Precipitation | B23: =VLOOKUP(Dashboard!C7,'GI Environmental data'!B22:C69,2,FALSE) -> 43.6 | C23: inches | D23: Runoff reduction rates are from simulated literary values for each GI type
A24: Percent runoff volume retention | B24: =IF(Dashboard!$C$18="Yes",VLOOKUP(Dashboard!$C$10,'GI Environmental data'!$A$4:$AA$7,27, FALSE),VLOOKUP(Dashboard!$C$10,'GI Environmental data'!$A$4:$AA$7,26,FALSE)) -> 0.15 | C24: %
A25: Conversion (Precipitation) factor | B25: 144 | C25: sq. inch/SF
A26: Conversion (Precipitation) factor | B26: 0.00433 | C26: gallons/cubic inch
A27: Conversion factor (mg/L to lbs/gal) | B27: 8.345404e-06
A29: Calculations
A30: Parameter | B30: Value | C30: Unit | D30: Notes
A31: Carbon Sequestration
A32: Carbon Sequestered | B32: =SUMPRODUCT(Dashboard!$C$11*B4:B6) -> 3.306035092 | C32: lbs C
A37: Improved Air Quality
A38: Particulate Matter (10) removal | B38: =B9*Dashboard!$C$11 -> 0 | C38: lbs PM10/yr
A39: Ozone removal | B39: =B10*Dashboard!$C$11 -> 1.10782 | C39: lbs O3/yr
A40: Particulate Matter (2.5) removal | B40: =B11*Dashboard!$C$11 -> 0.05658 | C40: lbs PM2.5/yr
A42: Improved Water Quality
A43: Annual phosphorus uptake/deposition | B43: =B14*$B$51 -> 0.004287913814 | C43: lbs P
A44: Annual nitrogen uptake/deposition | B44: =B15*$B$51 -> 0.01463335667 | C44: lbs N
A45: Annual ammonia uptake/deposition | B45: =B16*$B$51 -> 0.01088993984 | C45: lbs NH3
A46: Annual dissolved phosphorus uptake/deposition | B46: =B17*$B$51 -> 0.002205212819 | C46: lbs P
A47: Annual dissolved nitrogen uptake/deposition | B47: =B18*$B$51 -> 0.01088993984 | C47: lbs N
A48: Annual NOx uptake/deposition | B48: =IF(Dashboard!$C$18="Yes", B19*$B$51*(100+Dashboard!C24), B19*$B$51) -> 0.008065361698 | C48: lbs NOx
A50: Reduced Stormwater Mitigation
A51: Runoff reduction | B51: =B23*B24*B25*B26*Dashboard!$C$11 -> 4077.8208 | C51: gal
A55: Results
A56: Parameter | B56: Value | C56: Units
A57: Carbon Sequestered | B57: =B32 -> 3.306035092 | C57: lbs C
A59: Improved Air Quality
A60: Particulate Matter (10) removal | B60: =B38 -> 0 | C60: lbs PM10/yr
A61: Ozone removal | B61: =B39 -> 1.10782 | C61: lbs O3/yr
A62: Particulate Matter (2.5) removal | B62: =B40 -> 0.05658 | C62: lbs PM2.5/yr
A64: Improved Water Quality
A65: Dissolved phosphorus uptake/deposition | B65: =B46 -> 0.002205212819 | C65: lbs P/yr
A66: Dissolved nitrogen uptake/deposition | B66: =B47 -> 0.01088993984 | C66: lbs N/yr
A67: NOx uptake/deposition | B67: =B48 -> 0.008065361698 | C67: lbs NOx/yr
A68: Total phosphorus uptake/deposition | B68: =B43 -> 0.004287913814 | C68: lbs P/yr
A69: Total nitrogen uptake/deposition | B69: =B44 -> 0.01463335667 | C69: lbs N/yr
A70: Ammonia uptake/deposition | B70: =B45 -> 0.01088993984 | C70: lbs NH3/yr
A72: Reduced Stormwater Mitigation | B72: =ROUNDUP(B51,0) -> 4078 | C72: gal/yr

Sheet NEW Social
A1: Input Parameters
A2: Literary-Based Parameter | B2: Value | C2: Unit | D2: Notes
A3: Willingness to pay
A5: Population of the selected location | B5: =VLOOKUP(Dashboard!C6,Parameters!$A$2:$E$102,5,FALSE) -> 19672 | D5: Number of residents exposed to GI type
A6: Public Value Coefficient | B6: =VLOOKUP(Dashboard!C10,Parameters!H2:K10,4,FALSE) -> 0.52 | D6: Residents preference based on survey
A7: Aesthetic Potential
A8: County wise property value | B8: =VLOOKUP(Dashboard!C6,Parameters!A3:B100,2,FALSE) -> 115953 | D8: Median property value by county
A9: Statewide property value | B9: =Parameters!B2 -> 273592 | D9: Median property value by state
A10: Asthma Incidence Reduction Potential
A11: Asthma Occurrence | B11: =VLOOKUP(Dashboard!C6,Parameters!A1:D101,4,FALSE) -> 0.085 | D11: The percentage of self-reported asthma cases in the county as per Behavioral Risk Factor Surveillance System (BRFSS) survey
A12: Education Improvement Potential
A13: Academic advancement | B13: =VLOOKUP(Dashboard!$C$8,'CT ID_ACS_2020'!$B$1:$E$2673,2,FALSE) -> 0.1624347826 | D13: The prospect of strengthening future education by taking into account the proportion of individuals under 18 as per 2020 5-year intervals data by the American Community Survey data
A14: Potential to improve environmental justice
A15: Economically Deprived | B15: =VLOOKUP(Dashboard!$C$8,'CT ID_ACS_2020'!$B$1:$E$2673,3,FALSE) -> 0.07991202346 | D15: Percentage of population below poverty line countywise as per 2020 5-year intervals data by the American Community Survey data
A16: Non white population | B16: =VLOOKUP(Dashboard!$C$8,'CT ID_ACS_2020'!$B$1:$E$2673,4,FALSE) -> 0.548173913 | D16: Percentage of non white population countywise as per 2020 5-year intervals data by the American Community Survey data
A17: Potential to improve lack of green space
A18: Percentage of urban green space for selected county | B18: =VLOOKUP(Dashboard!C6,Parameters!A1:C101,3,FALSE) -> 0.943326531 | D18: Percentage of vegetation cover excluding impervious surfaces in urban areas as per National Landcover Dataset by United States of Department Of America
A19: Percentage of median value for urban green space | B19: =Parameters!C103 -> 0.8649620272
A20: Calculations
A21: Parameter | B21: Value | C21: Unit | D21: Notes
A22: Willingness to pay (Social Acceptance)
A23: =A5 -> Population of the selected location | B23: =B5 -> 19672
A24: =A6 -> Public Value Coefficient | B24: =B6 -> 0.52
A25: Social acceptance of GI | B25: =ROUNDUP((B23*B24),0) -> 10230
A26: Aesthetic Potential
A27: County wise average property value | B27: =B8 -> 115953
A28: Rating | B28: =IF(B8<B9,"YES","NO") -> YES
A29: Asthma Incidence Reduction Potential
A30: Asthma Occurrence | B30: =B11 -> 0.085 | D30: The percentage of self-reported asthma cases in the county as per Behavioral Risk Factor Surveillance System (BRFSS) survey
A31: Education Improvement Potential
A32: Academic Advancement | B32: =B13 -> 0.1624347826 | D32: The prospect of strengthening future education by taking into account the proportion of individuals under 18 as per 2020 5-year intervals data by the American Community Survey data
A33: Potential to improve environmental justice
A34: Economically Deprived | B34: =B15 -> 0.07991202346 | D34: Percentage of population below poverty line countywise as per 2020 5-year intervals data by the American Community Survey data
A35: Non white population | B35: =B16 -> 0.548173913 | D35: Percentage of non white population countywise as per 2020 5-year intervals data by the American Community Survey data
A36: Potential to improve lack of green space
B37: =IF(B18<B19,"YES","NO") -> NO
A40: Results
A41: Parameter | B41: Value | C41: Units | D41: Notes
A42: Willingness to pay | B42: =B25 -> 10230
A44: Aesthetic Potential | B44: =B28 -> YES
A47: Asthma Incidence Reduction Potential | B47: =B30 -> 0.085
A49: Education Improvement Potential | B49: =B32 -> 0.1624347826
A51: Potential to improve environmental justice
A52: Economically disadvantaged | B52: =B34 -> 0.07991202346
A53: Non white population | B53: =B35 -> 0.548173913
A54: Potential to improve lack of green space | B54: =B37 -> NO

Sheet NEW Economic
A1: Input Parameters
A2: Literary-Based Parameter | B2: Value | C2: Unit | D2: Notes
A3: Literary Inputs
A4: Costs
A5: GI Costs | D5: Costs associated with construction and maintenance of green infrastructure as per CNT Calculator
A6: Construction Unit cost (state default value) | B6: =VLOOKUP(Dashboard!C10,Parameters!H2:R10,5,FALSE) -> 36.93 | C6: $/SF
A7: Annual Maintenance Unit Costs (state default value) | B7: =VLOOKUP(Dashboard!C10,Parameters!H2:O10,8,FALSE) -> 1.84 | C7: $/SF/yr
A8: Construction Units (CU) | B8: 1
A9: Maintenance Units (MU) | B9: 1
A10: Benefits
A11: Reduced Stormwater Treatment Needs | D11: The cost that is avoided by using GI instead of conventional grey techniques for CSO control by Lancaster GI Plan
A12: Unit Cost of | B12: =VLOOKUP(Dashboard!C10,Parameters!H2:S6,12,FALSE) -> 0.52 | C12: $/gal
A13: Runoff Reduced | B13: =ROUNDUP('NEW Environmental'!B51,0) -> 4078 | C13: gal | D13: The annual amount of runoff volume captured by GI
A15: Increase in property values | J15: =0.23*4500*0.33 -> 341.55
A16: Selected County Median Property Value | B16: =VLOOKUP(Dashboard!C6,Parameters!A1:B101,2,FALSE) -> 115953 | D16: Median Property Value in the Specified Location | J16: =3.4*4500 -> 15300
A17: Minimum Property Value | B17: =VLOOKUP(Dashboard!C10,Parameters!H2:J6,2,FALSE) -> 0 | D17: Minimum rise in property values by BMP selection as per CNT
A18: Maximum Property value | B18: =VLOOKUP(Dashboard!C10,Parameters!H2:J6,3,FALSE) -> 0.0023 | D18: Maximum rise in property values by BMP selection as per CNT
A19: Calculations
A20: Parameter | B20: Value | C20: Unit
A21: GI Costs
A22: Construction Costs (user defined or pre defined) | B22: =IF(Dashboard!$C$12="No", ROUNDUP($B$6*Dashboard!$C$11*$B$8,0), ROUNDUP(($B$8*Dashboard!$D$15*Dashboard!$C$11),0)) -> 36930
A23: Annual Maintenance Costs (user defined or pre defined) | B23: =IF(Dashboard!$C$12="No", ROUNDUP($B$7*Dashboard!$C$11*$B$9,0), ROUNDUP($B$9*Dashboard!$C$16*Dashboard!$C$11,0)) -> 1840
A24: Biochar cost | B24: =IF(Dashboard!$C$18="Yes",Dashboard!$D$21*Dashboard!$C$22, 0) -> 0
A25: Reduced Stormwater Treatment Needs
A26: Avoided costs | B26: =ROUNDUP(B12,3) -> 0.52 | C26: $/gal
A27: Savings from green infrastructure | B27: =ROUNDUP(($B$13*B26),0) -> 2121
A29: Increase in property values
A30: Selected county Median Property Value | B30: =ROUNDUP(B16,0) -> 115953
A31: Minimum Property Value Increase | B31: =$B$30*B17 -> 0
A32: Maximum Property value Increase | B32: =ROUNDUP($B$30*B18,0) -> 267
A34: Results
A35: Parameter | B35: Value | C35: Units
A36: Costs
A37: GI Costs
A38: Construction Costs | B38: =B22 -> 36930
A39: Annual Maintenance Costs | B39: =$B$23 -> 1840
A40: Biochar Addition Cost | B40: =$B$24 -> 0
A41: Benefits
A42: Increase in property values
A43: Minimum Property Value Increase | B43: =B31 -> 0
A44: Maximum Property value Increase | B44: =B32 -> 267

Sheet Ecosystem
A1: Input Parameters
A2: Literary-Based Parameter | B2: Value | C2: Unit | D2: Notes
A3: Benefits
A4: Flowering Vegetation | B4: =Dashboard!C29 -> 0 | C4: % | D4: Percentage of flowering vegetation on the site of GI installation
A5: Native Vegetation | B5: =Dashboard!C30 -> 0 | C5: % | D5: Percentage of native plant on the site of GI installation
A6: Plant Species | B6: =Dashboard!C31 -> 0 | C6: No's | D6: Number of plant species of the plant on the site of GI installation
A7: Calculations
A8: Parameter | B8: Value | C8: Unit | D8: Notes
A9: Pollinator Support | B9: =IF(Dashboard!C29=0, "Unlikely", IF(Dashboard!C29=Parameters!I15, "Possible", IF(Dashboard!C29=Parameters!J16, "Likely", "Very Likely"))) -> Unlikely | D9: Potential to attract a variety of pollinators
A10: Native Habitat Support | B10: =IF(Dashboard!C30=Parameters!J14, "Unlikely", IF(Dashboard!C30=Parameters!I16, "Likely", IF(Dashboard!C30=Parameters!J17, "Very Likely", "Possible"))) -> Unlikely | D10: Potential to improve coexistence of species as a nature population
A11: Bio Diversity Support | B11: =IF(Dashboard!C31=0,"Unlikely", IF(Dashboard!C31=Parameters!K15, "Possible", IF(Dashboard!C31=Parameters!K17, "Very Likely","Likely"))) -> Unlikely | D11: Potential to improve sustained livelihood by attracting wild species
A12: Results
A13: Parameter | B13: Value | C13: Units | D13: Notes
A14: Pollinator Support | B14: =B9 -> Unlikely | D14: Potential to attract a variety of pollinators
A15: Native Habitat Support | B15: =B10 -> Unlikely | D15: Potential to improve coexistence of species as a nature population
A16: Bio Diversity Support | B16: =B11 -> Unlikely | D16: Potential to improve sustained livelihood by attracting wild species

Sheet GI Environmental data
AQ1: Nutrient Performance Data Summary (2020) for BMPs Source: State DOT portal to the International Stormwater BMP database for urban BMPs
A2: Water Quality Values | B2: Phosphorus | F2: Dissolved Phosphorus | J2: Nitrogen | N2: Kjedahl N | R2: NOx | V2: NH3 | Z2: Storm water Runoff Reduction | AA2: Biochar Stormwater Reduction | AB2: Biochar Phosphorus Removal | AD2: Biochar NOx removal | AF2: Biochar NH3 removal
A3: GI Type | B3: In Concentration (mg/L) | C3: Out Concentration (mg/L) | D3: % removal | E3: mass removed (mg/L) | F3: In Concentration (mg/L) | G3: Out Concentration (mg/L) | H3: % removal | I3: mass removed (mg/L) | J3: In Concentration (mg/L) | K3: Out Concentration (mg/L) | L3: % removal | M3: mass removed (mg/L) | N3: In Concentration (mg/L) | O3: Out Concentration (mg/L) | P3: % removal | Q3: mass removed (mg/L) | R3: In Concentration (mg/L) | S3: Out Concentration (mg/L) | T3: % removal | U3: mass removed (mg/L) | V3: In Concentration (mg/L) | W3: Out Concentration (mg/L) | X3: % removal | Y3: mass removed (mg/L) | Z3: % Captured | AA3: Additional % Captured | AB3: Out Concentration (mg/L) | AC3: mass removed (mg/L) | AD3: Out Concentration (mg/L) | AE3: mass removed (mg/L) | AF3: Out Concentration (mg/L) | AG3: mass removed (mg/L)
A4: Detention Basin | B4: 0.25 | C4: 0.186 | D4: =(B4-C4)/B4 -> 0.256 | E4: =(B4-C4) -> 0.064 | F4: 0.08 | G4: 0.07 | H4: =(F4-G4)/F4 -> 0.125 | I4: =(F4-G4) -> 0.01 | J4: 1.27 | K4: 1.22 | L4: =(J4-K4)/J4 -> 0.03937007874 | M4: =(J4-K4) -> 0.05 | N4: 1.33 | O4: 1.2 | P4: =(N4-O4)/N4 -> 0.0977443609 | Q4: =(N4-O4) -> 0.13 | R4: 0.5 | S4: 0.372 | T4: =(R4-S4)/R4 -> 0.256 | U4: =(R4-S4) -> 0.128 | V4: 0.113 | W4: 0.0928 | X4: =(V4-W4)/V4 -> 0.1787610619 | Y4: =(V4-W4) -> 0.0202 | Z4: 0.33 | AA4: 0.45 | AB4: =B4-$D$8*B4 -> 0.135422182 | AC4: =B4*$D$8 -> 0.114577818 | AD4: =R4-$T$8*R4 -> 0.1569316097 | AE4: =R4-AD4 -> 0.3430683903 | AF4: =V4-$X$8*V4 -> 0.01781460934 | AG4: =V4*$X$8 -> 0.09518539066
A5: Roadside Swale | B5: 0.129 | C5: 0.18 | D5: =(B5-C5)/B5 -> -0.3953488372 | E5: =ROUNDDOWN(B5-C5,0) -> 0 | F5: 0.048 | G5: 0.07 | H5: =(F5-G5)/F5 -> -0.4583333333 | I5: =ROUNDDOWN(F5-G5,0) -> 0 | J5: 0.71 | K5: 0.63 | L5: =(J5-K5)/J5 -> 0.1126760563 | M5: =(J5-K5) -> 0.08 | N5: 0.759 | O5: 0.583 | P5: =(N5-O5)/N5 -> 0.231884058 | Q5: =(N5-O5) -> 0.176 | R5: 0.27 | S5: 0.219 | T5: =(R5-S5)/R5 -> 0.1888888889 | U5: =(R5-S5) -> 0.051 | V5: 0.104 | W5: 0.047 | X5: =(V5-W5)/V5 -> 0.5480769231 | Y5: =(V5-W5) -> 0.057 | Z5: 0.42 | AA5: 0.45 | AB5: =B5-$D$8*B5 -> 0.06987784589 | AC5: =B5*$D$8 -> 0.05912215411 | AD5: =R5-$T$8*R5 -> 0.08474306923 | AE5: =R5-AD5 -> 0.1852569308 | AF5: =V5-$X$8*V5 -> 0.01639574665 | AG5: =V5*$X$8 -> 0.08760425335
A6: Retention Pond | B6: 0.246 | C6: 0.12 | D6: =(B6-C6)/B6 -> 0.512195122 | E6: =(B6-C6) -> 0.126 | F6: 0.129 | G6: 0.0642 | H6: =(F6-G6)/F6 -> 0.5023255814 | I6: =(F6-G6) -> 0.0648 | J6: 1.63 | K6: 1.2 | L6: =(J6-K6)/J6 -> 0.263803681 | M6: =(J6-K6) -> 0.43 | N6: 1.35 | O6: 1.03 | P6: =(N6-O6)/N6 -> 0.237037037 | Q6: =(N6-O6) -> 0.32 | R6: 0.4 | S6: 0.163 | T6: =(R6-S6)/R6 -> 0.5925 | U6: =(R6-S6) -> 0.237 | V6: 1.35 | W6: 1.03 | X6: =(V6-W6)/V6 -> 0.237037037 | Y6: =(V6-W6) -> 0.32 | Z6: 0.15 | AA6: 0.15 | AB6: 0.133255427 | AC6: 0.112744573 | AD6: 0.1255452878 | AE6: 0.2744547122 | AF6: =V6-$X$8*V6 -> 0.2128294036 | AG6: 1.137170596
A7: Roadside vegetation (Grass) | B7: 0.177 | C7: 0.23 | D7: =(B7-C7)/B7 -> -0.2994350282 | E7: =ROUNDDOWN(B7-C7,0) -> 0 | F7: 0.08 | G7: 0.26 | H7: =(F7-G7)/F7 -> -2.25 | I7: =ROUNDDOWN(F7-G7,0) -> 0 | J7: 1.41 | K7: 1.27 | L7: =(J7-K7)/J7 -> 0.09929078014 | M7: =(J7-K7) -> 0.14 | N7: 1.4 | O7: 1.2 | P7: =(N7-O7)/N7 -> 0.1428571429 | Q7: =(N7-O7) -> 0.2 | R7: 0.51 | S7: 0.39 | T7: =(R7-S7)/R7 -> 0.2352941176 | U7: =(R7-S7) -> 0.12 | V7: 0.359 | W7: 0.26 | X7: =(V7-W7)/V7 -> 0.2757660167 | Y7: =(V7-W7) -> 0.099 | Z7: 0.34 | AA7: 0.45 | AB7: 0.09587890483 | AC7: 0.08112109517 | AD7: 0.1600702419 | AE7: 0.3499297581 | AF7: 0.05659685622 | AG7: 0.3024031438
A8: Biochar pollutant removal rates across all GI | D8: =AD43 -> 0.4583112722 | T8: =AVERAGE(AF43:AG43) -> 0.6861367806 | X8: =AE43 -> 0.8423485899
A10: Air Quality Values | B10: CO | D10: O3 | F10: PM10 | H10: PM2.5 | K10: Air pollutant removal and Monetary value model description (Hirabayashi, 2014)
B11: Removal multiplier (g/m2/yr) | C11: Removal multiplier (lbs/sf/yr) | D11: Removal multiplier (g/m2/yr) | E11: Removal multiplier (lbs/sf/yr) | F11: Removal multiplier (g/m2/yr) | G11: Removal multiplier (lbs/sf/yr) | H11: Removal multiplier (g/m2/yr) | I11: Removal multiplier (lbs/sf/yr)
A12: Trees | B12: 0.127 | C12: =B12*0.000205 -> 2.6035e-05 | D12: 5.404 | E12: =D12*0.000205 -> 0.00110782 | F12: 1.534 | G12: =F12*0.000205 -> 0.00031447 | H12: 0.276 | I12: =H12*0.000205 -> 5.658e-05
A13: Grass | B13: 4.5e-07 | C13: =B13*0.000205 -> 9.225e-11 | D13: 2.93 | E13: =D13*0.000205 -> 0.00060065 | H13: 0.04 | I13: =H13*0.000205 -> 8.2e-06
A14: Shrubs | B14: 16 | C14: =B14*0.000205 -> 0.00328 | D14: 1.68 | E14: =D14*0.000205 -> 0.0003444 | H14: 0.017 | I14: =H14*0.000205 -> 3.485e-06
B20: ANNUAL RAINFALL (inches) per city | K20: Air pollutant removal by grass and shrubs (Gopalakrishnan et al.,2018) and Wang et al., 2022
AA21: Literary GI removal rates for pollutant removal (Liu et al., 2015)
B22: Albemarle | C22: 48.3 | AA22: GI Type | AB22: Phosphorus | AC22: Dissolved P | AD22: Nitrogen | AE22: Kjedahl N | AF22: NOx | AG22: NH3 | AH22: CO2
B23: Asheville | C23: 40.6 | AB23: % Removal | AC23: % Removal | AD23: % Removal | AE23: % Removal | AF23: % Removal | AG23: % Removal | AH23: % Removal
B24: Atlantic Beach | C24: 59 | AA24: Detention Basins | AB24: 0.45 | AC24: 0.33 | AD24: 0.33 | AE24: 0.33 | AF24: 0.445
B25: Banner Elk | C25: 53.8 | AA25: Roadside Swales | AB25: 0.42 | AC25: 0.42 | AD25: 0.44 | AE25: 0.5 | AF25: 0.475 | AG25: 0.95 | AH25: 0.45
B26: Beaufort | C26: 55.7 | AA26: Retention Ponds | AB26: 0.71 | AC26: 0.35 | AD26: 0.39 | AE26: 0.46 | AF26: 0.245 | AH26: 0.7
B27: Belhaven | C27: 52.3 | AA27: Roadside vegetation (Grass) | AB27: 0.34 | AC27: 0.34 | AD27: 0.425 | AE27: 0.39 | AF27: 0.455
B28: Boone | C28: 59.1
B29: Burlington | C29: 43.3
B30: Cape Hatteras | C30: 61.2
B31: Cedar Island | C31: 59.5 | AB31: Biochar nutrient removal rates
B32: Chapel Hill | C32: 48.9
B33: Charlotte | C33: 43.6 | AB33: Biochar Type | AC33: Biochar Mix (%) | AD33: Column test results(Run 8)
B34: Concord | C34: 47.9 | AD34: Phosphorus | AE34: Ammonia | AF34: Nitrate | AG34: Nitrite
B35: Cullowhee | C35: 54.2
B36: Durham | C36: 48.6 | AB36: WF | AC36: 0.06 | AD36: 0.6395193591 | AE36: 0.9158576052 | AF36: 0.3573700954 | AG36: 0.9111111111
B37: Edenton | C37: 51 | AB37: BS | AC37: 0.06 | AD37: -0.261682243 | AE37: 0.5501618123 | AF37: 0.4286320255 | AG37: 0.7555555556
B38: Elizabeth City | C38: 51.3 | AB38: NC | AC38: 0.06 | AD38: 0.3978638184 | AE38: 0.8932038835 | AF38: 0.539766702 | AG38: 0.9555555556
B39: Fayetteville | C39: 47.9 | AB39: CB | AC39: 0.06 | AD39: 0.5327102804 | AE39: 0.9741100324 | AF39: 0.5567338282 | AG39: 0.5111111111
B40: Gastonia | C40: 44 | AB40: BNM | AC40: 0.06 | AD40: 0.6862483311 | AE40: 0.8446601942 | AF40: 0.4761399788 | AG40: 0.9555555556
B41: Goldsboro | C41: 52.3 | AB41: BNS | AC41: 0.06 | AD41: 0.6395193591 | AE41: 0.7184466019 | AF41: 0.3361611877 | AG41: 0.8222222222
B42: Grandfather Mountain | C42: 64.8 | AB42: Literary average | AC42: Variable | AD42: 0.574 | AE42: 1 | AF42: 1 | AG42: 1
B43: Greensboro | C43: 45.9 | AB43: Average | AD43: =AVERAGE(AD36:AD42) -> 0.4583112722 | AE43: =AVERAGE(AE36:AE42) -> 0.8423485899 | AF43: =AVERAGE(AF36:AF42) -> 0.5278291168 | AG43: =AVERAGE(AG36:AG42) -> 0.8444444444
B44: Greenville | C44: 53.4
B45: Henderson | C45: 48.6
B46: Hickory | C46: 47.2 | AB46: Percentages marked in red were obtained from batch testing (Alam & Anwar, 2020)
B47: High Point | C47: 48.3
B48: Highlands | C48: 88.3
B49: Hofmann Forest | C49: 60.3
B50: Kerr Scott Reservoir | C50: 52.5
B51: Kinston | C51: 52.9
B52: Lumberton | C52: 50.8
B53: Manteo | C53: 46.6
B54: Morehead City | C54: 61.2
B55: Morganton | C55: 51.5
B56: Mount Airy | C56: 50.5
B57: New Bern | C57: 53
B58: North Wilkesboro | C58: 51.7
B59: Ocracoke | C59: 58.3
B60: Pisgah Forest | C60: 65
B61: Raleigh | C61: 46.1
B62: Roanoke Rapids | C62: 49.5
B63: Rocky Mount | C63: 45.8
B64: Shelby | C64: 50.4
B65: Southport | C65: 54.6
B66: Tapoco | C66: 56.1
B67: Waterville | C67: 53.9
B68: Wilmington | C68: 60.2
B69: Wilson | C69: 50.3
B70: Winston-Salem | C70: 43.2
B71: AVERAGE | C71: =AVERAGE(C1:C24) -> 14.8619306
K102: NH3

Sheet CT ID_ACS_2020
A1: County Name | B1: GEOID | C1: Census Tract % of Population Under 18 | D1: CT % Households Below Poverty Level | E1: CT % Non-White & Hispanic or Latino | F1: CT % White Alone | G1: CT % Black or African American Alone | H1: CT % American Indian or Native Alaskan Alone | I1: CT % Asian Alone | J1: CT % Native Hawaiian and Other Pacific Islander alone | K1: CT % Some other race alone | L1: CT % Two or More Races | M1: CT % Hispanic or Latino | N1: Census Tract ID | O1: State NAME | P1: State % Households Below Poverty Level | Q1: State % Non-White & Hispanic or Latino | R1: State % White Alone | S1: State % Black or African American Alone | T1: State % American Indian or Native Alaskan Alone | U1: State % Asian Alone | V1: State % Native Hawaiian and Other Pacific Islander alone | W1: State % Some other race alone | X1: State % Two or More Races | Y1: State % Hispanic or Latino | Z1: NAME | AB1: County Name | AD1: State Name | AE1: State % of Population Under 18 | AF1: Census Tract ID | AG1: NAME
A2: Alamance County | B2: 37001020100 | C2: 0.1924407115 | D2: 0.2258414767 | E2: 0.339673913 | F2: 0.660326087 | G2: 0.2774209486 | H2: 0 | I2: 0.01531620553 | J2: 0 | K2: 0 | L2: 0 | M2: 0.04693675889 | N2: 20100 | O2: North Carolina | P2: 0.1341827248 | Q2: 0.3738542399 | R2: 0.6261457601 | S2: 0.210145898 | T2: 0.01041985699 | U2: 0.02947557376 | V2: 0.000601662182 | W2: 0.002920694878 | X2: 0.02487082171 | Y2: 0.09541973231 | Z2: Census Tract 201, Alamance County, North Carolina | AB2: Alamance County | AD2: North Carolina | AE2: 0.2216007796 | AF2: 20100 | AG2: Census Tract 201, Alamance County, North Carolina
A3: Alamance County | B3: 37001020200 | C3: 0.3285359801 | D3: 0.4099332839 | E3: 0.6970223325 | F3: 0.3029776675 | G3: 0.2424317618 | H3: 0 | I3: 0.03399503722 | J3: 0 | K3: 0 | L3: 0.004218362283 | M3: 0.4163771712 | N3: 20200 | O3: North Carolina | P3: 0.1341827248 | Q3: 0.3738542399 | R3: 0.6261457601 | S3: 0.210145898 | T3: ***** | U3: 0.02947557376 | V3: 0.000601662182 | W3: 0.002920694878 | X3: 0.02487082171 | Y3: 0.09541973231 | Z3: Census Tract 202, Alamance County, North Carolina | AB3: Alamance County | AD3: North Carolina | AE3: 0.2216007796 | AF3: 20200 | AG3: Census Tract 202, Alamance County, North Carolina
A4: Alamance County | B4: 37001020301 | C4: 0.2056147648 | D4: 0.2573839662 | E4: 0.668572914 | F4: 0.331427086 | G4: 0.2942552638 | H4: 0 | I4: 0 | J4: 0 | K4: 0 | L4: 0.00103977125 | M4: 0.3732778789 | N4: 20301 | O4: North Carolina | P4: 0.1341827248 | Q4: 0.3738542399 | R4: 0.6261457601 | S4: 0.210145898 | T4: 0.01041985699 | U4: 0.02947557376 | V4: 0.000601662182 | W4: 0.002920694878 | X4: 0.02487082171 | Y4: 0.09541973231 | Z4: Census Tract 203.01, Alamance County, North Carolina | AB4: Alamance County | AD4: North Carolina | AE4: 0.2216007796 | AF4: 20301 | AG4: Census Tract 203.01, Alamance County, North Carolina
A5: Alamance County | B5: 37001020302 | C5: 0.3009110397 | D5: 0.1563517915 | E5: 0.7926045016 | F5: 0.2073954984 | G5: 0.1607717042 | H5: 0 | I5: 0 | J5: 0 | K5: 0 | L5: 0.04876741693 | M5: 0.5830653805 | N5: 20302 | O5: North Carolina | P5: 0.1341827248 | Q5: 0.3738542399 | R5: 0.6261457601 | S5: 0.210145898 | T5: 0.01041985699 | U5: 0.02947557376 | V5: 0.000601662182 | W5: 0.002920694878 | X5: 0.02487082171 | Y5: 0.09541973231 | Z5: Census Tract 203.02, Alamance County, North Carolina | AB5: Alamance County | AD5: North Carolina | AE5: 0.2216007796 | AF5: 20302 | AG5: Census Tract 203.02, Alamance County, North Carolina
A6: Alamance County | B6: 37001020400 | C6: 0.2958276849 | D6: 0.2688044339 | E6: 0.806446754 | F6: 0.193553246 | G6: 0.5841241151 | H6: 0 | I6: 0 | J6: 0.001656876036 | K6: 0 | L6: 0.03645127278 | M6: 0.1842144901 | N6: 20400 | O6: North Carolina | P6: 0.1341827248 | Q6: 0.3738542399 | R6: 0.6261457601 | S6: 0.210145898 | T6: 0.01041985699 | U6: 0.02947557376 | V6: 0.000601662182 | W6: 0.002920694878 | X6: 0.02487082171 | Y6: 0.09541973231 | Z6: Census Tract 204, Alamance County, North Carolina | AB6: Alamance County | AD6: North Carolina | AE6: 0.2216007796 | AF6: 20400 | AG6: Census Tract 204, Alamance County, North Carolina
A7: Alamance County | B7: 37001020501 | C7: 0.232340635 | D7: 0.1239130435 | E7: 0.2377553532 | F7: 0.7622446468 | G7: 0.1127245877 | H7: 0 | I7: 0.018213143 | J7: 0 | K7: 0 | L7: 0.02387398474 | M7: 0.08294363771 | N7: 20501 | O7: North Carolina | P7: 0.1341827248 | Q7: 0.3738542399 | R7: 0.6261457601 | S7: 0.210145898 | T7: 0.01041985699 | U7: 0.02947557376 | V7: 0.000601662182 | W7: 0.002920694878 | X7: 0.02487082171 | Y7: 0.09541973231 | Z7: Census Tract 205.01, Alamance County, North Carolina | AB7: Alamance County | AD7: North Carolina | AE7: 0.2216007796 | AF7: 20501 | AG7: Census Tract 205.01, Alamance County, North Carolina
A8: Alamance County | B8: 37001020502 | C8: 0.3395415473 | D8: 0.3136856369 | E8: 0.7466571156 | F8: 0.2533428844 | G8: 0.4758834766 | H8: 0 | I8: 0.03820439351 | J8: 0 | K8: 0.02602674308 | L8: 0.05420248329 | M8: 0.1523400191 | N8: 20502 | O8: North Carolina | P8: 0.1341827248 | Q8: 0.3738542399 | R8: 0.6261457601 | S8: 0.210145898 | T8: 0.01041985699 | U8: 0.02947557376 | V8: 0.000601662182 | W8: 0.002920694878 | X8: 0.02487082171 | Y8: 0.09541973231 | Z8: Census Tract 205.02, Alamance County, North Carolina | AB8: Alamance County | AD8: North Carolina | AE8: 0.2216007796 | AF8: 20502 | AG8: Census Tract 205.02, Alamance County, North Carolina
A9: Alamance County | B9: 37001020601 | C9: 0.1842835131 | D9: 0.02655485674 | E9: 0.08906009245 | F9: 0.9109399076 | G9: 0.007087827427 | H9: 0 | I9: 0.01417565485 | J9: 0.0009244992296 | K9: 0.01078582435 | L9: 0.01417565485 | M9: 0.04191063174 | N9: 20601 | O9: North Carolina | P9: 0.1341827248 | Q9: 0.3738542399 | R9: 0.6261457601 | S9: 0.210145898 | T9: 0.01041985699 | U9: 0.02947557376 | V9: 0.000601662182 | W9: 0.002920694878 | X9: 0.02487082171 | Y9: 0.09541973231 | Z9: Census Tract 206.01, Alamance County, North Carolina | AB9: Alamance County | AD9: North Carolina | AE9: 0.2216007796 | AF9: 20601 | AG9: Census Tract 206.01, Alamance County, North Carolina
A10: Alamance County | B10: 37001020602 | C10: 0.1982142857 | D10: 0.04926866821 | E10: 0.1217857143 | F10: 0.8782142857 | G10: 0.03535714286 | H10: 0 | I10: 0.005 | J10: 0 | K10: 0 | L10: 0.004285714286 | M10: 0.07714285714 | N10: 20602 | O10: North Carolina | P10: 0.1341827248 | Q10: 0.3738542399 | R10: 0.6261457601 | S10: 0.210145898 | T10: 0.01041985699 | U10: 0.02947557376 | V10: 0.000601662182 | W10: 0.002920694878 | X10: 0.02487082171 | Y10: 0.09541973231 | Z10: Census Tract 206.02, Alamance County, North Carolina | AB10: Alamance County | AD10: North Carolina | AE10: 0.2216007796 | AF10: 20602 | AG10: Census Tract 206.02, Alamance County, North Carolina
A11: Alamance County | B11: 37001020701 | C11: 0.1217636023 | D11: 0.100621118 | E11: 0.2469043152 | F11: 0.7530956848 | G11: 0.1272045028 | H11: 0.00243902439 | I11: 0.003377110694 | J11: 0.003001876173 | K11: 0 | L11: 0.03264540338 | M11: 0.07823639775 | N11: 20701 | O11: North Carolina | P11: 0.1341827248 | Q11: 0.3738542399 | R11: 0.6261457601 | S11: 0.210145898 | T11: 0.01041985699 | U11: 0.02947557376 | V11: 0.000601662182 | W11: 0.002920694878 | X11: 0.02487082171 | Y11: 0.09541973231 | Z11: Census Tract 207.01, Alamance County, North Carolina | AB11: Alamance County | AD11: North Carolina | AE11: 0.2216007796 | AF11: 20701 | AG11: Census Tract 207.01, Alamance County, North Carolina
A12: Alamance County | B12: 37001020702 | C12: 0.2232363567 | D12: 0.1759368836 | E12: 0.4314508462 | F12: 0.5685491538 | G12: 0.293021487 | H12: 0 | I12: 0.02167712493 | J12: 0 | K12: 0 | L12: 0 | M12: 0.1167522343 | N12: 20702 | O12: North Carolina | P12: 0.1341827248 | Q12: 0.3738542399 | R12: 0.6261457601 | S12: 0.210145898 | T12: 0.01041985699 | U12: 0.02947557376 | V12: 0.000601662182 | W12: 0.002920694878 | X12: 0.02487082171 | Y12: 0.09541973231 | Z12: Census Tract 207.02, Alamance County, North Carolina | AB12: Alamance County | AD12: North Carolina | AE12: 0.2216007796 | AF12: 20702 | AG12: Census Tract 207.02, Alamance County, North Carolina
A13: Alamance County | B13: 37001020801 | C13: 0.2148859544 | D13: 0.05660377358 | E13: 0.4069627851 | F13: 0.5930372149 | G13: 0.131452581 | H13: 0.005402160864 | I13: 0.0156062425 | J13: 0 | K13: 0.007803121248 | L13: 0.03361344538 | M13: 0.2130852341 | N13: 20801 | O13: North Carolina | P13: 0.1341827248 | Q13: 0.3738542399 | R13: 0.6261457601 | S13: 0.210145898 | T13: 0.01041985699 | U13: 0.02947557376 | V13: 0.000601662182 | W13: 0.002920694878 | X13: 0.02487082171 | Y13: 0.09541973231 | Z13: Census Tract 208.01, Alamance County, North Carolina | AB13: Alamance County | AD13: North Carolina | AE13: 0.2216007796 | AF13: 20801 | AG13: Census Tract 208.01, Alamance County, North Carolina
A14: Alamance County | B14: 37001020802 | C14: 0.2172873249 | D14: 0.2534542314 | E14: 0.7830543218 | F14: 0.2169456782 | G14: 0.3706867099 | H14: 0 | I14: 0.02716091561 | J14: 0 | K14: 0 | L14: 0.008028698326 | M14: 0.377177998 | N14: 20802 | O14: North Carolina | P14: 0.1341827248 | Q14: 0.3738542399 | R14: 0.6261457601 | S14: 0.210145898 | T14: 0.01041985699 | U14: 0.02947557376 | V14: 0.000601662182 | W14: 0.002920694878 | X14: 0.02487082171 | Y14: 0.09541973231 | Z14: Census Tract 208.02, Alamance County, North Carolina | AB14: Alamance County | AD14: North Carolina | AE14: 0.2216007796 | AF14: 20802 | AG14: Census Tract 208.02, Alamance County, North Carolina
A15: Alamance County | B15: 37001020901 | C15: 0.2010919017 | D15: 0.07184846506 | E15: 0.3500151653 | F15: 0.6499848347 | G15: 0.109796785 | H15: 0 | I15: 0.02911737944 | J15: 0.004246284501 | K15: 0 | L15: 0.03366696997 | M15: 0.1731877464 | N15: 20901 | O15: North Carolina | P15: 0.1341827248 | Q15: 0.3738542399 | R15: 0.6261457601 | S15: 0.210145898 | T15: 0.01041985699 | U15: 0.02947557376 | V15: 0.000601662182 | W15: 0.002920694878 | X15: 0.02487082171 | Y15: 0.09541973231 | Z15: Census Tract 209.01, Alamance County, North Carolina | AB15: Alamance County | AD15: North Carolina | AE15: 0.2216007796 | AF15: 20901 | AG15: Census Tract 209.01, Alamance County, North Carolina
A16: Alamance County | B16: 37001020902 | C16: 0.1983771684 | D16: 0.0916496945 | E16: 0.2162842753 | F16: 0.7837157247 | G16: 0.0789031897 | H16: 0 | I16: 0 | J16: 0 | K16: 0.003917179631 | L16: 0.02182428651 | M16: 0.1116396195 | N16: 20902 | O16: North Carolina | P16: 0.1341827248 | Q16: 0.3738542399 | R16: 0.6261457601 | S16: 0.210145898 | T16: 0.01041985699 | U16: 0.02947557376 | V16: 0.000601662182 | W16: 0.002920694878 | X16: 0.02487082171 | Y16: 0.09541973231 | Z16: Census Tract 209.02, Alamance County, North Carolina | AB16: Alamance County | AD16: North Carolina | AE16: 0.2216007796 | AF16: 20902 | AG16: Census Tract 209.02, Alamance County, North Carolina
A17: Alamance County | B17: 37001021000 | C17: 0.3081515499 | D17: 0.3991745283 | E17: 0.6861079219 | F17: 0.3138920781 | G17: 0.3660160735 | H17: 0.005970149254 | I17: 0 | J17: 0 | K17: 0.02525832377 | L17: 0.0392652124 | M17: 0.249598163 | N17: 21000 | O17: North Carolina | P17: 0.1341827248 | Q17: 0.3738542399 | R17: 0.6261457601 | S17: 0.210145898 | T17: 0.01041985699 | U17: 0.02947557376 | V17: 0.000601662182 | W17: 0.002920694878 | X17: 0.02487082171 | Y17: 0.09541973231 | Z17: Census Tract 210, Alamance County, North Carolina | AB17: Alamance County | AD17: North Carolina | AE17: 0.2216007796 | AF17: 21000 | AG17: Census Tract 210, Alamance County, North Carolina
A18: Alamance County | B18: 37001021101 | C18: 0.1935483871 | D18: 0.1482625483 | E18: 0.393258427 | F18: 0.606741573 | G18: 0.2602392171 | H18: 0.02718376223 | I18: 0.001449800652 | J18: 0 | K18: 0.01159840522 | L18: 0.03769481696 | M18: 0.05509242479 | N18: 21101 | O18: North Carolina | P18: 0.1341827248 | Q18: 0.3738542399 | R18: 0.6261457601 | S18: 0.210145898 | T18: 0.01041985699 | U18: 0.02947557376 | V18: 0.000601662182 | W18: 0.002920694878 | X18: 0.02487082171 | Y18: 0.09541973231 | Z18: Census Tract 211.01, Alamance County, North Carolina | AB18: Alamance County | AD18: North Carolina | AE18: 0.2216007796 | AF18: 21101 | AG18: Census Tract 211.01, Alamance County, North Carolina
A19: Alamance County | B19: 37001021102 | C19: 0.1855700713 | D19: 0.2103448276 | E19: 0.2820665083 | F19: 0.7179334917 | G19: 0.1962589074 | H19: 0.002078384798 | I19: 0.0127672209 | J19: 0 | K19: 0 | L19: 0.01840855107 | M19: 0.05255344418 | N19: 21102 | O19: North Carolina | P19: 0.1341827248 | Q19: 0.3738542399 | R19: 0.6261457601 | S19: 0.210145898 | T19: 0.01041985699 | U19: 0.02947557376 | V19: 0.000601662182 | W19: 0.002920694878 | X19: 0.02487082171 | Y19: 0.09541973231 | Z19: Census Tract 211.02, Alamance County, North Carolina | AB19: Alamance County | AD19: North Carolina | AE19: 0.2216007796 | AF19: 21102 | AG19: Census Tract 211.02, Alamance County, North Carolina
A20: Alamance County | B20: 37001021201 | C20: 0.2547138604 | D20: 0.1212804328 | E20: 0.5301025471 | F20: 0.4698974529 | G20: 0.2968905061 | H20: 0.001323188885 | I20: 0.0006615944426 | J20: 0.000496195832 | K20: 0 | L20: 0.004796559709 | M20: 0.2259345022 | N20: 21201 | O20: North Carolina | P20: 0.1341827248 | Q20: 0.3738542399 | R20: 0.6261457601 | S20: 0.210145898 | T20: 0.01041985699 | U20: 0.02947557376 | V20: 0.000601662182 | W20: 0.002920694878 | X20: 0.02487082171 | Y20: 0.09541973231 | Z20: Census Tract 212.01, Alamance County, North Carolina | AB20: Alamance County | AD20: North Carolina | AE20: 0.2216007796 | AF20: 21201 | AG20: Census Tract 212.01, Alamance County, North Carolina
A21: Alamance County | B21: 37001021204 | C21: 0.2114942529 | D21: 0.1370005189 | E21: 0.315569488 | F21: 0.684430512 | G21: 0.181400209 | H21: 0.009195402299 | I21: 0 | J21: 0 | K21: 0.001462904911 | L21: 0.01337513062 | M21: 0.1101358412 | N21: 21204 | O21: North Carolina | P21: 0.1341827248 | Q21: 0.3738542399 | R21: 0.6261457601 | S21: 0.210145898 | T21: 0.01041985699 | U21: 0.02947557376 | V21: 0.000601662182 | W21: 0.002920694878 | X21: 0.02487082171 | Y21: 0.09541973231 | Z21: Census Tract 212.04, Alamance County, North Carolina | AB21: Alamance County | AD21: North Carolina | AE21: 0.2216007796 | AF21: 21204 | AG21: Census Tract 212.04, Alamance County, North Carolina
A22: Alamance County | B22: 37001021205 | C22: 0.2301008969 | D22: 0.1057814485 | E22: 0.4408632287 | F22: 0.5591367713 | G22: 0.2977858744 | H22: 0 | I22: 0.03531390135 | J22: 0 | K22: 0 | L22: 0.01877802691 | M22: 0.08898542601 | N22: 21205 | O22: North Carolina | P22: 0.1341827248 | Q22: 0.3738542399 | R22: 0.6261457601 | S22: 0.210145898 | T22: 0.01041985699 | U22: 0.02947557376 | V22: 0.000601662182 | W22: 0.002920694878 | X22: 0.02487082171 | Y22: 0.09541973231 | Z22: Census Tract 212.05, Alamance County, North Carolina | AB22: Alamance County | AD22: North Carolina | AE22: 0.2216007796 | AF22: 21205 | AG22: Census Tract 212.05, Alamance County, North Carolina
A23: Alamance County | B23: 37001021206 | C23: 0.2854337737 | D23: 0.07005426739 | E23: 0.4200285612 | F23: 0.5799714388 | G23: 0.2823991432 | H23: 0 | I23: 0.006604784006 | J23: 0 | K23: 0 | L23: 0.04908961085 | M23: 0.08193502321 | N23: 21206 | O23: North Carolina | P23: 0.1341827248 | Q23: 0.3738542399 | R23: 0.6261457601 | S23: 0.210145898 | T23: 0.01041985699 | U23: 0.02947557376 | V23: 0.000601662182 | W23: 0.002920694878 | X23: 0.02487082171 | Y23: 0.09541973231 | Z23: Census Tract 212.06, Alamance County, North Carolina | AB23: Alamance County | AD23: North Carolina | AE23: 0.2216007796 | AF23: 21206 | AG23: Census Tract 212.06, Alamance County, North Carolina
A24: Alamance County | B24: 37001021207 | C24: 0.2544935806 | D24: 0.1721366376 | E24: 0.2185449358 | F24: 0.7814550642 | G24: 0.0790299572 | H24: 0 | I24: 0.01283880171 | J24: 0 | K24: 0.0119828816 | L24: 0.05563480742 | M24: 0.05905848787 | N24: 21207 | O24: North Carolina | P24: 0.1341827248 | Q24: 0.3738542399 | R24: 0.6261457601 | S24: 0.210145898 | T24: 0.01041985699 | U24: 0.02947557376 | V24: 0.000601662182 | W24: 0.002920694878 | X24: 0.02487082171 | Y24: 0.09541973231 | Z24: Census Tract 212.07, Alamance County, North Carolina | AB24: Alamance County | AD24: North Carolina | AE24: 0.2216007796 | AF24: 21207 | AG24: Census Tract 212.07, Alamance County, North Carolina
A25: Alamance County | B25: 37001021300 | C25: 0.1772770249 | D25: 0.08396305626 | E25: 0.3416325244 | F25: 0.6583674756 | G25: 0.2823826032 | H25: 0.004569807753 | I25: 0.0009454774661 | J25: 0 | K25: 0.0009454774661 | L25: 0.01433974157 | M25: 0.03844941696 | N25: 21300 | O25: North Carolina | P25: 0.1341827248 | Q25: 0.3738542399 | R25: 0.6261457601 | S25: 0.210145898 | T25: 0.01041985699 | U25: 0.02947557376 | V25: 0.000601662182 | W25: 0.002920694878 | X25: 0.02487082171 | Y25: 0.09541973231 | Z25: Census Tract 213, Alamance County, North Carolina | AB25: Alamance County | AD25: North Carolina | AE25: 0.2216007796 | AF25: 21300 | AG25: Census Tract 213, Alamance County, North Carolina
A26: Alamance County | B26: 37001021400 | C26: 0.1627906977 | D26: 0.101910828 | E26: 0.2256957682 | F26: 0.7743042318 | G26: 0.0678612276 | H26: 0.001524971407 | I26: 0 | J26: 0 | K26: 0.09759817003 | L26: 0.0007624857034 | M26: 0.05794891346 | N26: 21400 | O26: North Carolina | P26: 0.1341827248 | Q26: 0.3738542399 | R26: 0.6261457601 | S26: 0.210145898 | T26: 0.01041985699 | U26: 0.02947557376 | V26: 0.000601662182 | W26: 0.002920694878 | X26: 0.02487082171 | Y26: 0.09541973231 | Z26: Census Tract 214, Alamance County, North Carolina | AB26: Alamance County | AD26: North Carolina | AE26: 0.2216007796 | AF26: 21400 | AG26: Census Tract 214, Alamance County, North Carolina
A27: Alamance County | B27: 37001021500 | C27: 0.229628037 | D27: 0.05008944544 | E27: 0.1550204257 | F27: 0.8449795743 | G27: 0.09546334122 | H27: 0.002795097828 | I27: 0 | J27: 0 | K27: 0.001290045152 | L27: 0.009675338637 | M27: 0.04579660288 | N27: 21500 | O27: North Carolina | P27: 0.1341827248 | Q27: 0.3738542399 | R27: 0.6261457601 | S27: 0.210145898 | T27: 0.01041985699 | U27: 0.02947557376 | V27: 0.000601662182 | W27: 0.002920694878 | X27: 0.02487082171 | Y27: 0.09541973231 | Z27: Census Tract 215, Alamance County, North Carolina | AB27: Alamance County | AD27: North Carolina | AE27: 0.2216007796 | AF27: 21500 | AG27: Census Tract 215, Alamance County, North Carolina
A28: Alamance County | B28: 37001021600 | C28: 0.1642666667 | D28: 0.09477841158 | E28: 0.2125333333 | F28: 0.7874666667 | G28: 0.1182666667 | H28: 0 | I28: 0.0192 | J28: 0 | K28: 0 | L28: 0.0268 | M28: 0.04826666667 | N28: 21600 | O28: North Carolina | P28: 0.1341827248 | Q28: 0.3738542399 | R28: 0.6261457601 | S28: 0.210145898 | T28: 0.01041985699 | U28: 0.02947557376 | V28: 0.000601662182 | W28: 0.002920694878 | X28: 0.02487082171 | Y28: 0.09541973231 | Z28: Census Tract 216, Alamance County, North Carolina | AB28: Alamance County | AD28: North Carolina | AE28: 0.2216007796 | AF28: 21600 | AG28: Census Tract 216, Alamance County, North Carolina
A29: Alamance County | B29: 37001021701 | C29: 0.1541956983 | D29: 0.03244646334 | E29: 0.129960618 | F29: 0.870039382 | G29: 0.09754619812 | H29: 0.0009088155105 | I29: 0.01514692517 | J29: 0 | K29: 0 | L29: 0 | M29: 0.01635867919 | N29: 21701 | O29: North Carolina | P29: 0.1341827248 | Q29: 0.3738542399 | R29: 0.6261457601 | S29: 0.210145898 | T29: 0.01041985699 | U29: 0.02947557376 | V29: 0.000601662182 | W29: 0.002920694878 | X29: 0.02487082171 | Y29: 0.09541973231 | Z29: Census Tract 217.01, Alamance County, North Carolina | AB29: Alamance County | AD29: North Carolina | AE29: 0.2216007796 | AF29: 21701 | AG29: Census Tract 217.01, Alamance County, North Carolina
A30: Alamance County | B30: 37001021702 | C30: 0.1337755666 | D30: 0.2588996764 | E30: 0.1817302377 | F30: 0.8182697623 | G30: 0.06246545053 | H30: 0 | I30: 0.04671088999 | J30: 0 | K30: 0 | L30: 0.01381978994 | M30: 0.05873410724 | N30: 21702 | O30: North Carolina | P30: 0.1341827248 | Q30: 0.3738542399 | R30: 0.6261457601 | S30: 0.210145898 | T30: 0.01041985699 | U30: 0.02947557376 | V30: 0.000601662182 | W30: 0.002920694878 | X30: 0.02487082171 | Y30: 0.09541973231 | Z30: Census Tract 217.02, Alamance County, North Carolina | AB30: Alamance County | AD30: North Carolina | AE30: 0.2216007796 | AF30: 21702 | AG30: Census Tract 217.02, Alamance County, North Carolina
A31: Alamance County | B31: 37001021703 | C31: 0.2256439776 | D31: 0.05346671266 | E31: 0.4089797093 | F31: 0.5910202907 | G31: 0.1794502806 | H31: 0.003309828752 | I31: 0.1000143906 | J31: 0.0005756223917 | K31: 0 | L31: 0.07598215571 | M31: 0.04964743129 | N31: 21703 | O31: North Carolina | P31: 0.1341827248 | Q31: 0.3738542399 | R31: 0.6261457601 | S31: 0.210145898 | T31: 0.01041985699 | U31: 0.02947557376 | V31: 0.000601662182 | W31: 0.002920694878 | X31: 0.02487082171 | Y31: 0.09541973231 | Z31: Census Tract 217.03, Alamance County, North Carolina | AB31: Alamance County | AD31: North Carolina | AE31: 0.2216007796 | AF31: 21703 | AG31: Census Tract 217.03, Alamance County, North Carolina
A32: Alamance County | B32: 37001021801 | C32: 0.2275847722 | D32: 0.04629113218 | E32: 0.07925941336 | F32: 0.9207405866 | G32: 0.0495111296 | H32: 0.00790513834 | I32: 0.0008321198253 | J32: 0 | K32: 0 | L32: 0.00561680882 | M32: 0.01539421677 | N32: 21801 | O32: North Carolina | P32: 0.1341827248 | Q32: 0.3738542399 | R32: 0.6261457601 | S32: 0.210145898 | T32: 0.01041985699 | U32: 0.02947557376 | V32: 0.000601662182 | W32: 0.002920694878 | X32: 0.02487082171 | Y32: 0.09541973231 | Z32: Census Tract 218.01, Alamance County, North Carolina | AB32: Alamance County | AD32: North Carolina | AE32: 0.2216007796 | AF32: 21801 | AG32: Census Tract 218.01, Alamance County, North Carolina
A33: Alamance County | B33: 37001021802 | C33: 0.2397820163 | D33: 0.09618104668 | E33: 0.05449591281 | F33: 0.9455040872 | G33: 0.0310626703 | H33: 0 | I33: 0.002997275204 | J33: 0.0008174386921 | K33: 0 | L33: 0.01198910082 | M33: 0.007629427793 | N33: 21802 | O33: North Carolina | P33: 0.1341827248 | Q33: 0.3738542399 | R33: 0.6261457601 | S33: 0.210145898 | T33: 0.01041985699 | U33: 0.02947557376 | V33: 0.000601662182 | W33: 0.002920694878 | X33: 0.02487082171 | Y33: 0.09541973231 | Z33: Census Tract 218.02, Alamance County, North Carolina | AB33: Alamance County | AD33: North Carolina | AE33: 0.2216007796 | AF33: 21802 | AG33: Census Tract 218.02, Alamance County, North Carolina
A34: Alamance County | B34: 37001021803 | C34: 0.1954983923 | D34: 0.1068515498 | E34: 0.1125401929 | F34: 0.8874598071 | G34: 0.06398713826 | H34: 0 | I34: 0 | J34: 0 | K34: 0 | L34: 0.001607717042 | M34: 0.04694533762 | N34: 21803 | O34: North Carolina | P34: 0.1341827248 | Q34: 0.3738542399 | R34: 0.6261457601 | S34: 0.210145898 | T34: 0.01041985699 | U34: 0.02947557376 | V34: 0.000601662182 | W34: 0.002920694878 | X34: 0.02487082171 | Y34: 0.09541973231 | Z34: Census Tract 218.03, Alamance County, North Carolina | AB34: Alamance County | AD34: North Carolina | AE34: 0.2216007796 | AF34: 21803 | AG34: Census Tract 218.03, Alamance County, North Carolina
A35: Alamance County | B35: 37001021901 | C35: 0.224943404 | D35: 0.1144067797 | E35: 0.1502366742 | F35: 0.8497633258 | G35: 0.06544556493 | H35: 0.01481786376 | I35: 0.006174109899 | J35: 0 | K35: 0 | L35: 0.02160938465 | M35: 0.04218975098 | N35: 21901 | O35: North Carolina | P35: 0.1341827248 | Q35: 0.3738542399 | R35: 0.6261457601 | S35: 0.210145898 | T35: 0.01041985699 | U35: 0.02947557376 | V35: 0.000601662182 | W35: 0.002920694878 | X35: 0.02487082171 | Y35: 0.09541973231 | Z35: Census Tract 219.01, Alamance County, North Carolina | AB35: Alamance County | AD35: North Carolina | AE35: 0.2216007796 | AF35: 21901 | AG35: Census Tract 219.01, Alamance County, North Carolina
A36: Alamance County | B36: 37001021902 | C36: 0.225879397 | D36: 0.08101422387 | E36: 0.2979899497 | F36: 0.7020100503 | G36: 0.1587939698 | H36: 0.004773869347 | I36: 0 | J36: 0 | K36: 0 | L36: 0.01809045226 | M36: 0.1163316583 | N36: 21902 | O36: North Carolina | P36: 0.1341827248 | Q36: 0.3738542399 | R36: 0.6261457601 | S36: 0.210145898 | T36: 0.01041985699 | U36: 0.02947557376 | V36: 0.000601662182 | W36: 0.002920694878 | X36: 0.02487082171 | Y36: 0.09541973231 | Z36: Census Tract 219.02, Alamance County, North Carolina | AB36: Alamance County | AD36: North Carolina | AE36: 0.2216007796 | AF36: 21902 | AG36: Census Tract 219.02, Alamance County, North Carolina
A37: Alamance County | B37: 37001022001 | C37: 0.2268751657 | D37: 0.06903485255 | E37: 0.2274052478 | F37: 0.7725947522 | G37: 0.09117413199 | H37: 0.003710575139 | I37: 0.01166180758 | J37: 0 | K37: 0 | L37: 0.01590246488 | M37: 0.1049562682 | N37: 22001 | O37: North Carolina | P37: 0.1341827248 | Q37: 0.3738542399 | R37: 0.6261457601 | S37: 0.210145898 | T37: 0.01041985699 | U37: 0.02947557376 | V37: 0.000601662182 | W37: 0.002920694878 | X37: 0.02487082171 | Y37: 0.09541973231 | Z37: Census Tract 220.01, Alamance County, North Carolina | AB37: Alamance County | AD37: North Carolina | AE37: 0.2216007796 | AF37: 22001 | AG37: Census Tract 220.01, Alamance County, North Carolina
A38: Alamance County | B38: 37001022002 | C38: 0.2467347423 | D38: 0.155234657 | E38: 0.330800285 | F38: 0.669199715 | G38: 0.07789123724 | H38: 0.006649251959 | I38: 0 | J38: 0 | K38: 0 | L38: 0.04630729043 | M38: 0.1999525053 | N38: 22002 | O38: North Carolina | P38: 0.1341827248 | Q38: 0.3738542399 | R38: 0.6261457601 | S38: 0.210145898 | T38: 0.01041985699 | U38: 0.02947557376 | V38: 0.000601662182 | W38: 0.002920694878 | X38: 0.02487082171 | Y38: 0.09541973231 | Z38: Census Tract 220.02, Alamance County, North Carolina | AB38: Alamance County | AD38: North Carolina | AE38: 0.2216007796 | AF38: 22002 | AG38: Census Tract 220.02, Alamance County, North Carolina
A39: Alexander County | B39: 37003040100 | C39: 0.1443917852 | D39: 0.137704918 | E39: 0.05276461295 | F39: 0.947235387 | G39: 0.02938388626 | H39: 0 | I39: 0 | J39: 0 | K39: 0 | L39: 0.01800947867 | M39: 0.005371248025 | N39: 40100 | O39: North Carolina | P39: 0.1341827248 | Q39: 0.3738542399 | R39: 0.6261457601 | S39: 0.210145898 | T39: 0.01041985699 | U39: 0.02947557376 | V39: 0.000601662182 | W39: 0.002920694878 | X39: 0.02487082171 | Y39: 0.09541973231 | Z39: Census Tract 401, Alexander County, North Carolina | AB39: Alexander County | AD39: North Carolina | AE39: 0.2216007796 | AF39: 40100 | AG39: Census Tract 401, Alexander County, North Carolina
A40: Alexander County | B40: 37003040200 | C40: 0.1798941799 | D40: 0.08489461358 | E40: 0.1015873016 | F40: 0.8984126984 | G40: 0.03650793651 | H40: 0.002380952381 | I40: 0 | J40: 0 | K40: 0 | L40: 0.01507936508 | M40: 0.04761904762 | N40: 40200 | O40: North Carolina | P40: 0.1341827248 | Q40: 0.3738542399 | R40: 0.6261457601 | S40: 0.210145898 | T40: 0.01041985699 | U40: 0.02947557376 | V40: 0.000601662182 | W40: 0.002920694878 | X40: 0.02487082171 | Y40: 0.09541973231 | Z40: Census Tract 402, Alexander County, North Carolina | AB40: Alexander County | AD40: North Carolina | AE40: 0.2216007796 | AF40: 40200 | AG40: Census Tract 402, Alexander County, North Carolina
A41: Alexander County | B41: 37003040300 | C41: 0.2589884217 | D41: 0.1283891547 | E41: 0.05118829982 | F41: 0.9488117002 | G41: 0.007007921999 | H41: 0 | I41: 0 | J41: 0 | K41: 0 | L41: 0.04418037782 | M41: 0 | N41: 40300 | O41: North Carolina | P41: 0.1341827248 | Q41: 0.3738542399 | R41: 0.6261457601 | S41: 0.210145898 | T41: 0.01041985699 | U41: 0.02947557376 | V41: 0.000601662182 | W41: 0.002920694878 | X41: 0.02487082171 | Y41: 0.09541973231 | Z41: Census Tract 403, Alexander County, North Carolina | AB41: Alexander County | AD41: North Carolina | AE41: 0.2216007796 | AF41: 40300 | AG41: Census Tract 403, Alexander County, North Carolina
A42: Alexander County | B42: 37003040400 | C42: 0.2276964048 | D42: 0.1888567294 | E42: 0.2599496967 | F42: 0.7400503033 | G42: 0.1513537506 | H42: 0.01361148099 | I42: 0.01923361444 | J42: 0 | K42: 0 | L42: 0.03343689895 | M42: 0.04231395177 | N42: 40400 | O42: North Carolina | P42: 0.1341827248 | Q42: 0.3738542399 | R42: 0.6261457601 | S42: 0.210145898 | T42: 0.01041985699 | U42: 0.02947557376 | V42: 0.000601662182 | W42: 0.002920694878 | X42: 0.02487082171 | Y42: 0.09541973231 | Z42: Census Tract 404, Alexander County, North Carolina | AB42: Alexander County | AD42: North Carolina | AE42: 0.2216007796 | AF42: 40400 | AG42: Census Tract 404, Alexander County, North Carolina
A43: Alexander County | B43: 37003040500 | C43: 0.241722346 | D43: 0.1154492024 | E43: 0.1339272457 | F43: 0.8660727543 | G43: 0.007275426875 | H43: 0 | I43: 0 | J43: 0 | K43: 0 | L43: 0.002375649592 | M43: 0.1242761693 | N43: 40500 | O43: North Carolina | P43: 0.1341827248 | Q43: 0.3738542399 | R43: 0.6261457601 | S43: 0.210145898 | T43: 0.01041985699 | U43: 0.02947557376 | V43: 0.000601662182 | W43: 0.002920694878 | X43: 0.02487082171 | Y43: 0.09541973231 | Z43: Census Tract 405, Alexander County, North Carolina | AB43: Alexander County | AD43: North Carolina | AE43: 0.2216007796 | AF43: 40500 | AG43: Census Tract 405, Alexander County, North Carolina
A44: Alexander County | B44: 37003040600 | C44: 0.1739721886 | D44: 0.07409274194 | E44: 0.1629383313 | F44: 0.8370616687 | G44: 0.09038694075 | H44: 0.005441354293 | I44: 0 | J44: 0 | K44: 0 | L44: 0.03098548972 | M44: 0.03612454655 | N44: 40600 | O44: North Carolina | P44: 0.1341827248 | Q44: 0.3738542399 | R44: 0.6261457601 | S44: 0.210145898 | T44: 0.01041985699 | U44: 0.02947557376 | V44: 0.000601662182 | W44: 0.002920694878 | X44: 0.02487082171 | Y44: 0.09541973231 | Z44: Census Tract 406, Alexander County, North Carolina | AB44: Alexander County | AD44: North Carolina | AE44: 0.2216007796 | AF44: 40600 | AG44: Census Tract 406, Alexander County, North Carolina
A45: Alexander County | B45: 37003040700 | C45: 0.1749351024 | D45: 0.06722689076 | E45: 0.07182001731 | F45: 0.9281799827 | G45: 0 | H45: 0 | I45: 0.03807326219 | J45: 0 | K45: 0 | L45: 0.002019036631 | M45: 0.03172771849 | N45: 40700 | O45: North Carolina | P45: 0.1341827248 | Q45: 0.3738542399 | R45: 0.6261457601 | S45: 0.210145898 | T45: 0.01041985699 | U45: 0.02947557376 | V45: 0.000601662182 | W45: 0.002920694878 | X45: 0.02487082171 | Y45: 0.09541973231 | Z45: Census Tract 407, Alexander County, North Carolina | AB45: Alexander County | AD45: North Carolina | AE45: 0.2216007796 | AF45: 40700 | AG45: Census Tract 407, Alexander County, North Carolina
A46: Alleghany County | B46: 37005950100 | C46: 0.1469303879 | D46: 0.2177020341 | E46: 0.09144618546 | F46: 0.9085538145 | G46: 0.00308245569 | H46: 0 | I46: 0.00205497046 | J46: 0 | K46: 0 | L46: 0.008733624454 | M46: 0.07757513486 | N46: 950100 | O46: North Carolina | P46: 0.1341827248 | Q46: 0.3738542399 | R46: 0.6261457601 | S46: 0.210145898 | T46: 0.01041985699 | U46: 0.02947557376 | V46: 0.000601662182 | W46: 0.002920694878 | X46: 0.02487082171 | Y46: 0.09541973231 | Z46: Census Tract 9501, Alleghany County, North Carolina | AB46: Alleghany County | AD46: North Carolina | AE46: 0.2216007796 | AF46: 950100 | AG46: Census Tract 9501, Alleghany County, North Carolina
A47: Alleghany County | B47: 37005950200 | C47: 0.214591195 | D47: 0.2079722704 | E47: 0.185408805 | F47: 0.814591195 | G47: 0.01006289308 | H47: 0.01358490566 | I47: 0.009056603774 | J47: 0.000251572327 | K47: 0 | L47: 0.02012578616 | M47: 0.132327044 | N47: 950200 | O47: North Carolina | P47: 0.1341827248 | Q47: 0.3738542399 | R47: 0.6261457601 | S47: 0.210145898 | T47: 0.01041985699 | U47: 0.02947557376 | V47: 0.000601662182 | W47: 0.002920694878 | X47: 0.02487082171 | Y47: 0.09541973231 | Z47: Census Tract 9502, Alleghany County, North Carolina | AB47: Alleghany County | AD47: North Carolina | AE47: 0.2216007796 | AF47: 950200 | AG47: Census Tract 9502, Alleghany County, North Carolina
A48: Alleghany County | B48: 37005950300 | C48: 0.1495181846 | D48: 0.1702274294 | E48: 0.1171899285 | F48: 0.8828100715 | G48: 0.03885607709 | H48: 0 | I48: 0 | J48: 0 | K48: 0 | L48: 0 | M48: 0.07833385141 | N48: 950300 | O48: North Carolina | P48: 0.1341827248 | Q48: 0.3738542399 | R48: 0.6261457601 | S48: 0.210145898 | T48: 0.01041985699 | U48: 0.02947557376 | V48: 0.000601662182 | W48: 0.002920694878 | X48: 0.02487082171 | Y48: 0.09541973231 | Z48: Census Tract 9503, Alleghany County, North Carolina | AB48: Alleghany County | AD48: North Carolina | AE48: 0.2216007796 | AF48: 950300 | AG48: Census Tract 9503, Alleghany County, North Carolina
A49: Anson County | B49: 37007920100 | C49: 0.2355029586 | D49: 0.2006514658 | E49: 0.576035503 | F49: 0.423964497 | G49: 0.5038461538 | H49: 0 | I49: 0 | J49: 0 | K49: 0 | L49: 0.02455621302 | M49: 0.04763313609 | N49: 920100 | O49: North Carolina | P49: 0.1341827248 | Q49: 0.3738542399 | R49: 0.6261457601 | S49: 0.210145898 | T49: 0.01041985699 | U49: 0.02947557376 | V49: 0.000601662182 | W49: 0.002920694878 | X49: 0.02487082171 | Y49: 0.09541973231 | Z49: Census Tract 9201, Anson County, North Carolina | AB49: Anson County | AD49: North Carolina | AE49: 0.2216007796 | AF49: 920100 | AG49: Census Tract 9201, Anson County, North Carolina
A50: Anson County | B50: 37007920200 | C50: 0.189762151 | D50: 0.265060241 | E50: 0.4276111686 | F50: 0.5723888314 | G50: 0.3753877973 | H50: 0.002585315408 | I50: 0.01861427094 | J50: 0 | K50: 0 | L50: 0 | M50: 0.0310237849 | N50: 920200 | O50: North Carolina | P50: 0.1341827248 | Q50: 0.3738542399 | R50: 0.6261457601 | S50: 0.210145898 | T50: 0.01041985699 | U50: 0.02947557376 | V50: 0.000601662182 | W50: 0.002920694878 | X50: 0.02487082171 | Y50: 0.09541973231 | Z50: Census Tract 9202, Anson County, North Carolina | AB50: Anson County | AD50: North Carolina | AE50: 0.2216007796 | AF50: 920200 | AG50: Census Tract 9202, Anson County, North Carolina
A51: Anson County | B51: 37007920301 | C51: 0.1877885019 | D51: 0.08727810651 | E51: 0.3046579941 | F51: 0.6953420059 | G51: 0.2394041125 | H51: 0 | I51: 0.001049097776 | J51: 0 | K51: 0.0006294586655 | L51: 0.0121695342 | M51: 0.05140579102 | N51: 920301 | O51: North Carolina | P51: 0.1341827248 | Q51: 0.3738542399 | R51: 0.6261457601 | S51: 0.210145898 | T51: 0.01041985699 | U51: 0.02947557376 | V51: 0.000601662182 | W51: 0.002920694878 | X51: 0.02487082171 | Y51: 0.09541973231 | Z51: Census Tract 9203.01, Anson County, North Carolina | AB51: Anson County | AD51: North Carolina | AE51: 0.2216007796 | AF51: 920301 | AG51: Census Tract 9203.01, Anson County, North Carolina
A52: Anson County | B52: 37007920302 | C52: 0.2266112266 | D52: 0 | E52: 0.1746361746 | F52: 0.8253638254 | G52: 0.1205821206 | H52: 0 | I52: 0 | J52: 0 | K52: 0 | L52: 0 | M52: 0.05405405405 | N52: 920302 | O52: North Carolina | P52: 0.1341827248 | Q52: 0.3738542399 | R52: 0.6261457601 | S52: 0.210145898 | T52: 0.01041985699 | U52: 0.02947557376 | V52: 0.000601662182 | W52: 0.002920694878 | X52: 0.02487082171 | Y52: 0.09541973231 | Z52: Census Tract 9203.02, Anson County, North Carolina | AB52: Anson County | AD52: North Carolina | AE52: 0.2216007796 | AF52: 920302 | AG52: Census Tract 9203.02, Anson County, North Carolina
A53: Anson County | B53: 37007920400 | C53: 0.3350059032 | D53: 0.3501180173 | E53: 0.8164108619 | F53: 0.1835891381 | G53: 0.8040141677 | H53: 0 | I53: 0 | J53: 0 | K53: 0 | L53: 0.01239669421 | M53: 0 | N53: 920400 | O53: North Carolina | P53: 0.1341827248 | Q53: 0.3738542399 | R53: 0.6261457601 | S53: 0.210145898 | T53: 0.01041985699 | U53: 0.02947557376 | V53: 0.000601662182 | W53: 0.002920694878 | X53: 0.02487082171 | Y53: 0.09541973231 | Z53: Census Tract 9204, Anson County, North Carolina | AB53: Anson County | AD53: North Carolina | AE53: 0.2216007796 | AF53: 920400 | AG53: Census Tract 9204, Anson County, North Carolina
A54: Anson County | B54: 37007920501 | C54: 0.2372881356 | D54: 0.1007194245 | E54: 0.7097457627 | F54: 0.2902542373 | G54: 0.6059322034 | H54: 0 | I54: 0 | J54: 0 | K54: 0 | L54: 0 | M54: 0.1038135593 | N54: 920501 | O54: North Carolina | P54: 0.1341827248 | Q54: 0.3738542399 | R54: 0.6261457601 | S54: 0.210145898 | T54: 0.01041985699 | U54: 0.02947557376 | V54: 0.000601662182 | W54: 0.002920694878 | X54: 0.02487082171 | Y54: 0.09541973231 | Z54: Census Tract 9205.01, Anson County, North Carolina | AB54: Anson County | AD54: North Carolina | AE54: 0.2216007796 | AF54: 920501 | AG54: Census Tract 9205.01, Anson County, North Carolina
A55: Anson County | B55: 37007920502 | C55: 0.1469084147 | D55: 0.1865256125 | E55: 0.6794514179 | F55: 0.3205485821 | G55: 0.6352859135 | H55: 0.001859600186 | I55: 0.04160855416 | J55: 0 | K55: 0 | L55: 0 | M55: 0.0006973500697 | N55: 920502 | O55: North Carolina | P55: 0.1341827248 | Q55: 0.3738542399 | R55: 0.6261457601 | S55: 0.210145898 | T55: 0.01041985699 | U55: 0.02947557376 | V55: 0.000601662182 | W55: 0.002920694878 | X55: 0.02487082171 | Y55: 0.09541973231 | Z55: Census Tract 9205.02, Anson County, North Carolina | AB55: Anson County | AD55: North Carolina | AE55: 0.2216007796 | AF55: 920502 | AG55: Census Tract 9205.02, Anson County, North Carolina
A56: Anson County | B56: 37007920600 | C56: 0.1902994964 | D56: 0.1344393593 | E56: 0.5019878081 | F56: 0.4980121919 | G56: 0.3715875961 | H56: 0 | I56: 0.01060164325 | J56: 0 | K56: 0.003710575139 | L56: 0.01696262921 | M56: 0.09912536443 | N56: 920600 | O56: North Carolina | P56: 0.1341827248 | Q56: 0.3738542399 | R56: 0.6261457601 | S56: 0.210145898 | T56: 0.01041985699 | U56: 0.02947557376 | V56: 0.000601662182 | W56: 0.002920694878 | X56: 0.02487082171 | Y56: 0.09541973231 | Z56: Census Tract 9206, Anson County, North Carolina | AB56: Anson County | AD56: North Carolina | AE56: 0.2216007796 | AF56: 920600 | AG56: Census Tract 9206, Anson County, North Carolina
A57: Anson County | B57: 37007980000 | C57: 0 | E57: 0.658002736 | F57: 0.341997264 | G57: 0.4897400821 | H57: 0.02941176471 | I57: 0.03761969904 | J57: 0.005471956224 | K57: 0 | L57: 0.07181942544 | M57: 0.02393980848 | N57: 980000 | O57: North Carolina | P57: 0.1341827248 | Q57: 0.3738542399 | R57: 0.6261457601 | S57: 0.210145898 | T57: 0.01041985699 | U57: 0.02947557376 | V57: 0.000601662182 | W57: 0.002920694878 | X57: 0.02487082171 | Y57: 0.09541973231 | Z57: Census Tract 9800, Anson County, North Carolina | AB57: Anson County | AD57: North Carolina | AE57: 0.2216007796 | AF57: 980000 | AG57: Census Tract 9800, Anson County, North Carolina
A58: Ashe County | B58: 37009970200 | C58: 0.1863941428 | D58: 0.1278317152 | E58: 0.08145210494 | F58: 0.9185478951 | G58: 0 | H58: 0.0009151921904 | I58: 0 | J58: 0.001220256254 | K58: 0 | L58: 0.004881025015 | M58: 0.07443563148 | N58: 970200 | O58: North Carolina | P58: 0.1341827248 | Q58: 0.3738542399 | R58: 0.6261457601 | S58: 0.210145898 | T58: 0.01041985699 | U58: 0.02947557376 | V58: 0.000601662182 | W58: 0.002920694878 | X58: 0.02487082171 | Y58: 0.09541973231 | Z58: Census Tract 9702, Ashe County, North Carolina | AB58: Ashe County | AD58: North Carolina | AE58: 0.2216007796 | AF58: 970200 | AG58: Census Tract 9702, Ashe County, North Carolina
A59: Ashe County | B59: 37009970300 | C59: 0.1478398732 | D59: 0.2396907216 | E59: 0.05469678954 | F59: 0.9453032105 | G59: 0 | H59: 0.004359889021 | I59: 0.03170828379 | J59: 0 | K59: 0 | L59: 0.005152596116 | M59: 0.01347602061 | N59: 970300 | O59: North Carolina | P59: 0.1341827248 | Q59: 0.3738542399 | R59: 0.6261457601 | S59: 0.210145898 | T59: 0.01041985699 | U59: 0.02947557376 | V59: 0.000601662182 | W59: 0.002920694878 | X59: 0.02487082171 | Y59: 0.09541973231 | Z59: Census Tract 9703, Ashe County, North Carolina | AB59: Ashe County | AD59: North Carolina | AE59: 0.2216007796 | AF59: 970300 | AG59: Census Tract 9703, Ashe County, North Carolina
A60: Ashe County | B60: 37009970400 | C60: 0.2288964279 | D60: 0.1348314607 | E60: 0.1055677509 | F60: 0.8944322491 | G60: 0.002394731591 | H60: 0 | I60: 0.01137497505 | J60: 0 | K60: 0 | L60: 0.01217321892 | M60: 0.07962482538 | N60: 970400 | O60: North Carolina | P60: 0.1341827248 | Q60: 0.3738542399 | R60: 0.6261457601 | S60: 0.210145898 | T60: 0.01041985699 | U60: 0.02947557376 | V60: 0.000601662182 | W60: 0.002920694878 | X60: 0.02487082171 | Y60: 0.09541973231 | Z60: Census Tract 9704, Ashe County, North Carolina | AB60: Ashe County | AD60: North Carolina | AE60: 0.2216007796 | AF60: 970400 | AG60: Census Tract 9704, Ashe County, North Carolina
A61: Ashe County | B61: 37009970501 | C61: 0.1376488095 | D61: 0.2303231152 | E61: 0.1197916667 | F61: 0.8802083333 | G61: 0.04947916667 | H61: 0.0078125 | I61: 0 | J61: 0 | K61: 0 | L61: 0.01078869048 | M61: 0.05171130952 | N61: 970501 | O61: North Carolina | P61: 0.1341827248 | Q61: 0.3738542399 | R61: 0.6261457601 | S61: 0.210145898 | T61: 0.01041985699 | U61: 0.02947557376 | V61: 0.000601662182 | W61: 0.002920694878 | X61: 0.02487082171 | Y61: 0.09541973231 | Z61: Census Tract 9705.01, Ashe County, North Carolina | AB61: Ashe County | AD61: North Carolina | AE61: 0.2216007796 | AF61: 970501 | AG61: Census Tract 9705.01, Ashe County, North Carolina
A62: Ashe County | B62: 37009970502 | C62: 0.1960517359 | D62: 0.149137931 | E62: 0.09972770592 | F62: 0.9002722941 | G62: 0.01021102791 | H62: 0 | I62: 0 | J62: 0.003744043567 | K62: 0.004084411164 | L62: 0.0340367597 | M62: 0.04765146358 | N62: 970502 | O62: North Carolina | P62: 0.1341827248 | Q62: 0.3738542399 | R62: 0.6261457601 | S62: 0.210145898 | T62: 0.01041985699 | U62: 0.02947557376 | V62: 0.000601662182 | W62: 0.002920694878 | X62: 0.02487082171 | Y62: 0.09541973231 | Z62: Census Tract 9705.02, Ashe County, North Carolina | AB62: Ashe County | AD62: North Carolina | AE62: 0.2216007796 | AF62: 970502 | AG62: Census Tract 9705.02, Ashe County, North Carolina
A63: Ashe County | B63: 37009970701 | C63: 0.1067907996 | D63: 0.08425720621 | E63: 0.03778751369 | F63: 0.9622124863 | G63: 0 | H63: 0.001916757941 | I63: 0.000273822563 | J63: 0 | K63: 0 | L63: 0 | M63: 0.03559693319 | N63: 970701 | O63: North Carolina | P63: 0.1341827248 | Q63: 0.3738542399 | R63: 0.6261457601 | S63: 0.210145898 | T63: 0.01041985699 | U63: 0.02947557376 | V63: 0.000601662182 | W63: 0.002920694878 | X63: 0.02487082171 | Y63: 0.09541973231 | Z63: Census Tract 9707.01, Ashe County, North Carolina | AB63: Ashe County | AD63: North Carolina | AE63: 0.2216007796 | AF63: 970701 | AG63: Census Tract 9707.01, Ashe County, North Carolina
A64: Ashe County | B64: 37009970702 | C64: 0.102383532 | D64: 0.03510758777 | E64: 0.05850487541 | F64: 0.9414951246 | G64: 0.00812567714 | H64: 0.01895991333 | I64: 0 | J64: 0 | K64: 0 | L64: 0 | M64: 0.03141928494 | N64: 970702 | O64: North Carolina | P64: 0.1341827248 | Q64: 0.3738542399 | R64: 0.6261457601 | S64: 0.210145898 | T64: 0.01041985699 | U64: 0.02947557376 | V64: 0.000601662182 | W64: 0.002920694878 | X64: 0.02487082171 | Y64: 0.09541973231 | Z64: Census Tract 9707.02, Ashe County, North Carolina | AB64: Ashe County | AD64: North Carolina | AE64: 0.2216007796 | AF64: 970702 | AG64: Census Tract 9707.02, Ashe County, North Carolina
A65: Ashe County | B65: 37009970801 | C65: 0.1561119293 | D65: 0.2363238512 | E65: 0.05400098184 | F65: 0.9459990182 | G65: 0 | H65: 0 | I65: 0 | J65: 0 | K65: 0 | L65: 0.01325478645 | M65: 0.04074619539 | N65: 970801 | O65: North Carolina | P65: 0.1341827248 | Q65: 0.3738542399 | R65: 0.6261457601 | S65: 0.210145898 | T65: 0.01041985699 | U65: 0.02947557376 | V65: 0.000601662182 | W65: 0.002920694878 | X65: 0.02487082171 | Y65: 0.09541973231 | Z65: Census Tract 9708.01, Ashe County, North Carolina | AB65: Ashe County | AD65: North Carolina | AE65: 0.2216007796 | AF65: 970801 | AG65: Census Tract 9708.01, Ashe County, North Carolina
A66: Ashe County | B66: 37009970802 | C66: 0.2598814229 | D66: 0.2345201238 | E66: 0.0477602108 | F66: 0.9522397892 | G66: 0.002964426877 | H66: 0 | I66: 0.004611330698 | J66: 0 | K66: 0 | L66: 0 | M66: 0.04018445323 | N66: 970802 | O66: North Carolina | P66: 0.1341827248 | Q66: 0.3738542399 | R66: 0.6261457601 | S66: 0.210145898 | T66: 0.01041985699 | U66: 0.02947557376 | V66: 0.000601662182 | W66: 0.002920694878 | X66: 0.02487082171 | Y66: 0.09541973231 | Z66: Census Tract 9708.02, Ashe County, North Carolina | AB66: Ashe County | AD66: North Carolina | AE66: 0.2216007796 | AF66: 970802 | AG66: Census Tract 9708.02, Ashe County, North Carolina
A67: Avery County | B67: 37011930100 | C67: 0.1183090859 | D67: 0.1484615385 | E67: 0.1067801263 | F67: 0.8932198737 | G67: 0.01894043371 | H67: 0.002744990393 | I67: 0.008783969256 | J67: 0.001097996157 | K67: 0.0005489980785 | L67: 0.01482294812 | M67: 0.05984079056 | N67: 930100 | O67: North Carolina | P67: 0.1341827248 | Q67: 0.3738542399 | R67: 0.6261457601 | S67: 0.210145898 | T67: 0.01041985699 | U67: 0.02947557376 | V67: 0.000601662182 | W67: 0.002920694878 | X67: 0.02487082171 | Y67: 0.09541973231 | Z67: Census Tract 9301, Avery County, North Carolina | AB67: Avery County | AD67: North Carolina | AE67: 0.2216007796 | AF67: 930100 | AG67: Census Tract 9301, Avery County, North Carolina
A68: Avery County | B68: 37011930200 | C68: 0.09922417313 | D68: 0.09417040359 | E68: 0.03429971417 | F68: 0.9657002858 | G68: 0.01224989792 | H68: 0.0004083299306 | I68: 0.003266639445 | J68: 0 | K68: 0 | L68: 0.00694160882 | M68: 0.01143323806 | N68: 930200 | O68: North Carolina | P68: 0.1341827248 | Q68: 0.3738542399 | R68: 0.6261457601 | S68: 0.210145898 | T68: 0.01041985699 | U68: 0.02947557376 | V68: 0.000601662182 | W68: 0.002920694878 | X68: 0.02487082171 | Y68: 0.09541973231 | Z68: Census Tract 9302, Avery County, North Carolina | AB68: Avery County | AD68: North Carolina | AE68: 0.2216007796 | AF68: 930200 | AG68: Census Tract 9302, Avery County, North Carolina
A69: Avery County | B69: 37011930301 | C69: 0.1547756041 | D69: 0.1496904896 | E69: 0.08026467204 | F69: 0.919735328 | G69: 0.001726121979 | H69: 0 | I69: 0 | J69: 0 | K69: 0 | L69: 0.0002876869965 | M69: 0.07825086306 | N69: 930301 | O69: North Carolina | P69: 0.1341827248 | Q69: 0.3738542399 | R69: 0.6261457601 | S69: 0.210145898 | T69: 0.01041985699 | U69: 0.02947557376 | V69: 0.000601662182 | W69: 0.002920694878 | X69: 0.02487082171 | Y69: 0.09541973231 | Z69: Census Tract 9303.01, Avery County, North Carolina | AB69: Avery County | AD69: North Carolina | AE69: 0.2216007796 | AF69: 930301 | AG69: Census Tract 9303.01, Avery County, North Carolina
A70: Avery County | B70: 37011930302 | C70: 0.2143165157 | D70: 0.2490384615 | E70: 0.0297542044 | F70: 0.9702457956 | G70: 0.001724881414 | H70: 0.01121172919 | I70: 0.001293661061 | J70: 0 | K70: 0 | L70: 0 | M70: 0.01552393273 | N70: 930302 | O70: North Carolina | P70: 0.1341827248 | Q70: 0.3738542399 | R70: 0.6261457601 | S70: 0.210145898 | T70: 0.01041985699 | U70: 0.02947557376 | V70: 0.000601662182 | W70: 0.002920694878 | X70: 0.02487082171 | Y70: 0.09541973231 | Z70: Census Tract 9303.02, Avery County, North Carolina | AB70: Avery County | AD70: North Carolina | AE70: 0.2216007796 | AF70: 930302 | AG70: Census Tract 9303.02, Avery County, North Carolina
A71: Avery County | B71: 37011930400 | C71: 0.1445847412 | D71: 0.0942408377 | E71: 0.2087853459 | F71: 0.7912146541 | G71: 0.1125733594 | H71: 0.02845456162 | I71: 0.005868753335 | J71: 0 | K71: 0 | L71: 0.004446025253 | M71: 0.05744264627 | N71: 930400 | O71: North Carolina | P71: 0.1341827248 | Q71: 0.3738542399 | R71: 0.6261457601 | S71: 0.210145898 | T71: 0.01041985699 | U71: 0.02947557376 | V71: 0.000601662182 | W71: 0.002920694878 | X71: 0.02487082171 | Y71: 0.09541973231 | Z71: Census Tract 9304, Avery County, North Carolina | AB71: Avery County | AD71: North Carolina | AE71: 0.2216007796 | AF71: 930400 | AG71: Census Tract 9304, Avery County, North Carolina
A72: Beaufort County | B72: 37013930101 | C72: 0.3142519917 | D72: 0.1325301205 | E72: 0.3331366185 | F72: 0.6668633815 | G72: 0.1681912068 | H72: 0 | I72: 0 | J72: 0 | K72: 0 | L72: 0.01917969903 | M72: 0.1457657126 | N72: 930101 | O72: North Carolina | P72: 0.1341827248 | Q72: 0.3738542399 | R72: 0.6261457601 | S72: 0.210145898 | T72: 0.01041985699 | U72: 0.02947557376 | V72: 0.000601662182 | W72: 0.002920694878 | X72: 0.02487082171 | Y72: 0.09541973231 | Z72: Census Tract 9301.01, Beaufort County, North Carolina | AB72: Beaufort County | AD72: North Carolina | AE72: 0.2216007796 | AF72: 930101 | AG72: Census Tract 9301.01, Beaufort County, North Carolina
A73: Beaufort County | B73: 37013930102 | C73: 0.216053108 | D73: 0.2483912484 | E73: 0.585998793 | F73: 0.414001207 | G73: 0.5171997586 | H73: 0 | I73: 0 | J73: 0 | K73: 0 | L73: 0 | M73: 0.0687990344 | N73: 930102 | O73: North Carolina | P73: 0.1341827248 | Q73: 0.3738542399 | R73: 0.6261457601 | S73: 0.210145898 | T73: 0.01041985699 | U73: 0.02947557376 | V73: 0.000601662182 | W73: 0.002920694878 | X73: 0.02487082171 | Y73: 0.09541973231 | Z73: Census Tract 9301.02, Beaufort County, North Carolina | AB73: Beaufort County | AD73: North Carolina | AE73: 0.2216007796 | AF73: 930102 | AG73: Census Tract 9301.02, Beaufort County, North Carolina
A74: Beaufort County | B74: 37013930200 | C74: 0.171301956 | D74: 0.191796875 | E74: 0.3080684597 | F74: 0.6919315403 | G74: 0.2304400978 | H74: 0.0003056234719 | I74: 0.0001528117359 | J74: 0 | K74: 0 | L74: 0.0233801956 | M74: 0.05378973105 | N74: 930200 | O74: North Carolina | P74: 0.1341827248 | Q74: 0.3738542399 | R74: 0.6261457601 | S74: 0.210145898 | T74: 0.01041985699 | U74: 0.02947557376 | V74: 0.000601662182 | W74: 0.002920694878 | X74: 0.02487082171 | Y74: 0.09541973231 | Z74: Census Tract 9302, Beaufort County, North Carolina | AB74: Beaufort County | AD74: North Carolina | AE74: 0.2216007796 | AF74: 930200 | AG74: Census Tract 9302, Beaufort County, North Carolina
A75: Beaufort County | B75: 37013930300 | C75: 0.2077999405 | D75: 0.2700551133 | E75: 0.623697529 | F75: 0.376302471 | G75: 0.4498362608 | H75: 0 | I75: 0 | J75: 0 | K75: 0 | L75: 0.009526644835 | M75: 0.1643346234 | N75: 930300 | O75: North Carolina | P75: 0.1341827248 | Q75: 0.3738542399 | R75: 0.6261457601 | S75: 0.210145898 | T75: 0.01041985699 | U75: 0.02947557376 | V75: 0.000601662182 | W75: 0.002920694878 | X75: 0.02487082171 | Y75: 0.09541973231 | Z75: Census Tract 9303, Beaufort County, North Carolina | AB75: Beaufort County | AD75: North Carolina | AE75: 0.2216007796 | AF75: 930300 | AG75: Census Tract 9303, Beaufort County, North Carolina
A76: Beaufort County | B76: 37013930400 | C76: 0.2356870229 | D76: 0.2939115199 | E76: 0.4458015267 | F76: 0.5541984733 | G76: 0.3261450382 | H76: 0.01145038168 | I76: 0 | J76: 0 | K76: 0.007061068702 | L76: 0.02748091603 | M76: 0.07366412214 | N76: 930400 | O76: North Carolina | P76: 0.1341827248 | Q76: 0.3738542399 | R76: 0.6261457601 | S76: 0.210145898 | T76: 0.01041985699 | U76: 0.02947557376 | V76: 0.000601662182 | W76: 0.002920694878 | X76: 0.02487082171 | Y76: 0.09541973231 | Z76: Census Tract 9304, Beaufort County, North Carolina | AB76: Beaufort County | AD76: North Carolina | AE76: 0.2216007796 | AF76: 930400 | AG76: Census Tract 9304, Beaufort County, North Carolina
A77: Beaufort County | B77: 37013930501 | C77: 0.1720507298 | D77: 0.1738299904 | E77: 0.2816463269 | F77: 0.7183536731 | G77: 0.1598468533 | H77: 0 | I77: 0 | J77: 0 | K77: 0 | L77: 0.01435750179 | M77: 0.1074419718 | N77: 930501 | O77: North Carolina | P77: 0.1341827248 | Q77: 0.3738542399 | R77: 0.6261457601 | S77: 0.210145898 | T77: 0.01041985699 | U77: 0.02947557376 | V77: 0.000601662182 | W77: 0.002920694878 | X77: 0.02487082171 | Y77: 0.09541973231 | Z77: Census Tract 9305.01, Beaufort County, North Carolina | AB77: Beaufort County | AD77: North Carolina | AE77: 0.2216007796 | AF77: 930501 | AG77: Census Tract 9305.01, Beaufort County, North Carolina
A78: Beaufort County | B78: 37013930502 | C78: 0.2207332491 | D78: 0.144516129 | E78: 0.3008849558 | F78: 0.6991150442 | G78: 0.1560050569 | H78: 0 | I78: 0 | J78: 0 | K78: 0.004298356511 | L78: 0.01896333755 | M78: 0.1216182048 | N78: 930502 | O78: North Carolina | P78: 0.1341827248 | Q78: 0.3738542399 | R78: 0.6261457601 | S78: 0.210145898 | T78: 0.01041985699 | U78: 0.02947557376 | V78: 0.000601662182 | W78: 0.002920694878 | X78: 0.02487082171 | Y78: 0.09541973231 | Z78: Census Tract 9305.02, Beaufort County, North Carolina | AB78: Beaufort County | AD78: North Carolina | AE78: 0.2216007796 | AF78: 930502 | AG78: Census Tract 9305.02, Beaufort County, North Carolina
A79: Beaufort County | B79: 37013930600 | C79: 0.1691358025 | D79: 0.05287009063 | E79: 0.05061728395 | F79: 0.949382716 | G79: 0.03888888889 | H79: 0 | I79: 0.003395061728 | J79: 0 | K79: 0 | L79: 0 | M79: 0.008333333333 | N79: 930600 | O79: North Carolina | P79: 0.1341827248 | Q79: 0.3738542399 | R79: 0.6261457601 | S79: 0.210145898 | T79: 0.01041985699 | U79: 0.02947557376 | V79: 0.000601662182 | W79: 0.002920694878 | X79: 0.02487082171 | Y79: 0.09541973231 | Z79: Census Tract 9306, Beaufort County, North Carolina | AB79: Beaufort County | AD79: North Carolina | AE79: 0.2216007796 | AF79: 930600 | AG79: Census Tract 9306, Beaufort County, North Carolina
A80: Beaufort County | B80: 37013930700 | C80: 0.1444444444 | D80: 0.1292134831 | E80: 0.06436781609 | F80: 0.9356321839 | G80: 0.02030651341 | H80: 0 | I80: 0.003448275862 | J80: 0 | K80: 0 | L80: 0.004597701149 | M80: 0.03601532567 | N80: 930700 | O80: North Carolina | P80: 0.1341827248 | Q80: 0.3738542399 | R80: 0.6261457601 | S80: 0.210145898 | T80: 0.01041985699 | U80: 0.02947557376 | V80: 0.000601662182 | W80: 0.002920694878 | X80: 0.02487082171 | Y80: 0.09541973231 | Z80: Census Tract 9307, Beaufort County, North Carolina | AB80: Beaufort County | AD80: North Carolina | AE80: 0.2216007796 | AF80: 930700 | AG80: Census Tract 9307, Beaufort County, North Carolina
A81: Beaufort County | B81: 37013930800 | C81: 0.2322580645 | D81: 0.3072870939 | E81: 0.5465949821 | F81: 0.4534050179 | G81: 0.4724014337 | H81: 0 | I81: 0.01003584229 | J81: 0 | K81: 0 | L81: 0.01541218638 | M81: 0.04874551971 | N81: 930800 | O81: North Carolina | P81: 0.1341827248 | Q81: 0.3738542399 | R81: 0.6261457601 | S81: 0.210145898 | T81: 0.01041985699 | U81: 0.02947557376 | V81: 0.000601662182 | W81: 0.002920694878 | X81: 0.02487082171 | Y81: 0.09541973231 | Z81: Census Tract 9308, Beaufort County, North Carolina | AB81: Beaufort County | AD81: North Carolina | AE81: 0.2216007796 | AF81: 930800 | AG81: Census Tract 9308, Beaufort County, North Carolina
A82: Beaufort County | B82: 37013930900 | C82: 0.1453874539 | D82: 0.0621957815 | E82: 0.2083640836 | F82: 0.7916359164 | G82: 0.1739237392 | H82: 0 | I82: 0 | J82: 0 | K82: 0 | L82: 0.01500615006 | M82: 0.01943419434 | N82: 930900 | O82: North Carolina | P82: 0.1341827248 | Q82: 0.3738542399 | R82: 0.6261457601 | S82: 0.210145898 | T82: 0.01041985699 | U82: 0.02947557376 | V82: 0.000601662182 | W82: 0.002920694878 | X82: 0.02487082171 | Y82: 0.09541973231 | Z82: Census Tract 9309, Beaufort County, North Carolina | AB82: Beaufort County | AD82: North Carolina | AE82: 0.2216007796 | AF82: 930900 | AG82: Census Tract 9309, Beaufort County, North Carolina
A83: Beaufort County | B83: 37013931001 | C83: 0.1799529095 | D83: 0.09765258216 | E83: 0.3625967037 | F83: 0.6374032963 | G83: 0.2182980155 | H83: 0 | I83: 0 | J83: 0 | K83: 0 | L83: 0 | M83: 0.1442986882 | N83: 931001 | O83: North Carolina | P83: 0.1341827248 | Q83: 0.3738542399 | R83: 0.6261457601 | S83: 0.210145898 | T83: 0.01041985699 | U83: 0.02947557376 | V83: 0.000601662182 | W83: 0.002920694878 | X83: 0.02487082171 | Y83: 0.09541973231 | Z83: Census Tract 9310.01, Beaufort County, North Carolina | AB83: Beaufort County | AD83: North Carolina | AE83: 0.2216007796 | AF83: 931001 | AG83: Census Tract 9310.01, Beaufort County, North Carolina
A84: Beaufort County | B84: 37013931002 | C84: 0.2219056664 | D84: 0.1772428884 | E84: 0.4672364672 | F84: 0.5327635328 | G84: 0.3975941754 | H84: 0 | I84: 0 | J84: 0 | K84: 0 | L84: 0.01456157012 | M84: 0.05508072175 | N84: 931002 | O84: North Carolina | P84: 0.1341827248 | Q84: 0.3738542399 | R84: 0.6261457601 | S84: 0.210145898 | T84: 0.01041985699 | U84: 0.02947557376 | V84: 0.000601662182 | W84: 0.002920694878 | X84: 0.02487082171 | Y84: 0.09541973231 | Z84: Census Tract 9310.02, Beaufort County, North Carolina | AB84: Beaufort County | AD84: North Carolina | AE84: 0.2216007796 | AF84: 931002 | AG84: Census Tract 9310.02, Beaufort County, North Carolina
A85: Bertie County | B85: 37015960100 | C85: 0.1343654434 | D85: 0.2169853268 | E85: 0.4590978593 | F85: 0.5409021407 | G85: 0.4457186544 | H85: 0.0007645259939 | I85: 0.0001911314985 | J85: 0.0001911314985 | K85: 0.0001911314985 | L85: 0.01051223242 | M85: 0.001529051988 | N85: 960100 | O85: North Carolina | P85: 0.1341827248 | Q85: 0.3738542399 | R85: 0.6261457601 | S85: 0.210145898 | T85: 0.01041985699 | U85: 0.02947557376 | V85: 0.000601662182 | W85: 0.002920694878 | X85: 0.02487082171 | Y85: 0.09541973231 | Z85: Census Tract 9601, Bertie County, North Carolina | AB85: Bertie County | AD85: North Carolina | AE85: 0.2216007796 | AF85: 960100 | AG85: Census Tract 9601, Bertie County, North Carolina
A86: Bertie County | B86: 37015960200 | C86: 0.2140419308 | D86: 0.2761643836 | E86: 0.7064846416 | F86: 0.2935153584 | G86: 0.6579717211 | H86: 0 | I86: 0.006825938567 | J86: 0 | K86: 0 | L86: 0.005363237445 | M86: 0.03632374451 | N86: 960200 | O86: North Carolina | P86: 0.1341827248 | Q86: 0.3738542399 | R86: 0.6261457601 | S86: 0.210145898 | T86: 0.01041985699 | U86: 0.02947557376 | V86: 0.000601662182 | W86: 0.002920694878 | X86: 0.02487082171 | Y86: 0.09541973231 | Z86: Census Tract 9602, Bertie County, North Carolina | AB86: Bertie County | AD86: North Carolina | AE86: 0.2216007796 | AF86: 960200 | AG86: Census Tract 9602, Bertie County, North Carolina
A87: Bertie County | B87: 37015960300 | C87: 0.2110948905 | D87: 0.2319034853 | E87: 0.8335766423 | F87: 0.1664233577 | G87: 0.7953284672 | H87: 0 | I87: 0.004087591241 | J87: 0 | K87: 0 | L87: 0.01781021898 | M87: 0.01635036496 | N87: 960300 | O87: North Carolina | P87: 0.1341827248 | Q87: 0.3738542399 | R87: 0.6261457601 | S87: 0.210145898 | T87: 0.01041985699 | U87: 0.02947557376 | V87: 0.000601662182 | W87: 0.002920694878 | X87: 0.02487082171 | Y87: 0.09541973231 | Z87: Census Tract 9603, Bertie County, North Carolina | AB87: Bertie County | AD87: North Carolina | AE87: 0.2216007796 | AF87: 960300 | AG87: Census Tract 9603, Bertie County, North Carolina
A88: Bertie County | B88: 37015960401 | C88: 0.1695382495 | D88: 0.2299349241 | E88: 0.5523776706 | F88: 0.4476223294 | G88: 0.5 | H88: 0 | I88: 0.02618883529 | J88: 0 | K88: 0 | L88: 0.02618883529 | M88: 0 | N88: 960401 | O88: North Carolina | P88: 0.1341827248 | Q88: 0.3738542399 | R88: 0.6261457601 | S88: 0.210145898 | T88: 0.01041985699 | U88: 0.02947557376 | V88: 0.000601662182 | W88: 0.002920694878 | X88: 0.02487082171 | Y88: 0.09541973231 | Z88: Census Tract 9604.01, Bertie County, North Carolina | AB88: Bertie County | AD88: North Carolina | AE88: 0.2216007796 | AF88: 960401 | AG88: Census Tract 9604.01, Bertie County, North Carolina
A89: Bertie County | B89: 37015960402 | C89: 0.1324561404 | D89: 0.3937677054 | E89: 0.815497076 | F89: 0.184502924 | G89: 0.714619883 | H89: 0.01695906433 | I89: 0.004970760234 | J89: 0 | K89: 0.002923976608 | L89: 0.01988304094 | M89: 0.05614035088 | N89: 960402 | O89: North Carolina | P89: 0.1341827248 | Q89: 0.3738542399 | R89: 0.6261457601 | S89: 0.210145898 | T89: 0.01041985699 | U89: 0.02947557376 | V89: 0.000601662182 | W89: 0.002920694878 | X89: 0.02487082171 | Y89: 0.09541973231 | Z89: Census Tract 9604.02, Bertie County, North Carolina | AB89: Bertie County | AD89: North Carolina | AE89: 0.2216007796 | AF89: 960402 | AG89: Census Tract 9604.02, Bertie County, North Carolina
A90: Bladen County | B90: 37017950101 | C90: 0.2233215548 | D90: 0.0612033195 | E90: 0.4491166078 | F90: 0.5508833922 | G90: 0.1402826855 | H90: 0.01342756184 | I90: 0 | J90: 0 | K90: 0 | L90: 0.01024734982 | M90: 0.2851590106 | N90: 950101 | O90: North Carolina | P90: 0.1341827248 | Q90: 0.3738542399 | R90: 0.6261457601 | S90: 0.210145898 | T90: 0.01041985699 | U90: 0.02947557376 | V90: 0.000601662182 | W90: 0.002920694878 | X90: 0.02487082171 | Y90: 0.09541973231 | Z90: Census Tract 9501.01, Bladen County, North Carolina | AB90: Bladen County | AD90: North Carolina | AE90: 0.2216007796 | AF90: 950101 | AG90: Census Tract 9501.01, Bladen County, North Carolina
A91: Bladen County | B91: 37017950102 | C91: 0.1620139581 | D91: 0.3426724138 | E91: 0.2906281157 | F91: 0.7093718843 | G91: 0.185443669 | H91: 0.00149551346 | I91: 0.008973080758 | J91: 0 | K91: 0 | L91: 0 | M91: 0.09471585244 | N91: 950102 | O91: North Carolina | P91: 0.1341827248 | Q91: 0.3738542399 | R91: 0.6261457601 | S91: 0.210145898 | T91: 0.01041985699 | U91: 0.02947557376 | V91: 0.000601662182 | W91: 0.002920694878 | X91: 0.02487082171 | Y91: 0.09541973231 | Z91: Census Tract 9501.02, Bladen County, North Carolina | AB91: Bladen County | AD91: North Carolina | AE91: 0.2216007796 | AF91: 950102 | AG91: Census Tract 9501.02, Bladen County, North Carolina
A92: Bladen County | B92: 37017950200 | C92: 0.153821032 | D92: 0.2713414634 | E92: 0.485630307 | F92: 0.514369693 | G92: 0.355649902 | H92: 0 | I92: 0 | J92: 0 | K92: 0 | L92: 0.006531678641 | M92: 0.1234487263 | N92: 950200 | O92: North Carolina | P92: 0.1341827248 | Q92: 0.3738542399 | R92: 0.6261457601 | S92: 0.210145898 | T92: 0.01041985699 | U92: 0.02947557376 | V92: 0.000601662182 | W92: 0.002920694878 | X92: 0.02487082171 | Y92: 0.09541973231 | Z92: Census Tract 9502, Bladen County, North Carolina | AB92: Bladen County | AD92: North Carolina | AE92: 0.2216007796 | AF92: 950200 | AG92: Census Tract 9502, Bladen County, North Carolina
A93: Bladen County | B93: 37017950301 | C93: 0.2974663747 | D93: 0.2075812274 | E93: 0.4623084141 | F93: 0.5376915859 | G93: 0.2752580544 | H93: 0.01532686894 | I93: 0.01094776353 | J93: 0 | K93: 0 | L93: 0 | M93: 0.1607757272 | N93: 950301 | O93: North Carolina | P93: 0.1341827248 | Q93: 0.3738542399 | R93: 0.6261457601 | S93: 0.210145898 | T93: 0.01041985699 | U93: 0.02947557376 | V93: 0.000601662182 | W93: 0.002920694878 | X93: 0.02487082171 | Y93: 0.09541973231 | Z93: Census Tract 9503.01, Bladen County, North Carolina | AB93: Bladen County | AD93: North Carolina | AE93: 0.2216007796 | AF93: 950301 | AG93: Census Tract 9503.01, Bladen County, North Carolina
A94: Bladen County | B94: 37017950302 | C94: 0.1970979444 | D94: 0.2934537246 | E94: 0.3418984281 | F94: 0.6581015719 | G94: 0.276904474 | H94: 0 | I94: 0 | J94: 0 | K94: 0 | L94: 0.007557436518 | M94: 0.05743651753 | N94: 950302 | O94: North Carolina | P94: 0.1341827248 | Q94: 0.3738542399 | R94: 0.6261457601 | S94: 0.210145898 | T94: 0.01041985699 | U94: 0.02947557376 | V94: 0.000601662182 | W94: 0.002920694878 | X94: 0.02487082171 | Y94: 0.09541973231 | Z94: Census Tract 9503.02, Bladen County, North Carolina | AB94: Bladen County | AD94: North Carolina | AE94: 0.2216007796 | AF94: 950302 | AG94: Census Tract 9503.02, Bladen County, North Carolina
A95: Bladen County | B95: 37017950401 | C95: 0.1958224543 | D95: 0.4133496632 | E95: 0.5673629243 | F95: 0.4326370757 | G95: 0.5091383812 | H95: 0.01122715405 | I95: 0 | J95: 0 | K95: 0 | L95: 0 | M95: 0.04699738903 | N95: 950401 | O95: North Carolina | P95: 0.1341827248 | Q95: 0.3738542399 | R95: 0.6261457601 | S95: 0.210145898 | T95: 0.01041985699 | U95: 0.02947557376 | V95: 0.000601662182 | W95: 0.002920694878 | X95: 0.02487082171 | Y95: 0.09541973231 | Z95: Census Tract 9504.01, Bladen County, North Carolina | AB95: Bladen County | AD95: North Carolina | AE95: 0.2216007796 | AF95: 950401 | AG95: Census Tract 9504.01, Bladen County, North Carolina
A96: Bladen County | B96: 37017950402 | C96: 0.2498238196 | D96: 0.1691810345 | E96: 0.6705426357 | F96: 0.3294573643 | G96: 0.658210007 | H96: 0 | I96: 0 | J96: 0 | K96: 0 | L96: 0.003523608175 | M96: 0.008809020437 | N96: 950402 | O96: North Carolina | P96: 0.1341827248 | Q96: 0.3738542399 | R96: 0.6261457601 | S96: 0.210145898 | T96: 0.01041985699 | U96: 0.02947557376 | V96: 0.000601662182 | W96: 0.002920694878 | X96: 0.02487082171 | Y96: 0.09541973231 | Z96: Census Tract 9504.02, Bladen County, North Carolina | AB96: Bladen County | AD96: North Carolina | AE96: 0.2216007796 | AF96: 950402 | AG96: Census Tract 9504.02, Bladen County, North Carolina
A97: Bladen County | B97: 37017950501 | C97: 0.1775994417 | D97: 0.07792207792 | E97: 0.09630146546 | F97: 0.9036985345 | G97: 0.04815073273 | H97: 0 | I97: 0 | J97: 0 | K97: 0 | L97: 0.01395673412 | M97: 0.0341939986 | N97: 950501 | O97: North Carolina | P97: 0.1341827248 | Q97: 0.3738542399 | R97: 0.6261457601 | S97: 0.210145898 | T97: 0.01041985699 | U97: 0.02947557376 | V97: 0.000601662182 | W97: 0.002920694878 | X97: 0.02487082171 | Y97: 0.09541973231 | Z97: Census Tract 9505.01, Bladen County, North Carolina | AB97: Bladen County | AD97: North Carolina | AE97: 0.2216007796 | AF97: 950501 | AG97: Census Tract 9505.01, Bladen County, North Carolina
A98: Bladen County | B98: 37017950502 | C98: 0.1814928425 | D98: 0.2194265652 | E98: 0.268404908 | F98: 0.731595092 | G98: 0.2200920245 | H98: 0.01891615542 | I98: 0 | J98: 0 | K98: 0 | L98: 0.007157464213 | M98: 0.0222392638 | N98: 950502 | O98: North Carolina | P98: 0.1341827248 | Q98: 0.3738542399 | R98: 0.6261457601 | S98: 0.210145898 | T98: 0.01041985699 | U98: 0.02947557376 | V98: 0.000601662182 | W98: 0.002920694878 | X98: 0.02487082171 | Y98: 0.09541973231 | Z98: Census Tract 9505.02, Bladen County, North Carolina | AB98: Bladen County | AD98: North Carolina | AE98: 0.2216007796 | AF98: 950502 | AG98: Census Tract 9505.02, Bladen County, North Carolina
A99: Bladen County | B99: 37017950601 | C99: 0.2356599862 | D99: 0.2422723475 | E99: 0.5825846579 | F99: 0.4174153421 | G99: 0.5691085003 | H99: 0 | I99: 0 | J99: 0 | K99: 0 | L99: 0 | M99: 0.01347615757 | N99: 950601 | O99: North Carolina | P99: 0.1341827248 | Q99: 0.3738542399 | R99: 0.6261457601 | S99: 0.210145898 | T99: 0.01041985699 | U99: 0.02947557376 | V99: 0.000601662182 | W99: 0.002920694878 | X99: 0.02487082171 | Y99: 0.09541973231 | Z99: Census Tract 9506.01, Bladen County, North Carolina | AB99: Bladen County | AD99: North Carolina | AE99: 0.2216007796 | AF99: 950601 | AG99: Census Tract 9506.01, Bladen County, North Carolina
A100: Bladen County | B100: 37017950602 | C100: 0.1857258719 | D100: 0.2286527514 | E100: 0.801297648 | F100: 0.198702352 | G100: 0.5291970803 | H100: 0.2542579075 | I100: 0 | J100: 0 | K100: 0 | L100: 0.01540957015 | M100: 0.002433090024 | N100: 950602 | O100: North Carolina | P100: 0.1341827248 | Q100: 0.3738542399 | R100: 0.6261457601 | S100: 0.210145898 | T100: 0.01041985699 | U100: 0.02947557376 | V100: 0.000601662182 | W100: 0.002920694878 | X100: 0.02487082171 | Y100: 0.09541973231 | Z100: Census Tract 9506.02, Bladen County, North Carolina | AB100: Bladen County | AD100: North Carolina | AE100: 0.2216007796 | AF100: 950602 | AG100: Census Tract 9506.02, Bladen County, North Carolina
A101: Brunswick County | B101: 37019020101 | C101: 0.1993097498 | D101: 0.1881188119 | E101: 0.606557377 | F101: 0.393442623 | G101: 0.3882657463 | H101: 0.03580672994 | I101: 0.005176876618 | J101: 0 | K101: 0.002588438309 | L101: 0.02415875755 | M101: 0.1505608283 | N101: 20101 | O101: North Carolina | P101: 0.1341827248 | Q101: 0.3738542399 | R101: 0.6261457601 | S101: 0.210145898 | T101: 0.01041985699 | U101: 0.02947557376 | V101: 0.000601662182 | W101: 0.002920694878 | X101: 0.02487082171 | Y101: 0.09541973231 | Z101: Census Tract 201.01, Brunswick County, North Carolina | AB101: Brunswick County | AD101: North Carolina | AE101: 0.2216007796 | AF101: 20101 | AG101: Census Tract 201.01, Brunswick County, North Carolina
A102: Brunswick County | B102: 37019020102 | C102: 0.1575218023 | D102: 0.1197183099 | E102: 0.2957848837 | F102: 0.7042151163 | G102: 0.08993459302 | H102: 0 | I102: 0.003997093023 | J102: 0 | K102: 0.004723837209 | L102: 0.09484011628 | M102: 0.1022892442 | N102: 20102 | O102: North Carolina | P102: 0.1341827248 | Q102: 0.3738542399 | R102: 0.6261457601 | S102: 0.210145898 | T102: 0.01041985699 | U102: 0.02947557376 | V102: 0.000601662182 | W102: 0.002920694878 | X102: 0.02487082171 | Y102: 0.09541973231 | Z102: Census Tract 201.02, Brunswick County, North Carolina | AB102: Brunswick County | AD102: North Carolina | AE102: 0.2216007796 | AF102: 20102 | AG102: Census Tract 201.02, Brunswick County, North Carolina
A103: Brunswick County | B103: 37019020105 | C103: 0.1610105007 | D103: 0.04823151125 | E103: 0.15979303 | F103: 0.84020697 | G103: 0.04869882818 | H103: 0 | I103: 0.01582711916 | J103: 0 | K103: 0 | L103: 0.007761375742 | M103: 0.08750570689 | N103: 20105 | O103: North Carolina | P103: 0.1341827248 | Q103: 0.3738542399 | R103: 0.6261457601 | S103: 0.210145898 | T103: 0.01041985699 | U103: 0.02947557376 | V103: 0.000601662182 | W103: 0.002920694878 | X103: 0.02487082171 | Y103: 0.09541973231 | Z103: Census Tract 201.05, Brunswick County, North Carolina | AB103: Brunswick County | AD103: North Carolina | AE103: 0.2216007796 | AF103: 20105 | AG103: Census Tract 201.05, Brunswick County, North Carolina
A104: Brunswick County | B104: 37019020106 | C104: 0.2167327804 | D104: 0.2295221843 | E104: 0.1078254598 | F104: 0.8921745402 | G104: 0.08041831951 | H104: 0 | I104: 0.003606202669 | J104: 0 | K104: 0 | L104: 0.02380093761 | M104: 0 | N104: 20106 | O104: North Carolina | P104: 0.1341827248 | Q104: 0.3738542399 | R104: 0.6261457601 | S104: 0.210145898 | T104: 0.01041985699 | U104: 0.02947557376 | V104: 0.000601662182 | W104: 0.002920694878 | X104: 0.02487082171 | Y104: 0.09541973231 | Z104: Census Tract 201.06, Brunswick County, North Carolina | AB104: Brunswick County | AD104: North Carolina | AE104: 0.2216007796 | AF104: 20106 | AG104: Census Tract 201.06, Brunswick County, North Carolina
A105: Brunswick County | B105: 37019020107 | C105: 0.316748626 | D105: 0.1324820431 | E105: 0.316748626 | F105: 0.683251374 | G105: 0.04743997686 | H105: 0.01388487128 | I105: 0 | J105: 0 | K105: 0 | L105: 0.0274804744 | M105: 0.2279433034 | N105: 20107 | O105: North Carolina | P105: 0.1341827248 | Q105: 0.3738542399 | R105: 0.6261457601 | S105: 0.210145898 | T105: 0.01041985699 | U105: 0.02947557376 | V105: 0.000601662182 | W105: 0.002920694878 | X105: 0.02487082171 | Y105: 0.09541973231 | Z105: Census Tract 201.07, Brunswick County, North Carolina | AB105: Brunswick County | AD105: North Carolina | AE105: 0.2216007796 | AF105: 20107 | AG105: Census Tract 201.07, Brunswick County, North Carolina
A106: Brunswick County | B106: 37019020108 | C106: 0.1723329426 | D106: 0.1701277955 | E106: 0.4947245018 | F106: 0.5052754982 | G106: 0.3056858148 | H106: 0.01465416178 | I106: 0 | J106: 0 | K106: 0 | L106: 0.08704572098 | M106: 0.08733880422 | N106: 20108 | O106: North Carolina | P106: 0.1341827248 | Q106: 0.3738542399 | R106: 0.6261457601 | S106: 0.210145898 | T106: 0.01041985699 | U106: 0.02947557376 | V106: 0.000601662182 | W106: 0.002920694878 | X106: 0.02487082171 | Y106: 0.09541973231 | Z106: Census Tract 201.08, Brunswick County, North Carolina | AB106: Brunswick County | AD106: North Carolina | AE106: 0.2216007796 | AF106: 20108 | AG106: Census Tract 201.08, Brunswick County, North Carolina
A107: Brunswick County | B107: 37019020201 | C107: 0.2192697035 | D107: 0.1613745107 | E107: 0.354483008 | F107: 0.645516992 | G107: 0.2124005785 | H107: 0.02205350687 | I107: 0.01518438178 | J107: 0 | K107: 0 | L107: 0.05296456978 | M107: 0.05187997108 | N107: 20201 | O107: North Carolina | P107: 0.1341827248 | Q107: 0.3738542399 | R107: 0.6261457601 | S107: 0.210145898 | T107: 0.01041985699 | U107: 0.02947557376 | V107: 0.000601662182 | W107: 0.002920694878 | X107: 0.02487082171 | Y107: 0.09541973231 | Z107: Census Tract 202.01, Brunswick County, North Carolina | AB107: Brunswick County | AD107: North Carolina | AE107: 0.2216007796 | AF107: 20201 | AG107: Census Tract 202.01, Brunswick County, North Carolina
A108: Brunswick County | B108: 37019020203 | C108: 0.2023653088 | D108: 0.1070195627 | E108: 0.1905387648 | F108: 0.8094612352 | G108: 0.03898379325 | H108: 0.04599211564 | I108: 0.02102496715 | J108: 0 | K108: 0 | L108: 0 | M108: 0.08453788874 | N108: 20203 | O108: North Carolina | P108: 0.1341827248 | Q108: 0.3738542399 | R108: 0.6261457601 | S108: 0.210145898 | T108: 0.01041985699 | U108: 0.02947557376 | V108: 0.000601662182 | W108: 0.002920694878 | X108: 0.02487082171 | Y108: 0.09541973231 | Z108: Census Tract 202.03, Brunswick County, North Carolina | AB108: Brunswick County | AD108: North Carolina | AE108: 0.2216007796 | AF108: 20203 | AG108: Census Tract 202.03, Brunswick County, North Carolina
A109: Brunswick County | B109: 37019020204 | C109: 0.2092532696 | D109: 0.1167235495 | E109: 0.1245956968 | F109: 0.8754043032 | G109: 0.03164111939 | H109: 0 | I109: 0 | J109: 0 | K109: 0 | L109: 0.04739136549 | M109: 0.04556321193 | N109: 20204 | O109: North Carolina | P109: 0.1341827248 | Q109: 0.3738542399 | R109: 0.6261457601 | S109: 0.210145898 | T109: 0.01041985699 | U109: 0.02947557376 | V109: 0.000601662182 | W109: 0.002920694878 | X109: 0.02487082171 | Y109: 0.09541973231 | Z109: Census Tract 202.04, Brunswick County, North Carolina | AB109: Brunswick County | AD109: North Carolina | AE109: 0.2216007796 | AF109: 20204 | AG109: Census Tract 202.04, Brunswick County, North Carolina
A110: Brunswick County | B110: 37019020205 | C110: 0.1414601474 | D110: 0.02800933645 | E110: 0.1375753516 | F110: 0.8624246484 | G110: 0.07046215673 | H110: 0 | I110: 0.001339584729 | J110: 0 | K110: 0 | L110: 0.04166108506 | M110: 0.02411252512 | N110: 20205 | O110: North Carolina | P110: 0.1341827248 | Q110: 0.3738542399 | R110: 0.6261457601 | S110: 0.210145898 | T110: 0.01041985699 | U110: 0.02947557376 | V110: 0.000601662182 | W110: 0.002920694878 | X110: 0.02487082171 | Y110: 0.09541973231 | Z110: Census Tract 202.05, Brunswick County, North Carolina | AB110: Brunswick County | AD110: North Carolina | AE110: 0.2216007796 | AF110: 20205 | AG110: Census Tract 202.05, Brunswick County, North Carolina
A111: Brunswick County | B111: 37019020206 | C111: 0.201853759 | D111: 0.2509270705 | E111: 0.2682801236 | F111: 0.7317198764 | G111: 0.1122554068 | H111: 0 | I111: 0.01287332647 | J111: 0 | K111: 0 | L111: 0.1431513903 | M111: 0 | N111: 20206 | O111: North Carolina | P111: 0.1341827248 | Q111: 0.3738542399 | R111: 0.6261457601 | S111: 0.210145898 | T111: 0.01041985699 | U111: 0.02947557376 | V111: 0.000601662182 | W111: 0.002920694878 | X111: 0.02487082171 | Y111: 0.09541973231 | Z111: Census Tract 202.06, Brunswick County, North Carolina | AB111: Brunswick County | AD111: North Carolina | AE111: 0.2216007796 | AF111: 20206 | AG111: Census Tract 202.06, Brunswick County, North Carolina
A112: Brunswick County | B112: 37019020304 | C112: 0.06615828524 | D112: 0.0544600939 | E112: 0.04699093157 | F112: 0.9530090684 | G112: 0.002782357791 | H112: 0.008862324815 | I112: 0.00350370981 | J112: 0 | K112: 0 | L112: 0.005770816158 | M112: 0.026071723 | N112: 20304 | O112: North Carolina | P112: 0.1341827248 | Q112: 0.3738542399 | R112: 0.6261457601 | S112: 0.210145898 | T112: 0.01041985699 | U112: 0.02947557376 | V112: 0.000601662182 | W112: 0.002920694878 | X112: 0.02487082171 | Y112: 0.09541973231 | Z112: Census Tract 203.04, Brunswick County, North Carolina | AB112: Brunswick County | AD112: North Carolina | AE112: 0.2216007796 | AF112: 20304 | AG112: Census Tract 203.04, Brunswick County, North Carolina
A113: Brunswick County | B113: 37019020305 | C113: 0.148696265 | D113: 0.08362369338 | E113: 0.2290345314 | F113: 0.7709654686 | G113: 0.1874559549 | H113: 0 | I113: 0 | J113: 0 | K113: 0 | L113: 0.02114164905 | M113: 0.02043692741 | N113: 20305 | O113: North Carolina | P113: 0.1341827248 | Q113: 0.3738542399 | R113: 0.6261457601 | S113: 0.210145898 | T113: 0.01041985699 | U113: 0.02947557376 | V113: 0.000601662182 | W113: 0.002920694878 | X113: 0.02487082171 | Y113: 0.09541973231 | Z113: Census Tract 203.05, Brunswick County, North Carolina | AB113: Brunswick County | AD113: North Carolina | AE113: 0.2216007796 | AF113: 20305 | AG113: Census Tract 203.05, Brunswick County, North Carolina
A114: Brunswick County | B114: 37019020306 | C114: 0.09221616262 | D114: 0.05256570713 | E114: 0.08180466039 | F114: 0.9181953396 | G114: 0.06147744175 | H114: 0 | I114: 0 | J114: 0 | K114: 0 | L114: 0.007436787308 | M114: 0.01289043133 | N114: 20306 | O114: North Carolina | P114: 0.1341827248 | Q114: 0.3738542399 | R114: 0.6261457601 | S114: 0.210145898 | T114: 0.01041985699 | U114: 0.02947557376 | V114: 0.000601662182 | W114: 0.002920694878 | X114: 0.02487082171 | Y114: 0.09541973231 | Z114: Census Tract 203.06, Brunswick County, North Carolina | AB114: Brunswick County | AD114: North Carolina | AE114: 0.2216007796 | AF114: 20306 | AG114: Census Tract 203.06, Brunswick County, North Carolina
A115: Brunswick County | B115: 37019020307 | C115: 0 | D115: 0.03174603175 | E115: 0.00956937799 | F115: 0.990430622 | G115: 0 | H115: 0 | I115: 0 | J115: 0 | K115: 0 | L115: 0 | M115: 0.00956937799 | N115: 20307 | O115: North Carolina | P115: 0.1341827248 | Q115: 0.3738542399 | R115: 0.6261457601 | S115: 0.210145898 | T115: 0.01041985699 | U115: 0.02947557376 | V115: 0.000601662182 | W115: 0.002920694878 | X115: 0.02487082171 | Y115: 0.09541973231 | Z115: Census Tract 203.07, Brunswick County, North Carolina | AB115: Brunswick County | AD115: North Carolina | AE115: 0.2216007796 | AF115: 20307 | AG115: Census Tract 203.07, Brunswick County, North Carolina
A116: Brunswick County | B116: 37019020308 | C116: 0.1378026071 | D116: 0.0337995338 | E116: 0.04515828678 | F116: 0.9548417132 | G116: 0 | H116: 0 | I116: 0 | J116: 0 | K116: 0 | L116: 0.04515828678 | M116: 0 | N116: 20308 | O116: North Carolina | P116: 0.1341827248 | Q116: 0.3738542399 | R116: 0.6261457601 | S116: 0.210145898 | T116: 0.01041985699 | U116: 0.02947557376 | V116: 0.000601662182 | W116: 0.002920694878 | X116: 0.02487082171 | Y116: 0.09541973231 | Z116: Census Tract 203.08, Brunswick County, North Carolina | AB116: Brunswick County | AD116: North Carolina | AE116: 0.2216007796 | AF116: 20308 | AG116: Census Tract 203.08, Brunswick County, North Carolina
A117: Brunswick County | B117: 37019020311 | C117: 0.09956419712 | D117: 0.1220798794 | E117: 0.1049279249 | F117: 0.8950720751 | G117: 0.06537043245 | H117: 0.01340931948 | I117: 0 | J117: 0 | K117: 0 | L117: 0.002011397922 | M117: 0.02413677506 | N117: 20311 | O117: North Carolina | P117: 0.1341827248 | Q117: 0.3738542399 | R117: 0.6261457601 | S117: 0.210145898 | T117: 0.01041985699 | U117: 0.02947557376 | V117: 0.000601662182 | W117: 0.002920694878 | X117: 0.02487082171 | Y117: 0.09541973231 | Z117: Census Tract 203.11, Brunswick County, North Carolina | AB117: Brunswick County | AD117: North Carolina | AE117: 0.2216007796 | AF117: 20311 | AG117: Census Tract 203.11, Brunswick County, North Carolina
A118: Brunswick County | B118: 37019020312 | C118: 0.1426056338 | D118: 0.2626811594 | E118: 0.1276408451 | F118: 0.8723591549 | G118: 0.07306338028 | H118: 0.03873239437 | I118: 0.01584507042 | J118: 0 | K118: 0 | L118: 0 | M118: 0 | N118: 20312 | O118: North Carolina | P118: 0.1341827248 | Q118: 0.3738542399 | R118: 0.6261457601 | S118: 0.210145898 | T118: 0.01041985699 | U118: 0.02947557376 | V118: 0.000601662182 | W118: 0.002920694878 | X118: 0.02487082171 | Y118: 0.09541973231 | Z118: Census Tract 203.12, Brunswick County, North Carolina | AB118: Brunswick County | AD118: North Carolina | AE118: 0.2216007796 | AF118: 20312 | AG118: Census Tract 203.12, Brunswick County, North Carolina
A119: Brunswick County | B119: 37019020313 | C119: 0.09249902837 | D119: 0.06753645434 | E119: 0.01049358725 | F119: 0.9895064127 | G119: 0 | H119: 0 | I119: 0 | J119: 0 | K119: 0 | L119: 0 | M119: 0.01049358725 | N119: 20313 | O119: North Carolina | P119: 0.1341827248 | Q119: 0.3738542399 | R119: 0.6261457601 | S119: 0.210145898 | T119: 0.01041985699 | U119: 0.02947557376 | V119: 0.000601662182 | W119: 0.002920694878 | X119: 0.02487082171 | Y119: 0.09541973231 | Z119: Census Tract 203.13, Brunswick County, North Carolina | AB119: Brunswick County | AD119: North Carolina | AE119: 0.2216007796 | AF119: 20313 | AG119: Census Tract 203.13, Brunswick County, North Carolina
A120: Brunswick County | B120: 37019020314 | C120: 0.07368421053 | D120: 0 | E120: 0.07105263158 | F120: 0.9289473684 | G120: 0.04473684211 | H120: 0 | I120: 0.02631578947 | J120: 0 | K120: 0 | L120: 0 | M120: 0 | N120: 20314 | O120: North Carolina | P120: 0.1341827248 | Q120: 0.3738542399 | R120: 0.6261457601 | S120: 0.210145898 | T120: 0.01041985699 | U120: 0.02947557376 | V120: 0.000601662182 | W120: 0.002920694878 | X120: 0.02487082171 | Y120: 0.09541973231 | Z120: Census Tract 203.14, Brunswick County, North Carolina | AB120: Brunswick County | AD120: North Carolina | AE120: 0.2216007796 | AF120: 20314 | AG120: Census Tract 203.14, Brunswick County, North Carolina
A121: Brunswick County | B121: 37019020315 | C121: 0.06340677055 | D121: 0.1719876416 | E121: 0.0204191295 | F121: 0.9795808705 | G121: 0 | H121: 0.006448146158 | I121: 0 | J121: 0 | K121: 0 | L121: 0.01397098334 | M121: 0 | N121: 20315 | O121: North Carolina | P121: 0.1341827248 | Q121: 0.3738542399 | R121: 0.6261457601 | S121: 0.210145898 | T121: 0.01041985699 | U121: 0.02947557376 | V121: 0.000601662182 | W121: 0.002920694878 | X121: 0.02487082171 | Y121: 0.09541973231 | Z121: Census Tract 203.15, Brunswick County, North Carolina | AB121: Brunswick County | AD121: North Carolina | AE121: 0.2216007796 | AF121: 20315 | AG121: Census Tract 203.15, Brunswick County, North Carolina
A122: Brunswick County | B122: 37019020316 | C122: 0.1192893401 | D122: 0.06194690265 | E122: 0.05076142132 | F122: 0.9492385787 | G122: 0 | H122: 0 | I122: 0.02664974619 | J122: 0 | K122: 0 | L122: 0.003807106599 | M122: 0.02030456853 | N122: 20316 | O122: North Carolina | P122: 0.1341827248 | Q122: 0.3738542399 | R122: 0.6261457601 | S122: 0.210145898 | T122: 0.01041985699 | U122: 0.02947557376 | V122: 0.000601662182 | W122: 0.002920694878 | X122: 0.02487082171 | Y122: 0.09541973231 | Z122: Census Tract 203.16, Brunswick County, North Carolina | AB122: Brunswick County | AD122: North Carolina | AE122: 0.2216007796 | AF122: 20316 | AG122: Census Tract 203.16, Brunswick County, North Carolina
A123: Brunswick County | B123: 37019020404 | C123: 0.2003384095 | D123: 0.1608391608 | E123: 0.185786802 | F123: 0.814213198 | G123: 0.1275803723 | H123: 0.01285956007 | I123: 0 | J123: 0 | K123: 0 | L123: 0 | M123: 0.04534686971 | N123: 20404 | O123: North Carolina | P123: 0.1341827248 | Q123: 0.3738542399 | R123: 0.6261457601 | S123: 0.210145898 | T123: 0.01041985699 | U123: 0.02947557376 | V123: 0.000601662182 | W123: 0.002920694878 | X123: 0.02487082171 | Y123: 0.09541973231 | Z123: Census Tract 204.04, Brunswick County, North Carolina | AB123: Brunswick County | AD123: North Carolina | AE123: 0.2216007796 | AF123: 20404 | AG123: Census Tract 204.04, Brunswick County, North Carolina
A124: Brunswick County | B124: 37019020405 | C124: 0.126940888 | D124: 0.1034482759 | E124: 0.062653228 | F124: 0.937346772 | G124: 0.03323345138 | H124: 0.001906837374 | I124: 0 | J124: 0.0008172160174 | K124: 0 | L124: 0.007354944157 | M124: 0.01934077908 | N124: 20405 | O124: North Carolina | P124: 0.1341827248 | Q124: 0.3738542399 | R124: 0.6261457601 | S124: 0.210145898 | T124: 0.01041985699 | U124: 0.02947557376 | V124: 0.000601662182 | W124: 0.002920694878 | X124: 0.02487082171 | Y124: 0.09541973231 | Z124: Census Tract 204.05, Brunswick County, North Carolina | AB124: Brunswick County | AD124: North Carolina | AE124: 0.2216007796 | AF124: 20405 | AG124: Census Tract 204.05, Brunswick County, North Carolina
A125: Brunswick County | B125: 37019020406 | C125: 0.04498977505 | D125: 0.03837953092 | E125: 0.03374233129 | F125: 0.9662576687 | G125: 0.005112474438 | H125: 0.005112474438 | I125: 0 | J125: 0 | K125: 0 | L125: 0 | M125: 0.02351738241 | N125: 20406 | O125: North Carolina | P125: 0.1341827248 | Q125: 0.3738542399 | R125: 0.6261457601 | S125: 0.210145898 | T125: 0.01041985699 | U125: 0.02947557376 | V125: 0.000601662182 | W125: 0.002920694878 | X125: 0.02487082171 | Y125: 0.09541973231 | Z125: Census Tract 204.06, Brunswick County, North Carolina | AB125: Brunswick County | AD125: North Carolina | AE125: 0.2216007796 | AF125: 20406 | AG125: Census Tract 204.06, Brunswick County, North Carolina
A126: Brunswick County | B126: 37019020407 | C126: 0.06752411576 | D126: 0.3365282215 | E126: 0.003215434084 | F126: 0.9967845659 | G126: 0 | H126: 0 | I126: 0 | J126: 0 | K126: 0 | L126: 0 | M126: 0.003215434084 | N126: 20407 | O126: North Carolina | P126: 0.1341827248 | Q126: 0.3738542399 | R126: 0.6261457601 | S126: 0.210145898 | T126: 0.01041985699 | U126: 0.02947557376 | V126: 0.000601662182 | W126: 0.002920694878 | X126: 0.02487082171 | Y126: 0.09541973231 | Z126: Census Tract 204.07, Brunswick County, North Carolina | AB126: Brunswick County | AD126: North Carolina | AE126: 0.2216007796 | AF126: 20407 | AG126: Census Tract 204.07, Brunswick County, North Carolina
A127: Brunswick County | B127: 37019020408 | C127: 0.199251637 | D127: 0.2897553517 | E127: 0.3473651388 | F127: 0.6526348612 | G127: 0.1396944185 | H127: 0 | I127: 0 | J127: 0 | K127: 0 | L127: 0.131898971 | M127: 0.0757717493 | N127: 20408 | O127: North Carolina | P127: 0.1341827248 | Q127: 0.3738542399 | R127: 0.6261457601 | S127: 0.210145898 | T127: 0.01041985699 | U127: 0.02947557376 | V127: 0.000601662182 | W127: 0.002920694878 | X127: 0.02487082171 | Y127: 0.09541973231 | Z127: Census Tract 204.08, Brunswick County, North Carolina | AB127: Brunswick County | AD127: North Carolina | AE127: 0.2216007796 | AF127: 20408 | AG127: Census Tract 204.08, Brunswick County, North Carolina
A128: Brunswick County | B128: 37019020409 | C128: 0.2340702211 | D128: 0.1916666667 | E128: 0.09276116168 | F128: 0.9072388383 | G128: 0.03814477677 | H128: 0 | I128: 0.02210663199 | J128: 0 | K128: 0 | L128: 0 | M128: 0.03250975293 | N128: 20409 | O128: North Carolina | P128: 0.1341827248 | Q128: 0.3738542399 | R128: 0.6261457601 | S128: 0.210145898 | T128: 0.01041985699 | U128: 0.02947557376 | V128: 0.000601662182 | W128: 0.002920694878 | X128: 0.02487082171 | Y128: 0.09541973231 | Z128: Census Tract 204.09, Brunswick County, North Carolina | AB128: Brunswick County | AD128: North Carolina | AE128: 0.2216007796 | AF128: 20409 | AG128: Census Tract 204.09, Brunswick County, North Carolina
A129: Brunswick County | B129: 37019020504 | C129: 0.04861773117 | D129: 0.05268389662 | E129: 0.114871306 | F129: 0.885128694 | G129: 0.05576739752 | H129: 0 | I129: 0 | J129: 0 | K129: 0 | L129: 0.0004766444233 | M129: 0.05862726406 | N129: 20504 | O129: North Carolina | P129: 0.1341827248 | Q129: 0.3738542399 | R129: 0.6261457601 | S129: 0.210145898 | T129: 0.01041985699 | U129: 0.02947557376 | V129: 0.000601662182 | W129: 0.002920694878 | X129: 0.02487082171 | Y129: 0.09541973231 | Z129: Census Tract 205.04, Brunswick County, North Carolina | AB129: Brunswick County | AD129: North Carolina | AE129: 0.2216007796 | AF129: 20504 | AG129: Census Tract 205.04, Brunswick County, North Carolina
A130: Brunswick County | B130: 37019020505 | C130: 0.2400977995 | D130: 0.1743002545 | E130: 0.388997555 | F130: 0.611002445 | G130: 0.2134474328 | H130: 0 | I130: 0.02273838631 | J130: 0 | K130: 0 | L130: 0.04449877751 | M130: 0.1083129584 | N130: 20505 | O130: North Carolina | P130: 0.1341827248 | Q130: 0.3738542399 | R130: 0.6261457601 | S130: 0.210145898 | T130: 0.01041985699 | U130: 0.02947557376 | V130: 0.000601662182 | W130: 0.002920694878 | X130: 0.02487082171 | Y130: 0.09541973231 | Z130: Census Tract 205.05, Brunswick County, North Carolina | AB130: Brunswick County | AD130: North Carolina | AE130: 0.2216007796 | AF130: 20505 | AG130: Census Tract 205.05, Brunswick County, North Carolina
A131: Brunswick County | B131: 37019020508 | C131: 0.02463921155 | D131: 0.07097680956 | E131: 0.06863780359 | F131: 0.9313621964 | G131: 0.02252727913 | H131: 0 | I131: 0.01126363956 | J131: 0 | K131: 0.006335797254 | L131: 0.01759943682 | M131: 0.01091165083 | N131: 20508 | O131: North Carolina | P131: 0.1341827248 | Q131: 0.3738542399 | R131: 0.6261457601 | S131: 0.210145898 | T131: 0.01041985699 | U131: 0.02947557376 | V131: 0.000601662182 | W131: 0.002920694878 | X131: 0.02487082171 | Y131: 0.09541973231 | Z131: Census Tract 205.08, Brunswick County, North Carolina | AB131: Brunswick County | AD131: North Carolina | AE131: 0.2216007796 | AF131: 20508 | AG131: Census Tract 205.08, Brunswick County, North Carolina
A132: Brunswick County | B132: 37019020510 | C132: 0.0838299563 | D132: 0.1872909699 | E132: 0.07032181168 | F132: 0.9296781883 | G132: 0.01072705602 | H132: 0 | I132: 0.004370282082 | J132: 0 | K132: 0 | L132: 0.02264600715 | M132: 0.03257846643 | N132: 20510 | O132: North Carolina | P132: 0.1341827248 | Q132: 0.3738542399 | R132: 0.6261457601 | S132: 0.210145898 | T132: 0.01041985699 | U132: 0.02947557376 | V132: 0.000601662182 | W132: 0.002920694878 | X132: 0.02487082171 | Y132: 0.09541973231 | Z132: Census Tract 205.10, Brunswick County, North Carolina | AB132: Brunswick County | AD132: North Carolina | AE132: 0.2216007796 | AF132: 20510 | AG132: Census Tract 205.10, Brunswick County, North Carolina
A133: Brunswick County | B133: 37019020511 | C133: 0.1141439206 | D133: 0.121304791 | E133: 0.06947890819 | F133: 0.9305210918 | G133: 0 | H133: 0 | I133: 0 | J133: 0 | K133: 0.004962779156 | L133: 0.01439205955 | M133: 0.05012406948 | N133: 20511 | O133: North Carolina | P133: 0.1341827248 | Q133: 0.3738542399 | R133: 0.6261457601 | S133: 0.210145898 | T133: 0.01041985699 | U133: 0.02947557376 | V133: 0.000601662182 | W133: 0.002920694878 | X133: 0.02487082171 | Y133: 0.09541973231 | Z133: Census Tract 205.11, Brunswick County, North Carolina | AB133: Brunswick County | AD133: North Carolina | AE133: 0.2216007796 | AF133: 20511 | AG133: Census Tract 205.11, Brunswick County, North Carolina
A134: Brunswick County | B134: 37019020512 | C134: 0.06147091109 | D134: 0.07399577167 | E134: 0.04500548847 | F134: 0.9549945115 | G134: 0 | H134: 0.008781558727 | I134: 0.006586169045 | J134: 0 | K134: 0 | L134: 0 | M134: 0.0296377607 | N134: 20512 | O134: North Carolina | P134: 0.1341827248 | Q134: 0.3738542399 | R134: 0.6261457601 | S134: 0.210145898 | T134: 0.01041985699 | U134: 0.02947557376 | V134: 0.000601662182 | W134: 0.002920694878 | X134: 0.02487082171 | Y134: 0.09541973231 | Z134: Census Tract 205.12, Brunswick County, North Carolina | AB134: Brunswick County | AD134: North Carolina | AE134: 0.2216007796 | AF134: 20512 | AG134: Census Tract 205.12, Brunswick County, North Carolina
A135: Brunswick County | B135: 37019020513 | C135: 0.2430875576 | D135: 0.07594936709 | E135: 0.444124424 | F135: 0.555875576 | G135: 0.3692396313 | H135: 0 | I135: 0 | J135: 0 | K135: 0 | L135: 0.03571428571 | M135: 0.03917050691 | N135: 20513 | O135: North Carolina | P135: 0.1341827248 | Q135: 0.3738542399 | R135: 0.6261457601 | S135: 0.210145898 | T135: 0.01041985699 | U135: 0.02947557376 | V135: 0.000601662182 | W135: 0.002920694878 | X135: 0.02487082171 | Y135: 0.09541973231 | Z135: Census Tract 205.13, Brunswick County, North Carolina | AB135: Brunswick County | AD135: North Carolina | AE135: 0.2216007796 | AF135: 20513 | AG135: Census Tract 205.13, Brunswick County, North Carolina
A136: Brunswick County | B136: 37019020514 | C136: 0.1763076923 | D136: 0.1527977044 | E136: 0.06430769231 | F136: 0.9356923077 | G136: 0.004307692308 | H136: 0.01046153846 | I136: 0 | J136: 0 | K136: 0 | L136: 0.01015384615 | M136: 0.03938461538 | N136: 20514 | O136: North Carolina | P136: 0.1341827248 | Q136: 0.3738542399 | R136: 0.6261457601 | S136: 0.210145898 | T136: 0.01041985699 | U136: 0.02947557376 | V136: 0.000601662182 | W136: 0.002920694878 | X136: 0.02487082171 | Y136: 0.09541973231 | Z136: Census Tract 205.14, Brunswick County, North Carolina | AB136: Brunswick County | AD136: North Carolina | AE136: 0.2216007796 | AF136: 20514 | AG136: Census Tract 205.14, Brunswick County, North Carolina
A137: Brunswick County | B137: 37019020515 | C137: 0.06097833371 | D137: 0.03988120492 | E137: 0.2068349341 | F137: 0.7931650659 | G137: 0.09626982354 | H137: 0.008934554389 | I137: 0 | J137: 0 | K137: 0.062095153 | L137: 0.02613357159 | M137: 0.01340183158 | N137: 20515 | O137: North Carolina | P137: 0.1341827248 | Q137: 0.3738542399 | R137: 0.6261457601 | S137: 0.210145898 | T137: 0.01041985699 | U137: 0.02947557376 | V137: 0.000601662182 | W137: 0.002920694878 | X137: 0.02487082171 | Y137: 0.09541973231 | Z137: Census Tract 205.15, Brunswick County, North Carolina | AB137: Brunswick County | AD137: North Carolina | AE137: 0.2216007796 | AF137: 20515 | AG137: Census Tract 205.15, Brunswick County, North Carolina
A138: Brunswick County | B138: 37019020516 | C138: 0.08435544431 | D138: 0.0843248836 | E138: 0.07158948686 | F138: 0.9284105131 | G138: 0.04806007509 | H138: 0 | I138: 0 | J138: 0 | K138: 0 | L138: 0.01251564456 | M138: 0.01101376721 | N138: 20516 | O138: North Carolina | P138: 0.1341827248 | Q138: 0.3738542399 | R138: 0.6261457601 | S138: 0.210145898 | T138: 0.01041985699 | U138: 0.02947557376 | V138: 0.000601662182 | W138: 0.002920694878 | X138: 0.02487082171 | Y138: 0.09541973231 | Z138: Census Tract 205.16, Brunswick County, North Carolina | AB138: Brunswick County | AD138: North Carolina | AE138: 0.2216007796 | AF138: 20516 | AG138: Census Tract 205.16, Brunswick County, North Carolina
A139: Brunswick County | B139: 37019020517 | C139: 0.1037567084 | D139: 0.1915925627 | E139: 0.111627907 | F139: 0.888372093 | G139: 0.01252236136 | H139: 0.01788908766 | I139: 0.03398926655 | J139: 0 | K139: 0 | L139: 0.04508050089 | M139: 0.002146690519 | N139: 20517 | O139: North Carolina | P139: 0.1341827248 | Q139: 0.3738542399 | R139: 0.6261457601 | S139: 0.210145898 | T139: 0.01041985699 | U139: 0.02947557376 | V139: 0.000601662182 | W139: 0.002920694878 | X139: 0.02487082171 | Y139: 0.09541973231 | Z139: Census Tract 205.17, Brunswick County, North Carolina | AB139: Brunswick County | AD139: North Carolina | AE139: 0.2216007796 | AF139: 20517 | AG139: Census Tract 205.17, Brunswick County, North Carolina
A140: Brunswick County | B140: 37019020518 | C140: 0.0487804878 | D140: 0.04308943089 | E140: 0 | F140: 1 | G140: 0 | H140: 0 | I140: 0 | J140: 0 | K140: 0 | L140: 0 | M140: 0 | N140: 20518 | O140: North Carolina | P140: 0.1341827248 | Q140: 0.3738542399 | R140: 0.6261457601 | S140: 0.210145898 | T140: 0.01041985699 | U140: 0.02947557376 | V140: 0.000601662182 | W140: 0.002920694878 | X140: 0.02487082171 | Y140: 0.09541973231 | Z140: Census Tract 205.18, Brunswick County, North Carolina | AB140: Brunswick County | AD140: North Carolina | AE140: 0.2216007796 | AF140: 20518 | AG140: Census Tract 205.18, Brunswick County, North Carolina
A141: Brunswick County | B141: 37019020601 | C141: 0.2387688778 | D141: 0.2039215686 | E141: 0.3519403556 | F141: 0.6480596444 | G141: 0.2854138788 | H141: 0 | I141: 0 | J141: 0 | K141: 0 | L141: 0.02867520551 | M141: 0.03785127127 | N141: 20601 | O141: North Carolina | P141: 0.1341827248 | Q141: 0.3738542399 | R141: 0.6261457601 | S141: 0.210145898 | T141: 0.01041985699 | U141: 0.02947557376 | V141: 0.000601662182 | W141: 0.002920694878 | X141: 0.02487082171 | Y141: 0.09541973231 | Z141: Census Tract 206.01, Brunswick County, North Carolina | AB141: Brunswick County | AD141: North Carolina | AE141: 0.2216007796 | AF141: 20601 | AG141: Census Tract 206.01, Brunswick County, North Carolina
A142: Brunswick County | B142: 37019020602 | C142: 0.2078307297 | D142: 0.07044264636 | E142: 0.301562191 | F142: 0.698437809 | G142: 0.1368400237 | H142: 0 | I142: 0.007712082262 | J142: 0 | K142: 0.00810757366 | L142: 0.007316590864 | M142: 0.1415859205 | N142: 20602 | O142: North Carolina | P142: 0.1341827248 | Q142: 0.3738542399 | R142: 0.6261457601 | S142: 0.210145898 | T142: 0.01041985699 | U142: 0.02947557376 | V142: 0.000601662182 | W142: 0.002920694878 | X142: 0.02487082171 | Y142: 0.09541973231 | Z142: Census Tract 206.02, Brunswick County, North Carolina | AB142: Brunswick County | AD142: North Carolina | AE142: 0.2216007796 | AF142: 20602 | AG142: Census Tract 206.02, Brunswick County, North Carolina
A143: Brunswick County | B143: 37019020603 | C143: 0.216514255 | D143: 0.1481788079 | E143: 0.311457773 | F143: 0.688542227 | G143: 0.2315761162 | H143: 0.003227541689 | I143: 0 | J143: 0 | K143: 0.003227541689 | L143: 0.04653039268 | M143: 0.02689618074 | N143: 20603 | O143: North Carolina | P143: 0.1341827248 | Q143: 0.3738542399 | R143: 0.6261457601 | S143: 0.210145898 | T143: 0.01041985699 | U143: 0.02947557376 | V143: 0.000601662182 | W143: 0.002920694878 | X143: 0.02487082171 | Y143: 0.09541973231 | Z143: Census Tract 206.03, Brunswick County, North Carolina | AB143: Brunswick County | AD143: North Carolina | AE143: 0.2216007796 | AF143: 20603 | AG143: Census Tract 206.03, Brunswick County, North Carolina
A144: Brunswick County | B144: 37019990100 | N144: 990100 | O144: North Carolina | P144: 0.1341827248 | Q144: 0.3738542399 | R144: 0.6261457601 | S144: 0.210145898 | T144: 0.01041985699 | U144: 0.02947557376 | V144: 0.000601662182 | W144: 0.002920694878 | X144: 0.02487082171 | Y144: 0.09541973231 | Z144: Census Tract 9901, Brunswick County, North Carolina | AB144: Brunswick County | AD144: North Carolina | AE144: 0.2216007796 | AF144: 990100 | AG144: Census Tract 9901, Brunswick County, North Carolina
A145: Buncombe County | B145: 37021000100 | C145: 0.02577319588 | D145: 0.3677621283 | E145: 0.3969072165 | F145: 0.6030927835 | G145: 0.2194403535 | H145: 0.0088365243 | I145: 0.0265095729 | J145: 0 | K145: 0 | L145: 0.08689248895 | M145: 0.05522827688 | N145: 100 | O145: North Carolina | P145: 0.1341827248 | Q145: 0.3738542399 | R145: 0.6261457601 | S145: 0.210145898 | T145: 0.01041985699 | U145: 0.02947557376 | V145: 0.000601662182 | W145: 0.002920694878 | X145: 0.02487082171 | Y145: 0.09541973231 | Z145: Census Tract 1, Buncombe County, North Carolina | AB145: Buncombe County | AD145: North Carolina | AE145: 0.2216007796 | AF145: 100 | AG145: Census Tract 1, Buncombe County, North Carolina
A146: Buncombe County | B146: 37021000200 | C146: 0.1766835626 | D146: 0.1923688394 | E146: 0.3048515568 | F146: 0.6951484432 | G146: 0.2063721941 | H146: 0 | I146: 0.02606806662 | J146: 0 | K146: 0 | L146: 0.06299782766 | M146: 0.009413468501 | N146: 200 | O146: North Carolina | P146: 0.1341827248 | Q146: 0.3738542399 | R146: 0.6261457601 | S146: 0.210145898 | T146: 0.01041985699 | U146: 0.02947557376 | V146: 0.000601662182 | W146: 0.002920694878 | X146: 0.02487082171 | Y146: 0.09541973231 | Z146: Census Tract 2, Buncombe County, North Carolina | AB146: Buncombe County | AD146: North Carolina | AE146: 0.2216007796 | AF146: 200 | AG146: Census Tract 2, Buncombe County, North Carolina
A147: Buncombe County | B147: 37021000300 | C147: 0.1613031387 | D147: 0.3339517625 | E147: 0.2816845451 | F147: 0.7183154549 | G147: 0.164878824 | H147: 0 | I147: 0.01430274136 | J147: 0 | K147: 0.03496225665 | L147: 0.0480731029 | M147: 0.01946762018 | N147: 300 | O147: North Carolina | P147: 0.1341827248 | Q147: 0.3738542399 | R147: 0.6261457601 | S147: 0.210145898 | T147: 0.01041985699 | U147: 0.02947557376 | V147: 0.000601662182 | W147: 0.002920694878 | X147: 0.02487082171 | Y147: 0.09541973231 | Z147: Census Tract 3, Buncombe County, North Carolina | AB147: Buncombe County | AD147: North Carolina | AE147: 0.2216007796 | AF147: 300 | AG147: Census Tract 3, Buncombe County, North Carolina
A148: Buncombe County | B148: 37021000400 | C148: 0.09325396825 | D148: 0.1580118694 | E148: 0.1517857143 | F148: 0.8482142857 | G148: 0.03050595238 | H148: 0.008432539683 | I148: 0.01587301587 | J148: 0 | K148: 0.003968253968 | L148: 0.04737103175 | M148: 0.04563492063 | N148: 400 | O148: North Carolina | P148: 0.1341827248 | Q148: 0.3738542399 | R148: 0.6261457601 | S148: 0.210145898 | T148: 0.01041985699 | U148: 0.02947557376 | V148: 0.000601662182 | W148: 0.002920694878 | X148: 0.02487082171 | Y148: 0.09541973231 | Z148: Census Tract 4, Buncombe County, North Carolina | AB148: Buncombe County | AD148: North Carolina | AE148: 0.2216007796 | AF148: 400 | AG148: Census Tract 4, Buncombe County, North Carolina
A149: Buncombe County | B149: 37021000500 | C149: 0.1594036697 | D149: 0.07731958763 | E149: 0.1221330275 | F149: 0.8778669725 | G149: 0.0246559633 | H149: 0 | I149: 0.0120412844 | J149: 0.005733944954 | K149: 0 | L149: 0.07224770642 | M149: 0.00745412844 | N149: 500 | O149: North Carolina | P149: 0.1341827248 | Q149: 0.3738542399 | R149: 0.6261457601 | S149: 0.210145898 | T149: 0.01041985699 | U149: 0.02947557376 | V149: 0.000601662182 | W149: 0.002920694878 | X149: 0.02487082171 | Y149: 0.09541973231 | Z149: Census Tract 5, Buncombe County, North Carolina | AB149: Buncombe County | AD149: North Carolina | AE149: 0.2216007796 | AF149: 500 | AG149: Census Tract 5, Buncombe County, North Carolina
A150: Buncombe County | B150: 37021000600 | C150: 0.1502192982 | D150: 0.0923566879 | E150: 0.1387061404 | F150: 0.8612938596 | G150: 0.03728070175 | H150: 0 | I150: 0 | J150: 0 | K150: 0 | L150: 0.004385964912 | M150: 0.09703947368 | N150: 600 | O150: North Carolina | P150: 0.1341827248 | Q150: 0.3738542399 | R150: 0.6261457601 | S150: 0.210145898 | T150: 0.01041985699 | U150: 0.02947557376 | V150: 0.000601662182 | W150: 0.002920694878 | X150: 0.02487082171 | Y150: 0.09541973231 | Z150: Census Tract 6, Buncombe County, North Carolina | AB150: Buncombe County | AD150: North Carolina | AE150: 0.2216007796 | AF150: 600 | AG150: Census Tract 6, Buncombe County, North Carolina
A151: Buncombe County | B151: 37021000700 | C151: 0.1301587302 | D151: 0.1091370558 | E151: 0.3288888889 | F151: 0.6711111111 | G151: 0.3003174603 | H151: 0.003174603175 | I151: 0.01523809524 | J151: 0 | K151: 0 | L151: 0.00380952381 | M151: 0.006349206349 | N151: 700 | O151: North Carolina | P151: 0.1341827248 | Q151: 0.3738542399 | R151: 0.6261457601 | S151: 0.210145898 | T151: 0.01041985699 | U151: 0.02947557376 | V151: 0.000601662182 | W151: 0.002920694878 | X151: 0.02487082171 | Y151: 0.09541973231 | Z151: Census Tract 7, Buncombe County, North Carolina | AB151: Buncombe County | AD151: North Carolina | AE151: 0.2216007796 | AF151: 700 | AG151: Census Tract 7, Buncombe County, North Carolina
A152: Buncombe County | B152: 37021000800 | C152: 0.2133699634 | D152: 0.06584659913 | E152: 0.3705738706 | F152: 0.6294261294 | G152: 0.2808302808 | H152: 0 | I152: 0 | J152: 0 | K152: 0 | L152: 0.009462759463 | M152: 0.08028083028 | N152: 800 | O152: North Carolina | P152: 0.1341827248 | Q152: 0.3738542399 | R152: 0.6261457601 | S152: 0.210145898 | T152: 0.01041985699 | U152: 0.02947557376 | V152: 0.000601662182 | W152: 0.002920694878 | X152: 0.02487082171 | Y152: 0.09541973231 | Z152: Census Tract 8, Buncombe County, North Carolina | AB152: Buncombe County | AD152: North Carolina | AE152: 0.2216007796 | AF152: 800 | AG152: Census Tract 8, Buncombe County, North Carolina
A153: Buncombe County | B153: 37021000900 | C153: 0.1765091864 | D153: 0.3898561696 | E153: 0.4826115486 | F153: 0.5173884514 | G153: 0.4740813648 | H153: 0 | I153: 0 | J153: 0 | K153: 0 | L153: 0.004593175853 | M153: 0.003937007874 | N153: 900 | O153: North Carolina | P153: 0.1341827248 | Q153: 0.3738542399 | R153: 0.6261457601 | S153: 0.210145898 | T153: 0.01041985699 | U153: 0.02947557376 | V153: 0.000601662182 | W153: 0.002920694878 | X153: 0.02487082171 | Y153: 0.09541973231 | Z153: Census Tract 9, Buncombe County, North Carolina | AB153: Buncombe County | AD153: North Carolina | AE153: 0.2216007796 | AF153: 900 | AG153: Census Tract 9, Buncombe County, North Carolina
A154: Buncombe County | B154: 37021001000 | C154: 0.258279483 | D154: 0.2009884679 | E154: 0.1936591276 | F154: 0.8063408724 | G154: 0.09672859451 | H154: 0.002221324717 | I154: 0.01797253635 | J154: 0 | K154: 0 | L154: 0.02766558966 | M154: 0.04907108239 | N154: 1000 | O154: North Carolina | P154: 0.1341827248 | Q154: 0.3738542399 | R154: 0.6261457601 | S154: 0.210145898 | T154: 0.01041985699 | U154: 0.02947557376 | V154: 0.000601662182 | W154: 0.002920694878 | X154: 0.02487082171 | Y154: 0.09541973231 | Z154: Census Tract 10, Buncombe County, North Carolina | AB154: Buncombe County | AD154: North Carolina | AE154: 0.2216007796 | AF154: 1000 | AG154: Census Tract 10, Buncombe County, North Carolina
A155: Buncombe County | B155: 37021001100 | C155: 0.1773706082 | D155: 0.1240812797 | E155: 0.1862485833 | F155: 0.8137514167 | G155: 0.1207026823 | H155: 0 | I155: 0.01870041556 | J155: 0 | K155: 0 | L155: 0.007933509634 | M155: 0.03891197582 | N155: 1100 | O155: North Carolina | P155: 0.1341827248 | Q155: 0.3738542399 | R155: 0.6261457601 | S155: 0.210145898 | T155: 0.01041985699 | U155: 0.02947557376 | V155: 0.000601662182 | W155: 0.002920694878 | X155: 0.02487082171 | Y155: 0.09541973231 | Z155: Census Tract 11, Buncombe County, North Carolina | AB155: Buncombe County | AD155: North Carolina | AE155: 0.2216007796 | AF155: 1100 | AG155: Census Tract 11, Buncombe County, North Carolina
A156: Buncombe County | B156: 37021001200 | C156: 0.2309120924 | D156: 0.05693199789 | E156: 0.06933553446 | F156: 0.9306644655 | G156: 0.0323978539 | H156: 0.0002063557573 | I156: 0 | J156: 0 | K156: 0 | L156: 0 | M156: 0.0367313248 | N156: 1200 | O156: North Carolina | P156: 0.1341827248 | Q156: 0.3738542399 | R156: 0.6261457601 | S156: 0.210145898 | T156: 0.01041985699 | U156: 0.02947557376 | V156: 0.000601662182 | W156: 0.002920694878 | X156: 0.02487082171 | Y156: 0.09541973231 | Z156: Census Tract 12, Buncombe County, North Carolina | AB156: Buncombe County | AD156: North Carolina | AE156: 0.2216007796 | AF156: 1200 | AG156: Census Tract 12, Buncombe County, North Carolina
A157: Buncombe County | B157: 37021001300 | C157: 0.2280896383 | D157: 0.2664819945 | E157: 0.2287552696 | F157: 0.7712447304 | G157: 0.07144441979 | H157: 0.004215664522 | I157: 0.006878189483 | J157: 0.05435988462 | K157: 0.002884402041 | L157: 0.01841579765 | M157: 0.07055691147 | N157: 1300 | O157: North Carolina | P157: 0.1341827248 | Q157: 0.3738542399 | R157: 0.6261457601 | S157: 0.210145898 | T157: 0.01041985699 | U157: 0.02947557376 | V157: 0.000601662182 | W157: 0.002920694878 | X157: 0.02487082171 | Y157: 0.09541973231 | Z157: Census Tract 13, Buncombe County, North Carolina | AB157: Buncombe County | AD157: North Carolina | AE157: 0.2216007796 | AF157: 1300 | AG157: Census Tract 13, Buncombe County, North Carolina
A158: Buncombe County | B158: 37021001401 | C158: 0.1202400662 | D158: 0.1783578032 | E158: 0.2847682119 | F158: 0.7152317881 | G158: 0.1169288079 | H158: 0.05111754967 | I158: 0.0006208609272 | J158: 0 | K158: 0 | L158: 0.003311258278 | M158: 0.1127897351 | N158: 1401 | O158: North Carolina | P158: 0.1341827248 | Q158: 0.3738542399 | R158: 0.6261457601 | S158: 0.210145898 | T158: 0.01041985699 | U158: 0.02947557376 | V158: 0.000601662182 | W158: 0.002920694878 | X158: 0.02487082171 | Y158: 0.09541973231 | Z158: Census Tract 14.01, Buncombe County, North Carolina | AB158: Buncombe County | AD158: North Carolina | AE158: 0.2216007796 | AF158: 1401 | AG158: Census Tract 14.01, Buncombe County, North Carolina
A159: Buncombe County | B159: 37021001402 | C159: 0.2120300752 | D159: 0.06980802792 | E159: 0.3879699248 | F159: 0.6120300752 | G159: 0.08872180451 | H159: 0 | I159: 0.03458646617 | J159: 0 | K159: 0 | L159: 0 | M159: 0.2646616541 | N159: 1402 | O159: North Carolina | P159: 0.1341827248 | Q159: 0.3738542399 | R159: 0.6261457601 | S159: 0.210145898 | T159: 0.01041985699 | U159: 0.02947557376 | V159: 0.000601662182 | W159: 0.002920694878 | X159: 0.02487082171 | Y159: 0.09541973231 | Z159: Census Tract 14.02, Buncombe County, North Carolina | AB159: Buncombe County | AD159: North Carolina | AE159: 0.2216007796 | AF159: 1402 | AG159: Census Tract 14.02, Buncombe County, North Carolina
A160: Buncombe County | B160: 37021001500 | C160: 0.1635768811 | D160: 0.1699346405 | E160: 0.2504543802 | F160: 0.7495456198 | G160: 0.01599418393 | H160: 0 | I160: 0.03925845147 | J160: 0 | K160: 0.006179571065 | L160: 0.02071973828 | M160: 0.1683024355 | N160: 1500 | O160: North Carolina | P160: 0.1341827248 | Q160: 0.3738542399 | R160: 0.6261457601 | S160: 0.210145898 | T160: 0.01041985699 | U160: 0.02947557376 | V160: 0.000601662182 | W160: 0.002920694878 | X160: 0.02487082171 | Y160: 0.09541973231 | Z160: Census Tract 15, Buncombe County, North Carolina | AB160: Buncombe County | AD160: North Carolina | AE160: 0.2216007796 | AF160: 1500 | AG160: Census Tract 15, Buncombe County, North Carolina
A161: Buncombe County | B161: 37021001601 | C161: 0.1993243243 | D161: 0.05719446117 | E161: 0.1018339768 | F161: 0.8981660232 | G161: 0.006032818533 | H161: 0 | I161: 0.01061776062 | J161: 0 | K161: 0.006515444015 | L161: 0.0250965251 | M161: 0.05357142857 | N161: 1601 | O161: North Carolina | P161: 0.1341827248 | Q161: 0.3738542399 | R161: 0.6261457601 | S161: 0.210145898 | T161: 0.01041985699 | U161: 0.02947557376 | V161: 0.000601662182 | W161: 0.002920694878 | X161: 0.02487082171 | Y161: 0.09541973231 | Z161: Census Tract 16.01, Buncombe County, North Carolina | AB161: Buncombe County | AD161: North Carolina | AE161: 0.2216007796 | AF161: 1601 | AG161: Census Tract 16.01, Buncombe County, North Carolina
A162: Buncombe County | B162: 37021001602 | C162: 0.1395012649 | D162: 0.1235864297 | E162: 0.115648717 | F162: 0.884351283 | G162: 0.005782435851 | H162: 0 | I162: 0 | J162: 0 | K162: 0 | L162: 0 | M162: 0.1098662812 | N162: 1602 | O162: North Carolina | P162: 0.1341827248 | Q162: 0.3738542399 | R162: 0.6261457601 | S162: 0.210145898 | T162: 0.01041985699 | U162: 0.02947557376 | V162: 0.000601662182 | W162: 0.002920694878 | X162: 0.02487082171 | Y162: 0.09541973231 | Z162: Census Tract 16.02, Buncombe County, North Carolina | AB162: Buncombe County | AD162: North Carolina | AE162: 0.2216007796 | AF162: 1602 | AG162: Census Tract 16.02, Buncombe County, North Carolina
A163: Buncombe County | B163: 37021001700 | C163: 0.1140963015 | D163: 0.04635761589 | E163: 0.07048150733 | F163: 0.9295184927 | G163: 0.0394277739 | H163: 0 | I163: 0.006280530356 | J163: 0 | K163: 0 | L163: 0.002791346825 | M163: 0.02198185625 | N163: 1700 | O163: North Carolina | P163: 0.1341827248 | Q163: 0.3738542399 | R163: 0.6261457601 | S163: 0.210145898 | T163: 0.01041985699 | U163: 0.02947557376 | V163: 0.000601662182 | W163: 0.002920694878 | X163: 0.02487082171 | Y163: 0.09541973231 | Z163: Census Tract 17, Buncombe County, North Carolina | AB163: Buncombe County | AD163: North Carolina | AE163: 0.2216007796 | AF163: 1700 | AG163: Census Tract 17, Buncombe County, North Carolina
A164: Buncombe County | B164: 37021001801 | C164: 0.1460807601 | D164: 0.1080797482 | E164: 0.1820071259 | F164: 0.8179928741 | G164: 0.1199524941 | H164: 0.000593824228 | I164: 0.005047505938 | J164: 0 | K164: 0 | L164: 0.0445368171 | M164: 0.01187648456 | N164: 1801 | O164: North Carolina | P164: 0.1341827248 | Q164: 0.3738542399 | R164: 0.6261457601 | S164: 0.210145898 | T164: 0.01041985699 | U164: 0.02947557376 | V164: 0.000601662182 | W164: 0.002920694878 | X164: 0.02487082171 | Y164: 0.09541973231 | Z164: Census Tract 18.01, Buncombe County, North Carolina | AB164: Buncombe County | AD164: North Carolina | AE164: 0.2216007796 | AF164: 1801 | AG164: Census Tract 18.01, Buncombe County, North Carolina
A165: Buncombe County | B165: 37021001802 | C165: 0.1622798712 | D165: 0.0569317688 | E165: 0.1427759894 | F165: 0.8572240106 | G165: 0.06154137474 | H165: 0.007953039197 | I165: 0.003219087294 | J165: 0 | K165: 0 | L165: 0.01136148457 | M165: 0.0587010036 | N165: 1802 | O165: North Carolina | P165: 0.1341827248 | Q165: 0.3738542399 | R165: 0.6261457601 | S165: 0.210145898 | T165: 0.01041985699 | U165: 0.02947557376 | V165: 0.000601662182 | W165: 0.002920694878 | X165: 0.02487082171 | Y165: 0.09541973231 | Z165: Census Tract 18.02, Buncombe County, North Carolina | AB165: Buncombe County | AD165: North Carolina | AE165: 0.2216007796 | AF165: 1802 | AG165: Census Tract 18.02, Buncombe County, North Carolina
A166: Buncombe County | B166: 37021001900 | C166: 0.1610486891 | D166: 0.0935483871 | E166: 0.1418227216 | F166: 0.8581772784 | G166: 0.04269662921 | H166: 0 | I166: 0 | J166: 0 | K166: 0 | L166: 0.02047440699 | M166: 0.07865168539 | N166: 1900 | O166: North Carolina | P166: 0.1341827248 | Q166: 0.3738542399 | R166: 0.6261457601 | S166: 0.210145898 | T166: 0.01041985699 | U166: 0.02947557376 | V166: 0.000601662182 | W166: 0.002920694878 | X166: 0.02487082171 | Y166: 0.09541973231 | Z166: Census Tract 19, Buncombe County, North Carolina | AB166: Buncombe County | AD166: North Carolina | AE166: 0.2216007796 | AF166: 1900 | AG166: Census Tract 19, Buncombe County, North Carolina
A167: Buncombe County | B167: 37021002000 | C167: 0.1641674477 | D167: 0.1482284888 | E167: 0.2903780069 | F167: 0.7096219931 | G167: 0.2255545142 | H167: 0 | I167: 0.01562011871 | J167: 0 | K167: 0 | L167: 0.02218056857 | M167: 0.02702280537 | N167: 2000 | O167: North Carolina | P167: 0.1341827248 | Q167: 0.3738542399 | R167: 0.6261457601 | S167: 0.210145898 | T167: 0.01041985699 | U167: 0.02947557376 | V167: 0.000601662182 | W167: 0.002920694878 | X167: 0.02487082171 | Y167: 0.09541973231 | Z167: Census Tract 20, Buncombe County, North Carolina | AB167: Buncombe County | AD167: North Carolina | AE167: 0.2216007796 | AF167: 2000 | AG167: Census Tract 20, Buncombe County, North Carolina
A168: Buncombe County | B168: 37021002101 | C168: 0.2456768038 | D168: 0.0413080895 | E168: 0.03160405486 | F168: 0.9683959451 | G168: 0 | H168: 0 | I168: 0.01431127013 | J168: 0 | K168: 0 | L168: 0.01192605844 | M168: 0.005366726297 | N168: 2101 | O168: North Carolina | P168: 0.1341827248 | Q168: 0.3738542399 | R168: 0.6261457601 | S168: 0.210145898 | T168: 0.01041985699 | U168: 0.02947557376 | V168: 0.000601662182 | W168: 0.002920694878 | X168: 0.02487082171 | Y168: 0.09541973231 | Z168: Census Tract 21.01, Buncombe County, North Carolina | AB168: Buncombe County | AD168: North Carolina | AE168: 0.2216007796 | AF168: 2101 | AG168: Census Tract 21.01, Buncombe County, North Carolina
A169: Buncombe County | B169: 37021002102 | C169: 0.2453746963 | D169: 0.1606060606 | E169: 0.4088955335 | F169: 0.5911044665 | G169: 0.1435245748 | H169: 0.009344047842 | I169: 0.002803214352 | J169: 0 | K169: 0 | L169: 0.01962250047 | M169: 0.233601196 | N169: 2102 | O169: North Carolina | P169: 0.1341827248 | Q169: 0.3738542399 | R169: 0.6261457601 | S169: 0.210145898 | T169: 0.01041985699 | U169: 0.02947557376 | V169: 0.000601662182 | W169: 0.002920694878 | X169: 0.02487082171 | Y169: 0.09541973231 | Z169: Census Tract 21.02, Buncombe County, North Carolina | AB169: Buncombe County | AD169: North Carolina | AE169: 0.2216007796 | AF169: 2102 | AG169: Census Tract 21.02, Buncombe County, North Carolina
A170: Buncombe County | B170: 37021002203 | C170: 0.2306920762 | D170: 0.1113290829 | E170: 0.4411233701 | F170: 0.5588766299 | G170: 0.193781344 | H170: 0 | I170: 0.005015045135 | J170: 0 | K170: 0 | L170: 0.02407221665 | M170: 0.2182547643 | N170: 2203 | O170: North Carolina | P170: 0.1341827248 | Q170: 0.3738542399 | R170: 0.6261457601 | S170: 0.210145898 | T170: 0.01041985699 | U170: 0.02947557376 | V170: 0.000601662182 | W170: 0.002920694878 | X170: 0.02487082171 | Y170: 0.09541973231 | Z170: Census Tract 22.03, Buncombe County, North Carolina | AB170: Buncombe County | AD170: North Carolina | AE170: 0.2216007796 | AF170: 2203 | AG170: Census Tract 22.03, Buncombe County, North Carolina
A171: Buncombe County | B171: 37021002204 | C171: 0.1408272506 | D171: 0.05255255255 | E171: 0.1222384428 | F171: 0.8777615572 | G171: 0.03776155718 | H171: 0 | I171: 0.03552311436 | J171: 0 | K171: 0 | L171: 0.0200486618 | M171: 0.02890510949 | N171: 2204 | O171: North Carolina | P171: 0.1341827248 | Q171: 0.3738542399 | R171: 0.6261457601 | S171: 0.210145898 | T171: 0.01041985699 | U171: 0.02947557376 | V171: 0.000601662182 | W171: 0.002920694878 | X171: 0.02487082171 | Y171: 0.09541973231 | Z171: Census Tract 22.04, Buncombe County, North Carolina | AB171: Buncombe County | AD171: North Carolina | AE171: 0.2216007796 | AF171: 2204 | AG171: Census Tract 22.04, Buncombe County, North Carolina
A172: Buncombe County | B172: 37021002205 | C172: 0.2360788863 | D172: 0.032800328 | E172: 0.1666183295 | F172: 0.8333816705 | G172: 0.01160092807 | H172: 0.005800464037 | I172: 0.05974477958 | J172: 0 | K172: 0.008120649652 | L172: 0.02465197216 | M172: 0.05669953596 | N172: 2205 | O172: North Carolina | P172: 0.1341827248 | Q172: 0.3738542399 | R172: 0.6261457601 | S172: 0.210145898 | T172: 0.01041985699 | U172: 0.02947557376 | V172: 0.000601662182 | W172: 0.002920694878 | X172: 0.02487082171 | Y172: 0.09541973231 | Z172: Census Tract 22.05, Buncombe County, North Carolina | AB172: Buncombe County | AD172: North Carolina | AE172: 0.2216007796 | AF172: 2205 | AG172: Census Tract 22.05, Buncombe County, North Carolina
A173: Buncombe County | B173: 37021002206 | C173: 0.1331953071 | D173: 0.03536067893 | E173: 0.1867954911 | F173: 0.8132045089 | G173: 0.01978375891 | H173: 0 | I173: 0.1030595813 | J173: 0 | K173: 0.005291005291 | L173: 0.038647343 | M173: 0.02001380262 | N173: 2206 | O173: North Carolina | P173: 0.1341827248 | Q173: 0.3738542399 | R173: 0.6261457601 | S173: 0.210145898 | T173: 0.01041985699 | U173: 0.02947557376 | V173: 0.000601662182 | W173: 0.002920694878 | X173: 0.02487082171 | Y173: 0.09541973231 | Z173: Census Tract 22.06, Buncombe County, North Carolina | AB173: Buncombe County | AD173: North Carolina | AE173: 0.2216007796 | AF173: 2206 | AG173: Census Tract 22.06, Buncombe County, North Carolina
A174: Buncombe County | B174: 37021002303 | C174: 0.2037841191 | D174: 0.04972608512 | E174: 0.1820719603 | F174: 0.8179280397 | G174: 0.08808933002 | H174: 0 | I174: 0.03473945409 | J174: 0 | K174: 0 | L174: 0.01209677419 | M174: 0.04714640199 | N174: 2303 | O174: North Carolina | P174: 0.1341827248 | Q174: 0.3738542399 | R174: 0.6261457601 | S174: 0.210145898 | T174: 0.01041985699 | U174: 0.02947557376 | V174: 0.000601662182 | W174: 0.002920694878 | X174: 0.02487082171 | Y174: 0.09541973231 | Z174: Census Tract 23.03, Buncombe County, North Carolina | AB174: Buncombe County | AD174: North Carolina | AE174: 0.2216007796 | AF174: 2303 | AG174: Census Tract 23.03, Buncombe County, North Carolina
A175: Buncombe County | B175: 37021002304 | C175: 0.1918936035 | D175: 0.07081174439 | E175: 0.238758708 | F175: 0.761241292 | G175: 0.1526282457 | H175: 0 | I175: 0.04243191894 | J175: 0 | K175: 0 | L175: 0.04243191894 | M175: 0.001266624446 | N175: 2304 | O175: North Carolina | P175: 0.1341827248 | Q175: 0.3738542399 | R175: 0.6261457601 | S175: 0.210145898 | T175: 0.01041985699 | U175: 0.02947557376 | V175: 0.000601662182 | W175: 0.002920694878 | X175: 0.02487082171 | Y175: 0.09541973231 | Z175: Census Tract 23.04, Buncombe County, North Carolina | AB175: Buncombe County | AD175: North Carolina | AE175: 0.2216007796 | AF175: 2304 | AG175: Census Tract 23.04, Buncombe County, North Carolina
A176: Buncombe County | B176: 37021002305 | C176: 0.1701252937 | D176: 0.1007479103 | E176: 0.07732967894 | F176: 0.9226703211 | G176: 0.006068911511 | H176: 0 | I176: 0.005873140172 | J176: 0 | K176: 0 | L176: 0.005481597494 | M176: 0.05990602976 | N176: 2305 | O176: North Carolina | P176: 0.1341827248 | Q176: 0.3738542399 | R176: 0.6261457601 | S176: 0.210145898 | T176: 0.01041985699 | U176: 0.02947557376 | V176: 0.000601662182 | W176: 0.002920694878 | X176: 0.02487082171 | Y176: 0.09541973231 | Z176: Census Tract 23.05, Buncombe County, North Carolina | AB176: Buncombe County | AD176: North Carolina | AE176: 0.2216007796 | AF176: 2305 | AG176: Census Tract 23.05, Buncombe County, North Carolina
A177: Buncombe County | B177: 37021002306 | C177: 0.1664021164 | D177: 0.1420222092 | E177: 0.2264550265 | F177: 0.7735449735 | G177: 0.02142857143 | H177: 0 | I177: 0.03201058201 | J177: 0 | K177: 0 | L177: 0.006084656085 | M177: 0.1669312169 | N177: 2306 | O177: North Carolina | P177: 0.1341827248 | Q177: 0.3738542399 | R177: 0.6261457601 | S177: 0.210145898 | T177: 0.01041985699 | U177: 0.02947557376 | V177: 0.000601662182 | W177: 0.002920694878 | X177: 0.02487082171 | Y177: 0.09541973231 | Z177: Census Tract 23.06, Buncombe County, North Carolina | AB177: Buncombe County | AD177: North Carolina | AE177: 0.2216007796 | AF177: 2306 | AG177: Census Tract 23.06, Buncombe County, North Carolina
A178: Buncombe County | B178: 37021002401 | C178: 0.1975308642 | D178: 0.1760124611 | E178: 0.09584145549 | F178: 0.9041585445 | G178: 0.003248862898 | H178: 0 | I178: 0.0003248862898 | J178: 0 | K178: 0 | L178: 0.04905782976 | M178: 0.04320987654 | N178: 2401 | O178: North Carolina | P178: 0.1341827248 | Q178: 0.3738542399 | R178: 0.6261457601 | S178: 0.210145898 | T178: 0.01041985699 | U178: 0.02947557376 | V178: 0.000601662182 | W178: 0.002920694878 | X178: 0.02487082171 | Y178: 0.09541973231 | Z178: Census Tract 24.01, Buncombe County, North Carolina | AB178: Buncombe County | AD178: North Carolina | AE178: 0.2216007796 | AF178: 2401 | AG178: Census Tract 24.01, Buncombe County, North Carolina
A179: Buncombe County | B179: 37021002402 | C179: 0.2449848024 | D179: 0.1349862259 | E179: 0.222289767 | F179: 0.777710233 | G179: 0.04052684904 | H179: 0.002836879433 | I179: 0.01094224924 | J179: 0 | K179: 0 | L179: 0.02897669706 | M179: 0.1390070922 | N179: 2402 | O179: North Carolina | P179: 0.1341827248 | Q179: 0.3738542399 | R179: 0.6261457601 | S179: 0.210145898 | T179: 0.01041985699 | U179: 0.02947557376 | V179: 0.000601662182 | W179: 0.002920694878 | X179: 0.02487082171 | Y179: 0.09541973231 | Z179: Census Tract 24.02, Buncombe County, North Carolina | AB179: Buncombe County | AD179: North Carolina | AE179: 0.2216007796 | AF179: 2402 | AG179: Census Tract 24.02, Buncombe County, North Carolina
A180: Buncombe County | B180: 37021002503 | C180: 0.2216518899 | D180: 0.1124473842 | E180: 0.06976201587 | F180: 0.9302379841 | G180: 0 | H180: 0.002333177788 | I180: 0.0002333177788 | J180: 0 | K180: 0 | L180: 0.00396640224 | M180: 0.06322911806 | N180: 2503 | O180: North Carolina | P180: 0.1341827248 | Q180: 0.3738542399 | R180: 0.6261457601 | S180: 0.210145898 | T180: 0.01041985699 | U180: 0.02947557376 | V180: 0.000601662182 | W180: 0.002920694878 | X180: 0.02487082171 | Y180: 0.09541973231 | Z180: Census Tract 25.03, Buncombe County, North Carolina | AB180: Buncombe County | AD180: North Carolina | AE180: 0.2216007796 | AF180: 2503 | AG180: Census Tract 25.03, Buncombe County, North Carolina
A181: Buncombe County | B181: 37021002504 | C181: 0.2368915814 | D181: 0.1634174312 | E181: 0.06413202423 | F181: 0.9358679758 | G181: 0 | H181: 0.00960935868 | I181: 0 | J181: 0 | K181: 0 | L181: 0.02193440568 | M181: 0.03258825987 | N181: 2504 | O181: North Carolina | P181: 0.1341827248 | Q181: 0.3738542399 | R181: 0.6261457601 | S181: 0.210145898 | T181: 0.01041985699 | U181: 0.02947557376 | V181: 0.000601662182 | W181: 0.002920694878 | X181: 0.02487082171 | Y181: 0.09541973231 | Z181: Census Tract 25.04, Buncombe County, North Carolina | AB181: Buncombe County | AD181: North Carolina | AE181: 0.2216007796 | AF181: 2504 | AG181: Census Tract 25.04, Buncombe County, North Carolina
A182: Buncombe County | B182: 37021002505 | C182: 0.1375215146 | D182: 0.05972434916 | E182: 0.1447504303 | F182: 0.8552495697 | G182: 0.0230636833 | H182: 0 | I182: 0.02065404475 | J182: 0 | K182: 0 | L182: 0.005163511188 | M182: 0.09586919105 | N182: 2505 | O182: North Carolina | P182: 0.1341827248 | Q182: 0.3738542399 | R182: 0.6261457601 | S182: 0.210145898 | T182: 0.01041985699 | U182: 0.02947557376 | V182: 0.000601662182 | W182: 0.002920694878 | X182: 0.02487082171 | Y182: 0.09541973231 | Z182: Census Tract 25.05, Buncombe County, North Carolina | AB182: Buncombe County | AD182: North Carolina | AE182: 0.2216007796 | AF182: 2505 | AG182: Census Tract 25.05, Buncombe County, North Carolina
A183: Buncombe County | B183: 37021002506 | C183: 0.2710223835 | D183: 0.2085786375 | E183: 0.315184513 | F183: 0.684815487 | G183: 0.1279491833 | H183: 0.006654567453 | I183: 0 | J183: 0 | K183: 0.002117362371 | L183: 0.0148215366 | M183: 0.1636418633 | N183: 2506 | O183: North Carolina | P183: 0.1341827248 | Q183: 0.3738542399 | R183: 0.6261457601 | S183: 0.210145898 | T183: 0.01041985699 | U183: 0.02947557376 | V183: 0.000601662182 | W183: 0.002920694878 | X183: 0.02487082171 | Y183: 0.09541973231 | Z183: Census Tract 25.06, Buncombe County, North Carolina | AB183: Buncombe County | AD183: North Carolina | AE183: 0.2216007796 | AF183: 2506 | AG183: Census Tract 25.06, Buncombe County, North Carolina
A184: Buncombe County | B184: 37021002603 | C184: 0.1847826087 | D184: 0.14339059 | E184: 0.1773455378 | F184: 0.8226544622 | G184: 0.01773455378 | H184: 0 | I184: 0.0002860411899 | J184: 0 | K184: 0 | L184: 0.08209382151 | M184: 0.07723112128 | N184: 2603 | O184: North Carolina | P184: 0.1341827248 | Q184: 0.3738542399 | R184: 0.6261457601 | S184: 0.210145898 | T184: 0.01041985699 | U184: 0.02947557376 | V184: 0.000601662182 | W184: 0.002920694878 | X184: 0.02487082171 | Y184: 0.09541973231 | Z184: Census Tract 26.03, Buncombe County, North Carolina | AB184: Buncombe County | AD184: North Carolina | AE184: 0.2216007796 | AF184: 2603 | AG184: Census Tract 26.03, Buncombe County, North Carolina
A185: Buncombe County | B185: 37021002604 | C185: 0.201766078 | D185: 0.09769865393 | E185: 0.05198267244 | F185: 0.9480173276 | G185: 0.001832722426 | H185: 0 | I185: 0 | J185: 0 | K185: 0 | L185: 0.01899366878 | M185: 0.03115628124 | N185: 2604 | O185: North Carolina | P185: 0.1341827248 | Q185: 0.3738542399 | R185: 0.6261457601 | S185: 0.210145898 | T185: 0.01041985699 | U185: 0.02947557376 | V185: 0.000601662182 | W185: 0.002920694878 | X185: 0.02487082171 | Y185: 0.09541973231 | Z185: Census Tract 26.04, Buncombe County, North Carolina | AB185: Buncombe County | AD185: North Carolina | AE185: 0.2216007796 | AF185: 2604 | AG185: Census Tract 26.04, Buncombe County, North Carolina
A186: Buncombe County | B186: 37021002606 | C186: 0.2717462394 | D186: 0.1187335092 | E186: 0.1268803139 | F186: 0.8731196861 | G186: 0.05886200131 | H186: 0 | I186: 0.0008175277959 | J186: 0 | K186: 0 | L186: 0.007357750164 | M186: 0.05984303466 | N186: 2606 | O186: North Carolina | P186: 0.1341827248 | Q186: 0.3738542399 | R186: 0.6261457601 | S186: 0.210145898 | T186: 0.01041985699 | U186: 0.02947557376 | V186: 0.000601662182 | W186: 0.002920694878 | X186: 0.02487082171 | Y186: 0.09541973231 | Z186: Census Tract 26.06, Buncombe County, North Carolina | AB186: Buncombe County | AD186: North Carolina | AE186: 0.2216007796 | AF186: 2606 | AG186: Census Tract 26.06, Buncombe County, North Carolina
A187: Buncombe County | B187: 37021002607 | C187: 0.1796038544 | D187: 0.1037371134 | E187: 0.09609207709 | F187: 0.9039079229 | G187: 0.003479657388 | H187: 0.0008029978587 | I187: 0.01391862955 | J187: 0 | K187: 0 | L187: 0.0136509636 | M187: 0.06423982869 | N187: 2607 | O187: North Carolina | P187: 0.1341827248 | Q187: 0.3738542399 | R187: 0.6261457601 | S187: 0.210145898 | T187: 0.01041985699 | U187: 0.02947557376 | V187: 0.000601662182 | W187: 0.002920694878 | X187: 0.02487082171 | Y187: 0.09541973231 | Z187: Census Tract 26.07, Buncombe County, North Carolina | AB187: Buncombe County | AD187: North Carolina | AE187: 0.2216007796 | AF187: 2607 | AG187: Census Tract 26.07, Buncombe County, North Carolina
A188: Buncombe County | B188: 37021002608 | C188: 0.1889454209 | D188: 0.1161872532 | E188: 0.203746531 | F188: 0.796253469 | G188: 0.02983348751 | H188: 0.007631822387 | I188: 0.0164199815 | J188: 0.008325624422 | K188: 0 | L188: 0.02197039778 | M188: 0.1195652174 | N188: 2608 | O188: North Carolina | P188: 0.1341827248 | Q188: 0.3738542399 | R188: 0.6261457601 | S188: 0.210145898 | T188: 0.01041985699 | U188: 0.02947557376 | V188: 0.000601662182 | W188: 0.002920694878 | X188: 0.02487082171 | Y188: 0.09541973231 | Z188: Census Tract 26.08, Buncombe County, North Carolina | AB188: Buncombe County | AD188: North Carolina | AE188: 0.2216007796 | AF188: 2608 | AG188: Census Tract 26.08, Buncombe County, North Carolina
A189: Buncombe County | B189: 37021002609 | C189: 0.1964285714 | D189: 0.0843373494 | E189: 0.1810064935 | F189: 0.8189935065 | G189: 0.07224025974 | H189: 0 | I189: 0 | J189: 0 | K189: 0 | L189: 0.05681818182 | M189: 0.05194805195 | N189: 2609 | O189: North Carolina | P189: 0.1341827248 | Q189: 0.3738542399 | R189: 0.6261457601 | S189: 0.210145898 | T189: 0.01041985699 | U189: 0.02947557376 | V189: 0.000601662182 | W189: 0.002920694878 | X189: 0.02487082171 | Y189: 0.09541973231 | Z189: Census Tract 26.09, Buncombe County, North Carolina | AB189: Buncombe County | AD189: North Carolina | AE189: 0.2216007796 | AF189: 2609 | AG189: Census Tract 26.09, Buncombe County, North Carolina
A190: Buncombe County | B190: 37021002701 | C190: 0.1461174506 | D190: 0.0833959429 | E190: 0.1455608127 | F190: 0.8544391873 | G190: 0.0197606457 | H190: 0.02671861954 | I190: 0.05065404954 | J190: 0.001669913721 | K190: 0 | L190: 0.03005844698 | M190: 0.01669913721 | N190: 2701 | O190: North Carolina | P190: 0.1341827248 | Q190: 0.3738542399 | R190: 0.6261457601 | S190: 0.210145898 | T190: 0.01041985699 | U190: 0.02947557376 | V190: 0.000601662182 | W190: 0.002920694878 | X190: 0.02487082171 | Y190: 0.09541973231 | Z190: Census Tract 27.01, Buncombe County, North Carolina | AB190: Buncombe County | AD190: North Carolina | AE190: 0.2216007796 | AF190: 2701 | AG190: Census Tract 27.01, Buncombe County, North Carolina
A191: Buncombe County | B191: 37021002702 | C191: 0.1334946118 | D191: 0.05373717636 | E191: 0.06729711898 | F191: 0.932702881 | G191: 0.02705080273 | H191: 0 | I191: 0.004618429734 | J191: 0 | K191: 0 | L191: 0.01429513965 | M191: 0.02133274687 | N191: 2702 | O191: North Carolina | P191: 0.1341827248 | Q191: 0.3738542399 | R191: 0.6261457601 | S191: 0.210145898 | T191: 0.01041985699 | U191: 0.02947557376 | V191: 0.000601662182 | W191: 0.002920694878 | X191: 0.02487082171 | Y191: 0.09541973231 | Z191: Census Tract 27.02, Buncombe County, North Carolina | AB191: Buncombe County | AD191: North Carolina | AE191: 0.2216007796 | AF191: 2702 | AG191: Census Tract 27.02, Buncombe County, North Carolina
A192: Buncombe County | B192: 37021002704 | C192: 0.2044812273 | D192: 0.08402432283 | E192: 0.1265643924 | F192: 0.8734356076 | G192: 0.01251513928 | H192: 0 | I192: 0.002220427937 | J192: 0.001816713767 | K192: 0 | L192: 0.06499798143 | M192: 0.04501413 | N192: 2704 | O192: North Carolina | P192: 0.1341827248 | Q192: 0.3738542399 | R192: 0.6261457601 | S192: 0.210145898 | T192: 0.01041985699 | U192: 0.02947557376 | V192: 0.000601662182 | W192: 0.002920694878 | X192: 0.02487082171 | Y192: 0.09541973231 | Z192: Census Tract 27.04, Buncombe County, North Carolina | AB192: Buncombe County | AD192: North Carolina | AE192: 0.2216007796 | AF192: 2704 | AG192: Census Tract 27.04, Buncombe County, North Carolina
A193: Buncombe County | B193: 37021002705 | C193: 0.1495867769 | D193: 0.02683363148 | E193: 0 | F193: 1 | G193: 0 | H193: 0 | I193: 0 | J193: 0 | K193: 0 | L193: 0 | M193: 0 | N193: 2705 | O193: North Carolina | P193: 0.1341827248 | Q193: 0.3738542399 | R193: 0.6261457601 | S193: 0.210145898 | T193: 0.01041985699 | U193: 0.02947557376 | V193: 0.000601662182 | W193: 0.002920694878 | X193: 0.02487082171 | Y193: 0.09541973231 | Z193: Census Tract 27.05, Buncombe County, North Carolina | AB193: Buncombe County | AD193: North Carolina | AE193: 0.2216007796 | AF193: 2705 | AG193: Census Tract 27.05, Buncombe County, North Carolina
A194: Buncombe County | B194: 37021002803 | C194: 0.2731462926 | D194: 0.1482428115 | E194: 0.2172344689 | F194: 0.7827655311 | G194: 0.01142284569 | H194: 0 | I194: 0 | J194: 0 | K194: 0 | L194: 0.02985971944 | M194: 0.1759519038 | N194: 2803 | O194: North Carolina | P194: 0.1341827248 | Q194: 0.3738542399 | R194: 0.6261457601 | S194: 0.210145898 | T194: 0.01041985699 | U194: 0.02947557376 | V194: 0.000601662182 | W194: 0.002920694878 | X194: 0.02487082171 | Y194: 0.09541973231 | Z194: Census Tract 28.03, Buncombe County, North Carolina | AB194: Buncombe County | AD194: North Carolina | AE194: 0.2216007796 | AF194: 2803 | AG194: Census Tract 28.03, Buncombe County, North Carolina
A195: Buncombe County | B195: 37021002804 | C195: 0.1823270692 | D195: 0.06727534839 | E195: 0.04258296681 | F195: 0.9574170332 | G195: 0.007796881248 | H195: 0 | I195: 0 | J195: 0 | K195: 0 | L195: 0.008596561375 | M195: 0.02618952419 | N195: 2804 | O195: North Carolina | P195: 0.1341827248 | Q195: 0.3738542399 | R195: 0.6261457601 | S195: 0.210145898 | T195: 0.01041985699 | U195: 0.02947557376 | V195: 0.000601662182 | W195: 0.002920694878 | X195: 0.02487082171 | Y195: 0.09541973231 | Z195: Census Tract 28.04, Buncombe County, North Carolina | AB195: Buncombe County | AD195: North Carolina | AE195: 0.2216007796 | AF195: 2804 | AG195: Census Tract 28.04, Buncombe County, North Carolina
A196: Buncombe County | B196: 37021002900 | C196: 0.2091075635 | D196: 0.07195121951 | E196: 0.01884323476 | F196: 0.9811567652 | G196: 0 | H196: 0.001308557969 | I196: 0.001046846375 | J196: 0 | K196: 0 | L196: 0.007327924627 | M196: 0.009159905784 | N196: 2900 | O196: North Carolina | P196: 0.1341827248 | Q196: 0.3738542399 | R196: 0.6261457601 | S196: 0.210145898 | T196: 0.01041985699 | U196: 0.02947557376 | V196: 0.000601662182 | W196: 0.002920694878 | X196: 0.02487082171 | Y196: 0.09541973231 | Z196: Census Tract 29, Buncombe County, North Carolina | AB196: Buncombe County | AD196: North Carolina | AE196: 0.2216007796 | AF196: 2900 | AG196: Census Tract 29, Buncombe County, North Carolina
A197: Buncombe County | B197: 37021003002 | C197: 0.1377569863 | D197: 0.1592091571 | E197: 0.1285239444 | F197: 0.8714760556 | G197: 0.02511387418 | H197: 0.004554967377 | I197: 0 | J197: 0 | K197: 0 | L197: 0.00135417949 | M197: 0.0975009233 | N197: 3002 | O197: North Carolina | P197: 0.1341827248 | Q197: 0.3738542399 | R197: 0.6261457601 | S197: 0.210145898 | T197: 0.01041985699 | U197: 0.02947557376 | V197: 0.000601662182 | W197: 0.002920694878 | X197: 0.02487082171 | Y197: 0.09541973231 | Z197: Census Tract 30.02, Buncombe County, North Carolina | AB197: Buncombe County | AD197: North Carolina | AE197: 0.2216007796 | AF197: 3002 | AG197: Census Tract 30.02, Buncombe County, North Carolina
A198: Buncombe County | B198: 37021003003 | C198: 0.1647473997 | D198: 0.1388206388 | E198: 0.2093239227 | F198: 0.7906760773 | G198: 0.1283432392 | H198: 0.004829123328 | I198: 0.004829123328 | J198: 0 | K198: 0 | L198: 0.02005943536 | M198: 0.05126300149 | N198: 3003 | O198: North Carolina | P198: 0.1341827248 | Q198: 0.3738542399 | R198: 0.6261457601 | S198: 0.210145898 | T198: 0.01041985699 | U198: 0.02947557376 | V198: 0.000601662182 | W198: 0.002920694878 | X198: 0.02487082171 | Y198: 0.09541973231 | Z198: Census Tract 30.03, Buncombe County, North Carolina | AB198: Buncombe County | AD198: North Carolina | AE198: 0.2216007796 | AF198: 3003 | AG198: Census Tract 30.03, Buncombe County, North Carolina
A199: Buncombe County | B199: 37021003004 | C199: 0.1314441789 | D199: 0.1061571125 | E199: 0.05428473882 | F199: 0.9457152612 | G199: 0.01126664391 | H199: 0 | I199: 0.00204848071 | J199: 0 | K199: 0 | L199: 0.01160805736 | M199: 0.02936155685 | N199: 3004 | O199: North Carolina | P199: 0.1341827248 | Q199: 0.3738542399 | R199: 0.6261457601 | S199: 0.210145898 | T199: 0.01041985699 | U199: 0.02947557376 | V199: 0.000601662182 | W199: 0.002920694878 | X199: 0.02487082171 | Y199: 0.09541973231 | Z199: Census Tract 30.04, Buncombe County, North Carolina | AB199: Buncombe County | AD199: North Carolina | AE199: 0.2216007796 | AF199: 3004 | AG199: Census Tract 30.04, Buncombe County, North Carolina
A200: Buncombe County | B200: 37021003103 | C200: 0.1581556767 | D200: 0.09720534629 | E200: 0.05205751116 | F200: 0.9479424888 | G200: 0.01041150223 | H200: 0 | I200: 0.006941001487 | J200: 0.01041150223 | K200: 0 | L200: 0.009915716411 | M200: 0.0143777888 | N200: 3103 | O200: North Carolina | P200: 0.1341827248 | Q200: 0.3738542399 | R200: 0.6261457601 | S200: 0.210145898 | T200: 0.01041985699 | U200: 0.02947557376 | V200: 0.000601662182 | W200: 0.002920694878 | X200: 0.02487082171 | Y200: 0.09541973231 | Z200: Census Tract 31.03, Buncombe County, North Carolina | AB200: Buncombe County | AD200: North Carolina | AE200: 0.2216007796 | AF200: 3103 | AG200: Census Tract 31.03, Buncombe County, North Carolina
... 2473 more rows
